Workbook

Sheet Title Page
A1: U.S. EPA Office of Ground Water and Drinking Water
A2: Work Breakdown Structure (WBS) Model for Nontreatment Options for Drinking Water Compliance
A3: Release Date: June 30, 2019
A4: · The primary purpose of this model is to assist EPA in estimating national compliance costs.
A5: · As such, the costs are intended to be representative of typical facilities.
A6: · The default settings, however, do not account for all of the site-specific factors that could affect the cost of any given individual facility or project.
A7: · Still, other uses of the model might be reasonable if sufficient care is taken by the user to account for site- or project-specific factors.
A8: · The model results are point estimates shown to the nearest $1, but this precision is not meant to imply that the results are accurate to $1.
A9: · Instead, users should review all documentation, modify inputs/assumptions as appropriate to their specific purpose, and form their own informed opinions about the accuracy and suitability of the results.
A10: · Use of this model requires Excel 2007 or later.
A11: · The model should be opened as Read-only, so that any changes you make are saved under a new file name.
A12: · To function properly, macros ("active content") must be enabled. If a security warning appears, click "options" and "enable this content."
A13: · For further information see the following document distributed with this file:
A14: USEPA. 2019. Work Breakdown Structure-Based Cost Model for Nontreatment Options for Drinking Water Compliance. Office of Water.
A15: · To begin using the model, go to the INPUT sheet.

Sheet Index
A1: INDEX
A2: This page provides an index to all user-adjustable inputs and assumptions. Click on a variable name to go directly to the adjustable cells.
A4: User-adjustable Input or Assumption | B4: Variable Name and Link
A5: Access space for pumps and PRVs | B5: space_pumps
A6: Administrative LOE as a percent of average technical labor | B6: Clerical_percent
A7: Asphalt thickness | B7: asphalt_thickness
A8: Average Flow | B8: average_flow_I
A9: Builder's risk insurance percentage | B9: br_ins_pct
A10: City index | B10: city_index
A11: Component level | B11: component_level_I
A12: Cost estimating method | B12: curve
A13: Cost for parts & maintenance for booster pumps | B13: booster_pump_maintenance
A14: Cost for parts & maintenance for well pumps | B14: well_pump_maintenance
A15: Cost of Purchased Water | B15: water_cost_I
A16: Depth of grout seal | B16: seal_depth
A17: Design Flow | B17: design_flow_I
A18: Design safety factor for standby power | B18: std_safety_factor
A19: Distance from Well to Distribution System | B19: well_distance_I
A20: Distance to Water Supply | B20: pipe_length_I
A21: Electrical percentage | B21: elect_pct
A22: Elevation Difference from Supply Source | B22: elevation_diff_I
A23: Engineering percentage for large systems | B23: eng_pct_large
A24: Engineering percentage for medium systems | B24: eng_pct_medium
A25: Engineering percentage for small systems | B25: eng_pct_small
A26: Financing percentage | B26: finance_pct
A27: Financing percentage for small systems | B27: finance_pct_small
A28: Fire Buffer for Buildings | B28: fire_buffer
A29: Flow meters for each well | B29: fm_well
A30: Flow meters for interconnect line | B30: fm_interconnect
A31: Footprint per well | B31: well_footprint
A32: Maintenance LOE assumptions for pumps | B32: uloe_pump_maint
A33: Maintenance LOE assumptions for valves | B33: uloe_valve_maint
A34: Frost depth | B34: frost
A35: I/O port table | B35: port_table
A36: Include architectural fee for small systems? | B36: include_arch_small
A37: Include architectural fee? | B37: include_arch
A38: Include asphalt patch | B38: asphalt_patch_include
A39: Include buildings? | B39: include_buildings_I
A40: Include construction management cost? | B40: include_cm
A41: Include contingency costs for high cost systems? | B41: include_conting_high
A42: Include contingency costs for low cost systems? | B42: include_conting_low
A43: Include contingency costs for medium cost systems? | B43: include_conting_medium
A44: Include geotechnical costs for high cost systems? | B44: include_geo_high
A45: Include geotechnical costs for low cost systems? | B45: include_geo_low
A46: Include geotechnical costs for medium cost systems? | B46: include_geo_medium
A47: Include land? | B47: include_land_I
A48: Include performance bond cost? | B48: include_bond
A49: Include sitework costs? | B49: include_sitework
A50: Include standby power costs for small systems? | B50: include_standby_small
A51: Include standby power costs? | B51: include_standby
A52: Include well pump soft start? | B52: soft_start
A53: Installation, Transportatation, and O&P percentage | B53: inst_pct
A54: Instrumentation and control percentage | B54: i_c_pct
A55: Interior hight of vault | B55: vault_interior_height
A56: Legal percentage | B56: legal_pct
A57: Mangerial LOE as a percent of average technical labor | B57: Manager_percent
A58: Maxiumum Flow per Well | B58: wells_I
A59: Minimum number of PRVs | B59: min_num_PRVs
A60: Minimum standby power generator size | B60: min_standby
A61: Minimum trench depth to top of pipe | B61: min_trench_depth
A62: Minimum trench width on each side of pipe | B62: min_trench_width
A63: Minimum vault cover | B63: vault_min_cover
A64: Minutes per 100 sf per day | B64: uloe_fp
A65: Minutes per pump per day | B65: uloe_pump
A66: Minutes per valve per week | B66: uloe_valve
A67: Miscellaneous allowance percentage | B67: misc_pct
A68: Mobilization percentage for large systems | B68: mob_pct_large
A69: Mobilization percentage for medium systems | B69: mob_pct_medium
A70: Mobilization percentage for small systems | B70: mob_pct_small
A71: Non fire Buffer for buildings | B71: non_fire_buffer
A72: Number of redundant booster pumps | B72: NRD_booster_pumps
A73: Number of redundant PRVs | B73: NRD_PRVs
A74: Pressure at Supply Source | B74: buyer_pressure_I
A75: Pump efficiency for booster pumps | B75: booster_pump_efficiency
A76: Safety factor for pumps | B76: pump_safety_factor
A77: Sales tax percentage | B77: tax_pct
A78: Screen length to casing length ratio | B78: screen_ration
A79: Spacing for valves | B79: valve_spacing
A80: System automation | B80: manual_I
A81: Technology complexity factor | B81: complexity
A82: Thickness of gravel pack | B82: gravel_thickness
A83: Thickness of grout seal | B83: grout_thickness
A84: Valves per PRV | B84: valve_per_PRV
A85: Valves per pump (booster and well) | B85: valve_per_pump
A86: Vault concrete thickness | B86: vault_concrete_thickness
A87: water pressure at top of well (for distribution) | B87: supply_head
A88: Well Depth | B88: well_depth_I

Sheet INPUT
A1: NONTREATMENT SYSTEM DESIGN AND COST INPUT
E3: STEP 1
E4: Select Design Type
E7: STEP 2: | H7: =IF(OR('Standard Inputs'!S9,'Standard Inputs'!S14),"<- Using this design",IF(OR('Standard Inputs'!T9,'Standard Inputs'!T14,),"<- You modified this design","")) -> <- Using this design | I7: The standard design buttons are for EPA's use in estimating national costs, but other users might find them useful as a starting point. See documentation for more information
E8: Select one of the eight standard designs at right OR select "CLEAR FOR MANUAL ENTRY" | H8: =IF(OR('Standard Inputs'!S10,'Standard Inputs'!S15),"<- Using this design",IF(OR('Standard Inputs'!T10,'Standard Inputs'!T15,),"<- You modified this design","")) -> 
H9: =IF(OR('Standard Inputs'!S11,'Standard Inputs'!S16),"<- Using this design",IF(OR('Standard Inputs'!T11,'Standard Inputs'!T16,),"<- You modified this design","")) -> 
H10: =IF(OR('Standard Inputs'!S12,'Standard Inputs'!S17),"<- Using this design",IF(OR('Standard Inputs'!T12,'Standard Inputs'!T17,),"<- You modified this design","")) -> 
H11: =IF(OR('Standard Inputs'!S13,'Standard Inputs'!S18),"<- Using this design",IF(OR('Standard Inputs'!T13,'Standard Inputs'!T18,),"<- You modified this design","")) -> 
H12: =IF(OR('Standard Inputs'!S9:T18),"","Using a manual design") -> 
E13: STEP 3:
E14: (Optional for standard designs) | G14: =IF(C15,IF('Standard Inputs'!S21,"Input Complete -- Results Ready","Input Complete--Press 'Generate Results'"),"Input Incomplete--Check for Error Messages Below") -> Input Complete -- Results Ready
C15: =AND(C28,C35,C42,C43,C52) -> TRUE | E15: Enter or change values in the gold and blue cells below, under "Manual Inputs"
E17: STEP 4: | I17: Results summary (see OUTPUT sheet for details)
E18: =IF(G14="input complete -- results ready","Results are ready (no need to click button)","Click here to generate results -->") -> Results are ready (no need to click button) | I18: ="Direct Capital Cost: " & IF(input_status<>"input complete -- results ready",input_status,IF(Missing_Cost,"Missing cost!",IF(cost_buildup_error,"Cost buildup error!",IF(ISERROR(direct_cost),"Calculation error!",TEXT(direct_cost,"$0,0"))))) -> Direct Capital Cost: $212,110
I19: ="Total Capital Cost: " & IF(input_status<>"input complete -- results ready",input_status,IF(Missing_Cost,"Missing cost!",IF(cost_buildup_error,"Cost buildup error!",IF(ISERROR(system_cost),"Calculation error!",TEXT(system_cost,"$0,0"))))) -> Total Capital Cost: $315,644
I20: ="Annualized Capital Cost: "&IF(input_status<>"Input Complete -- Results Ready",input_status,IF(Missing_Cost,"Missing Price!",IF(cost_buildup_error,"Cost buildup error!",IF(ISERROR(Annualized_Capital_Cost),"Calculation error!",TEXT(Annualized_Capital_Cost,"$0,0")&" per year"&" (over "&useful_life&" years at "&Discount_rate*100&"%)")))) -> Annualized Capital Cost: $32,432 per year (over 16.9 years at 7%)
I21: ="Annual O&M Cost: "&IF(input_status<>"input complete -- results ready",input_status,IF(ISERROR(om_cost),"Calculation error!",TEXT(om_cost,"$0,0")&" per year")) -> Annual O&M Cost: $7,662 per year
I22: ="Total Annualized Cost: "&IF(input_status<>"input complete -- results ready",input_status,IF(Missing_Cost,"Missing Price!",IF(cost_buildup_error,"Cost buildup error!",IF(ISERROR(Annualized_Cost),"Calculation error!",TEXT(Annualized_Cost,"$0,0")&" per year")))) -> Total Annualized Cost: $40,094 per year
E23: MANUAL INPUTS | I23: =IF(Missing_Cost,"A price is not available for at least one required component. See Use? column on OUTPUT sheet.",IF(cost_buildup_error,"There is an Excel error in the price for at least one component. Please see the Use? column on OUTPUT sheet.","")) -> 
E24: Cells in gold are required; cells in blue are optional
B25: Used? | C25: Valid input? | D25: Invalid reason? | H25: Select units
E26: Design Flow | F26: design_flow_I | G26: 0.03 | H26: MGD
E27: Average Flow | F27: average_flow_I | G27: 0.007 | H27: MGD
C28: =IF(OR(df_units="",af_units=""),FALSE,IF(average_flow>design_flow,FALSE,IF(OR(design_flow_I=0,average_flow_I=0),FALSE,IF(average_flow<design_flow*min_avg_flow,FALSE,TRUE)))) -> TRUE | D28: =IF(OR(df_units="",af_units=""),"Choose units for design and average flow",IF(average_flow>design_flow,"The average flow should not be greater than the design flow",IF(OR(design_flow_I=0,average_flow_I=0),"Input incomplete",IF(average_flow<design_flow*min_avg_flow,"The average flow must be at least " & min_avg_flow & " times design flow","OK")))) -> OK | H28: =IF(C28,"System size inputs OK",D28) -> System size inputs OK
B30: =IF(design=1,TRUE,FALSE) -> TRUE | E30: Intrconnection
C31: =IF(B30=TRUE,IF(pipe_length_I="",FALSE,TRUE),TRUE) -> TRUE | D31: =IF(B30=TRUE,IF(pipe_length_I="","Interconnection Inputs Incomplete",""),"") ->  | E31: Distance to Water Supply | F31: pipe_length_I | G31: 10000 | H31: feet
C32: =IF(B31=TRUE,IF(buyer_pressure_I="",FALSE,TRUE),TRUE) -> TRUE | D32: =IF(B31=TRUE,IF(buyer_pressure_I="","Interconnection Inputs Incomplete",""),"") ->  | E32: Pressure at Supply Source | F32: buyer_pressure_I | G32: correct pressure | H32: <-- select one
B33: =IF(AND(B30,buyer_pressure_I="pressure less than required"),TRUE,FALSE) -> FALSE | C33: =IF(AND(B30=TRUE,B33=TRUE),IF(elevation_diff_I="",FALSE,IF(booster_psi>500,FALSE,TRUE)),TRUE) -> TRUE | D33: =IF(AND(B30=TRUE,B33=TRUE),IF(elevation_diff_I="","Interconnection Inputs Incomplete",IF(booster_psi>500,"Elevation difference exceeds maximum available pump rating","")),"") ->  | E33: Elevation Difference from Supply Source | F33: elevation_diff_I | G33: 0 | H33: =IF(B33,"feet","") ->  | I33: =IF(AND(B30=TRUE,B33=TRUE),"Guidance: The elevation difference is used to size the booster pump.","") -> 
C34: =IF(B30=TRUE,IF(water_cost_I="",FALSE,TRUE),TRUE) -> TRUE | D34: =IF(B30=TRUE,IF(water_cost_I="","Interconnection Inputs Incomplete",""),"") ->  | E34: Cost of Purchased Water | F34: water_cost_I | G34: 2 | H34: $/1000 gal | I34: =IF(B30=TRUE,"Guidance: The cost of purchased water appears as an O&M cost item. Enter 0 to exclude from O&M costs.","") -> Guidance: The cost of purchased water appears as an O&M cost item. Enter 0 to exclude from O&M costs.
C35: =AND(C31:C34) -> TRUE | D35: =IF(C35,"OK",IF(C31=FALSE,D31,IF(C32=FALSE,D32,IF(C33=FALSE,D33,IF(C34=FALSE,D34))))) -> OK | H35: =IF(B30=TRUE,IF(C35,"Interconnection Inputs OK",D35),"") -> Interconnection Inputs OK
B37: =IF(design=2,TRUE,FALSE) -> FALSE | E37: New Well Construction
C38: =IF(B37=TRUE,IF(wells_I="",FALSE,TRUE),TRUE) -> TRUE | D38: =IF(B37=TRUE,IF(wells_I="","Well Inputs Incomplete",""),"") ->  | E38: Maxiumum Flow per Well | F38: wells_I | H38: gpm | I38: Guidance: Larger systems are typically made up of many smaller wells
C39: =IF(B38=TRUE,IF(wells_depth_I="",FALSE,TRUE),TRUE) -> TRUE | D39: =IF(B37=TRUE,IF(well_depth_I="","Well Inputs Incomplete",""),"") ->  | E39: Well Depth | F39: well_depth_I | H39: feet
C40: =IF(B37=TRUE,IF(well_distance_I="",FALSE,TRUE),TRUE) -> TRUE | D40: =IF(B37=TRUE,IF(well_distance_I="","Well Inputs Incomplete",""),"") ->  | E40: Distance from Well to Distribution System | F40: well_distance_I | H40: feet
E41: For information: Number of wells | G41: =IF(ISERROR(wells),"",wells) -> 0
C42: =IF(B37=TRUE,IF(well_pump_hp>well_pump_hp_max,FALSE,TRUE),TRUE) -> TRUE | D42: =IF(B37=TRUE,IF(well_pump_hp>well_pump_hp_max,"design exceeds maximum available pump horsepower- reduce well depth",""),"") ->  | E42: Well pump horsepower | G42: =IF(B37=TRUE,well_pump_hp,"") ->  | H42: horsepower
C43: =AND(C38:C42) -> TRUE | D43: =IF(C43,"OK",IF(C38=FALSE,D38,IF(C39=FALSE,D39,IF(C40=FALSE,D40,IF(C42=FALSE,D42))))) -> OK | H43: =IF(B37=TRUE,IF(AND(C42,C43),"Well Inputs OK",D43),"") -> 
E46: Component level | F46: component_level_I | H46: <-- pick or leave blank | I46: Leave blank to use low cost components
E47: System automation | F47: manual_I | H47: <-- pick or leave blank | I47: Leave blank to allow model to pick based on component level
E48: Include buildings? | F48: include_buildings_I | H48: <-- pick or leave blank | I48: =IF(design=2,"Leave blank to include buildings","Interconnection designs never include buildings") -> Interconnection designs never include buildings
E49: Include land? | F49: include_land_I | H49: <-- pick or leave blank | I49: =IF(design=2,"Leave blank to include land","Interconnection designs never include land") -> Interconnection designs never include land
E50: For information: Component level | G50: =IF(component_level=2,"high cost",IF(component_level=1,"mid cost","low cost")) -> low cost
E51: Automation | G51: =IF(manual=1,"manual",IF(manual=2,"semi-automated",IF(manual=3,"fully automated"))) -> manual
C52: =NOT(ISERROR(manual)) -> TRUE | D52: =IF(ISERROR(manual),"Invalid system automation input","OK") -> OK | H52: =IF(C52,"System Automation Inputs OK",D52) -> System Automation Inputs OK

Sheet OUTPUT
A1: OUTPUT SUMMARY
B2: Parameter | C2: Value | D2: Units
B3: OUTPUT SUMMARY
B4: Technology | C4: ="Non-Treatment, "& IF(design=1,"interconection", "new well") -> Non-Treatment, interconection
B5: System Size Category | C5: =IF(design_flow<1,"small","large") -> small
B6: Design Flow | C6: =design_flow_I -> 0.03 | D6: =df_units -> MGD
B7: Average Flow | C7: =average_flow_I -> 0.007 | D7: =af_units -> MGD
B8: ="Distance "&IF(design=1,"to interconnected supply","to distribution system") -> Distance to interconnected supply | C8: =IF(design=1,pipe_length_I,well_distance_I) -> 10000 | D8: feet
B9: =IF(design=1,"Pressure at supply source","Pump hp") -> Pressure at supply source | C9: =IF(design=1,buyer_pressure_I,well_pump_hp) -> correct pressure
B10: =IF(design=1,"","Well depth") ->  | C10: =IF(design=1,"",well_depth_I) ->  | D10: =IF(design=1,"","feet") -> 
B11: Component level | C11: =IF(component_level_I="","low", component_level_I) -> low
B12: System automation | C12: =IF(manual=1,"manual",IF(manual=2,"semi-automated","fully automated")) -> manual
B13: ="Resulting Costs (in year "&TEXT(current_year_cl,0)&" dollars)" -> Resulting Costs (in year 2017 dollars)
B14: Direct Capital Cost | C14: =IF(input_status<>"input complete -- results ready","Action required",IF(Missing_Cost,"Missing cost!",IF(cost_buildup_error,"Error in buildup!",direct_cost))) -> 212109.925 | D14: Details | E14: =IF(input_status<>"input complete -- results ready",IF(input_complete,"Press Generate Results","Check INPUT sheet for errors"),IF(Missing_Cost,"A price is not available for at least one required component. See Use? column below.",IF(cost_buildup_error,"There is an Excel error in the price for at least one component. See Use? column below.",""))) -> 
B15: Add-on Cost | C15: =IF(input_status<>"input complete -- results ready","Action required",addon_cost) -> 0 | D15: Details
B16: Indirect Capital Cost | C16: =IF(input_status<>"input complete -- results ready","Action required",indirect_cost) -> 103533.9377 | D16: Details
B17: Total Capital Cost | C17: =IF(input_status<>"input complete -- results ready","Action required",IF(Missing_Cost,"Missing cost!",IF(cost_buildup_error,"Error in buildup!",system_cost))) -> 315643.8628 | D17: Details
B18: ="Annualized Capital Cost "&IF(OR(input_status<>"input complete -- results ready",Missing_Cost,cost_buildup_error),"","(per year over "&useful_life&" years at "&Discount_rate*100&"%)") -> Annualized Capital Cost (per year over 16.9 years at 7%) | C18: =IF(input_status<>"input complete -- results ready","Action required",Annualized_Capital_Cost) -> 32431.87177 | D18: Details
B19: Annual O&M Cost (per year) | C19: =IF(input_status<>"input complete -- results ready","Action required",om_cost) -> 7662.102828 | D19: Details
B20: ="Total Annualized Cost (per year)" -> Total Annualized Cost (per year) | C20: =IF(input_status<>"input complete -- results ready","Action required",IF(Missing_Cost,"Missing cost!",IF(cost_buildup_error,"Error in buildup!",Annualized_Cost))) -> 40093.9746 | D20: Details
B21: Per 1,000 gallons average flow | C21: =IF(input_status<>"input complete -- results ready","Action required",IF(Missing_Cost,"Missing cost!",IF(cost_buildup_error,"Error in buildup!",C176))) -> 15.69235796
B22: Per household per year | C22: =IF(input_status<>"input complete -- results ready","Action required",IF(Missing_Cost,"Missing cost!",IF(cost_buildup_error,"Error in buildup!",C177))) -> 1625.048655
E23: errornote
A24: Direct Capital Cost Details (items in italics, without a 1 in the "Use?" column, represent alternate costs and are excluded from total)
A25: WBS # | B25: Item | C25: Design Quanitity | E25: Design Size | G25: Size used in estimate | I25: Unit Cost | J25: Total Cost | K25: Useful Life | L25: Use? | M25: Full Line Item Name | N25: Priority selection | W25: Useful Life
N26: Small (<1 mgd) | Q26: Medium (1-10 mgd) | T26: Large (>10 mgd)
N27: Low | O27: Mid | P27: High | Q27: Low | R27: Mid | S27: High | T27: Low | U27: Mid | V27: High | W27: Count? | X27: Depreciation | Y27: Major component useful life
A28: 1 | B28: Well Items
A29: 1.1 | B29: Well Casing
A30: 1.1.1 | B30: PVC | C30: =wells*casing_len -> 0 | D30: lf | E30: =IF(C30>0,casing_diam,"NA") -> NA | F30: =IF(C30=0,"","in. diam") ->  | G30: =IF(C30=0,"NA",IF(curve=1,casing_diam,VLOOKUP(casing_diam,casing_pvc_cost_cl,2))) -> NA | H30: =IF(E30="NA","","in. diam") ->  | I30: =IF(C30=0,"NA",IF(curve=1,casing_pvc_eq,VLOOKUP(casing_diam,casing_pvc_cost_cl,3))) -> NA | J30: =IF(OR(I30="contact vendor",I30="NA"),"--",C30*I30) -> -- | K30: =IF(I30="NA","N/A",VLOOKUP(casing_diam,casing_pvc_cost_cl,IF(ss_cat="large",4,5))) -> N/A | M30: =$B$28&" - "&$B$29&" - "&B30 -> Well Items - Well Casing - PVC | N30: 1 | O30: 2 | P30: 2 | Q30: 1 | R30: 2 | S30: 2 | T30: 1 | U30: 2 | V30: 2 | W30: =IF(ISERROR(K30*L30),0,IF(K30<1,0,L30)) -> 0 | X30: =IF(W30,J30/K30,0) -> 0 | Y30: =IF(W30=1,K30,0) -> 0
A31: 1.1.1 | B31: Stainless Steel | C31: =wells*casing_len -> 0 | D31: lf | E31: =IF(C31>0,casing_diam,"NA") -> NA | F31: =IF(C31=0,"","in. diam") ->  | G31: =IF(C31=0,"NA",IF(curve=1,casing_diam,VLOOKUP(casing_diam,casing_ss_cost_cl,2))) -> NA | H31: =IF(E31="NA","","in. diam") ->  | I31: =IF(C31=0,"NA",IF(curve=1,casing_ss_eq,VLOOKUP(casing_diam,casing_ss_cost_cl,3))) -> NA | J31: -- | K31: =IF(I31="NA","N/A",VLOOKUP(casing_diam,casing_ss_cost_cl,IF(ss_cat="large",4,5))) -> N/A | M31: =$B$28&" - "&$B$29&" - "&B31 -> Well Items - Well Casing - Stainless Steel | N31: 2 | O31: 1 | P31: 1 | Q31: 2 | R31: 1 | S31: 1 | T31: 2 | U31: 1 | V31: 1 | W31: =IF(ISERROR(K31*L31),0,IF(K31<1,0,L31)) -> 0 | X31: =IF(W31,J31/K31,0) -> 0 | Y31: =IF(W31=1,K31,0) -> 0
A32: 1.2 | B32: Well screen | W32: =IF(ISERROR(K32*L32),0,IF(K32<1,0,L32)) -> 0 | X32: =IF(W32,J32/K32,0) -> 0
A33: 1.2.1 | B33: PVC Schedule 40 | C33: =wells*screen_len -> 0 | D33: lf | E33: =IF( C33>0,screen_diam,"NA") -> NA | F33: =IF(C33=0,"","in. diam") ->  | G33: =IF(C33=0,"NA",IF(curve=1,screen_diam,VLOOKUP(screen_diam,screen_pvc40_cost_cl,2))) -> NA | H33: =IF(E33="NA","","in. diam") ->  | I33: =IF(C33=0,"NA",IF(curve=1,screen_pvc40_eq,VLOOKUP(screen_diam,screen_pvc40_cost_cl,4))) -> NA | J33: =IF(OR(I33="contact vendor",I33="NA"),"--",C33*I33) -> -- | K33: =IF(I33="NA","N/A",VLOOKUP(screen_diam,screen_pvc40_cost_cl,IF(ss_cat="large",4,5))) -> N/A | M33: =$B$28&" - "&$B$32&" - "&B33 -> Well Items - Well screen - PVC Schedule 40 | N33: 1 | O33: 2 | P33: 2 | Q33: 1 | R33: 2 | S33: 2 | T33: 1 | U33: 2 | V33: 2 | W33: =IF(ISERROR(K33*L33),0,IF(K33<1,0,L33)) -> 0 | X33: =IF(W33,J33/K33,0) -> 0 | Y33: =IF(W33=1,K33,0) -> 0
A34: 1.2.1 | B34: PVC Schedule 80 | C34: =wells*screen_len -> 0 | D34: lf | E34: =IF( C34>0,screen_diam,"NA") -> NA | F34: =IF(C34=0,"","in. diam") ->  | G34: =IF(C34=0,"NA",IF(curve=1,screen_diam,VLOOKUP(screen_diam,screen_pvc80_cost_cl,2))) -> NA | H34: =IF(E34="NA","","in. diam") ->  | I34: =IF(C34=0,"NA",IF(curve=1,screen_pvc80_eq,VLOOKUP(screen_diam,screen_pvc80_cost_cl,4))) -> NA | J34: =IF(OR(I34="contact vendor",I34="NA"),"--",C34*I34) -> -- | K34: =IF(I34="NA","N/A",VLOOKUP(screen_diam,screen_pvc80_cost_cl,IF(ss_cat="large",4,5))) -> N/A | M34: =$B$28&" - "&$B$32&" - "&B34 -> Well Items - Well screen - PVC Schedule 80 | N34: 2 | O34: 1 | P34: 3 | Q34: 2 | R34: 1 | S34: 3 | T34: 2 | U34: 1 | V34: 3 | W34: =IF(ISERROR(K35*L35),0,IF(K35<1,0,L35)) -> 0 | X34: =IF(W34,J35/K35,0) -> 0 | Y34: =IF(W34=1,K34,0) -> 0
A35: 1.2.1 | B35: Stainless Steel | C35: =wells*screen_len -> 0 | D35: lf | E35: =IF( C35>0,screen_diam,"NA") -> NA | F35: =IF(C35=0,"","in. diam") ->  | G35: =IF(C35=0,"NA",IF(curve=1,screen_diam,VLOOKUP(screen_diam,screen_ss_cost_cl,2))) -> NA | H35: =IF(E35="NA","","in. diam") ->  | I35: =IF(C35=0,"NA",IF(curve=1,screen_ss_eq,VLOOKUP(screen_diam,screen_ss_cost_cl,4))) -> NA | J35: =IF(OR(I35="contact vendor",I35="NA"),"--",C35*I35) -> -- | K35: =IF(I35="NA","N/A",VLOOKUP(screen_diam,screen_ss_cost_cl,IF(ss_cat="large",4,5))) -> N/A | M35: =$B$28&" - "&$B$32&" - "&B35 -> Well Items - Well screen - Stainless Steel | N35: 3 | O35: 3 | P35: 1 | Q35: 3 | R35: 3 | S35: 1 | T35: 3 | U35: 3 | V35: 1 | W35: =IF(ISERROR(K36*L36),0,IF(K36<1,0,L36)) -> 0 | X35: =IF(W35,J36/K36,0) -> 0 | Y35: =IF(W35=1,K35,0) -> 0
A36: 1.3 | B36: Plugs | W36: =IF(ISERROR(K36*L36),0,IF(K36<1,0,L36)) -> 0 | X36: =IF(W36,J36/K36,0) -> 0
A37: 1.3.1 | B37: PVC | C37: =IF(design=2,wells,0) -> 0 | D37: units | E37: =IF( C37>0,plug_diam,"NA") -> NA | G37: =IF(C37=0,"NA",IF(curve=1,plug_diam,VLOOKUP(plug_diam,plug_pvc_cost_cl,2))) -> NA | H37: =IF(E37="NA","","in. diam") ->  | I37: =IF(C37=0,"NA",IF(curve=1,plug_pvc_eq,VLOOKUP(plug_diam,plug_pvc_cost_cl,3))) -> NA | J37: =IF(OR(I37="contact vendor",I37="NA"),"--",C37*I37) -> -- | K37: =IF(I37="NA","N/A",VLOOKUP(plug_diam,plug_pvc_cost_cl,IF(ss_cat="large",4,5))) -> N/A | M37: =$B$28&" - "&$B$36&" - "&B37 -> Well Items - Plugs - PVC | N37: 1 | O37: 1 | P37: 1 | Q37: 1 | R37: 1 | S37: 1 | T37: 1 | U37: 1 | V37: 1 | W37: =IF(ISERROR(K37*L37),0,IF(K37<1,0,L37)) -> 0 | X37: =IF(W37,J37/K37,0) -> 0 | Y37: =IF(W37=1,K37,0) -> 0
A38: 1.3.1 | B38: Stainless Steel | C38: =IF(design=2,wells,0) -> 0 | D38: units | E38: =IF( C38>0,plug_diam,"NA") -> NA | G38: =IF(C38=0,"NA",IF(curve=1,plug_diam,VLOOKUP(plug_diam,plug_ss_cost_cl,2))) -> NA | H38: =IF(E38="NA","","in. diam") ->  | I38: =IF(C38=0,"NA",IF(curve=1,plug_ss_eq,VLOOKUP(plug_diam,plug_ss_cost_cl,3))) -> NA | J38: -- | K38: =IF(I38="NA","N/A",VLOOKUP(plug_diam,plug_ss_cost_cl,IF(ss_cat="large",4,5))) -> N/A | M38: =$B$28&" - "&$B$36&" - "&B38 -> Well Items - Plugs - Stainless Steel | N38: 2 | O38: 2 | P38: 2 | Q38: 2 | R38: 2 | S38: 2 | T38: 2 | U38: 2 | V38: 2 | W38: =IF(ISERROR(K38*L38),0,IF(K38<1,0,L38)) -> 0 | X38: =IF(W38,J38/K38,0) -> 0 | Y38: =IF(W38=1,K38,0) -> 0
A39: 1.4 | B39: Well Drilling | C39: =IF(design=2,well_depth*wells,0) -> 0 | D39: lf | E39: =IF(C39>0,borehole_diam,"NA") -> NA | G39: =IF(C39>0,borehole_diam,"NA") -> NA | H39: =IF(E39="NA","","in. diam") ->  | I39: =IF(C39=0,"NA",well_drill_cost) -> NA | J39: -- | K39: =IF(I39="NA","N/A",VLOOKUP(0,drill_12_cost_cl,IF(ss_cat="large",4,5))) -> N/A | M39: =$B$28&" - "&B39 -> Well Items - Well Drilling | N39: 1 | O39: 1 | P39: 1 | Q39: 1 | R39: 1 | S39: 1 | T39: 1 | U39: 1 | V39: 1 | W39: =IF(ISERROR(K39*L39),0,IF(K39<1,0,L39)) -> 0 | X39: =IF(W39,J39/K39,0) -> 0
A40: 1.5 | B40: Gravel Pack | C40: =wells*gravel_len -> 0 | D40: lf | E40: =IF(C40>0,casing_diam,"NA") -> NA | G40: =IF(C40=0,"NA",IF(curve=1,casing_diam,VLOOKUP(casing_diam,gravel_pack_cost_cl,2))) -> NA | H40: =IF(E40="NA","","in. diam") ->  | I40: =IF(C40=0,"NA",IF(curve=1,gravel_pack_eq,VLOOKUP(casing_diam,gravel_pack_cost_cl,3))) -> NA | J40: -- | K40: =IF(I40="NA","N/A",VLOOKUP(casing_diam,gravel_pack_cost_cl,IF(ss_cat="large",4,5))) -> N/A | M40: =$B$28&" - "&B40 -> Well Items - Gravel Pack | N40: 1 | O40: 1 | P40: 1 | Q40: 1 | R40: 1 | S40: 1 | T40: 1 | U40: 1 | V40: 1
A41: 1.6 | B41: Well Development | C41: =IF(design=2,wells,0) -> 0 | D41: units | E41: NA | G41: NA | I41: =IF(C41=0,"NA",VLOOKUP(0,develop_well_cost_cl,3)) -> NA | J41: -- | K41: =IF(I41="NA","N/A",VLOOKUP(0,develop_well_cost_cl,IF(ss_cat="large",4,5))) -> N/A | M41: =$B$28&" - "&B41 -> Well Items - Well Development | N41: 1 | O41: 1 | P41: 1 | Q41: 1 | R41: 1 | S41: 1 | T41: 1 | U41: 1 | V41: 1 | W41: =IF(ISERROR(K41*L41),0,IF(K41<1,0,L41)) -> 0 | X41: =IF(W41,J41/K41,0) -> 0
A42: 1.7 | B42: Grout Seal | C42: =IF(design=2,grout_vol,0) -> 0 | D42: cf | E42: NA | G42: NA | I42: =IF(C42=0,"NA",VLOOKUP(0,grout_cost_cl,3)) -> NA | J42: -- | K42: =IF(I42="NA","N/A",K39) -> N/A | M42: =$B$28&" - "&B42 -> Well Items - Grout Seal | N42: 1 | O42: 1 | P42: 1 | Q42: 1 | R42: 1 | S42: 1 | T42: 1 | U42: 1 | V42: 1 | W42: =IF(ISERROR(K42*L42),0,IF(K42<1,0,L42)) -> 0 | X42: =IF(W42,J42/K42,0) -> 0
A43: 2 | B43: Vaults | W43: =IF(ISERROR(K43*L43),0,IF(K43<1,0,L43)) -> 0 | X43: =IF(W43,J43/K43,0) -> 0
A44: 2.1 | B44: Booster Pump
A45: 2.1.1 | B45: Concrete | C45: =pump_vault_total_conc_vol -> 0 | D45: cy | E45: NA | G45: NA | I45: =IF(C45=0,"NA",VLOOKUP(0,conc_basin_cost_cl,3)) -> NA | J45: =IF(OR(I45="contact vendor",I45="NA"),"--",C45*I45) -> -- | K45: =IF(I45="NA","N/A",VLOOKUP(0,conc_basin_cost_cl,IF(ss_cat="large",4,5))) -> N/A | M45: =$B$43&" - "&$B44&" - "&B45 -> Vaults - Booster Pump - Concrete | N45: 1 | O45: 1 | P45: 1 | Q45: 1 | R45: 1 | S45: 1 | T45: 1 | U45: 1 | V45: 1 | W45: =IF(ISERROR(K45*L45),0,IF(K45<1,0,L45)) -> 0 | X45: =IF(W45,J45/K45,0) -> 0
A46: 2.1.2 | B46: Excavation | C46: =pump_vault_exc_volume -> 0 | D46: cy | E46: NA | G46: NA | I46: =IF(C46=0,"NA",VLOOKUP(0,excavate_cost_cl,3)) -> NA | J46: =IF(OR(I46="contact vendor",I46="NA"),"--",C46*I46) -> -- | K46: =IF(I46="NA","N/A",VLOOKUP(0,conc_basin_cost_cl,IF(ss_cat="large",4,5))) -> N/A | M46: =$B$43&" - "&$B$44&" - "&B46 -> Vaults - Booster Pump - Excavation | N46: 1 | O46: 1 | P46: 1 | Q46: 1 | R46: 1 | S46: 1 | T46: 1 | U46: 1 | V46: 1 | W46: =IF(ISERROR(K46*L46),0,IF(K46<1,0,L46)) -> 0 | X46: =IF(W46,J46/K46,0) -> 0
A47: 2.1.3 | B47: Backfill and Compaction | C47: =pump_vault_backfill_volume -> 0 | D47: cy | E47: NA | G47: NA | I47: =IF(C47=0,"NA",VLOOKUP(0,backfill_cost_cl,3)) -> NA | J47: =IF(OR(I47="contact vendor",I47="NA"),"--",C47*I47) -> -- | K47: =IF(I47="NA","N/A",VLOOKUP(0,conc_basin_cost_cl,IF(ss_cat="large",4,5))) -> N/A | M47: =$B$43&" - "&$B$44&" - "&B47 -> Vaults - Booster Pump - Backfill and Compaction | N47: 1 | O47: 1 | P47: 1 | Q47: 1 | R47: 1 | S47: 1 | T47: 1 | U47: 1 | V47: 1 | W47: =IF(ISERROR(K47*L47),0,IF(K47<1,0,L47)) -> 0 | X47: =IF(W47,J47/K47,0) -> 0
A48: 2.2 | B48: Pressure Reducing Valve
A49: 2.2.1 | B49: Concrete | C49: =prv_vault_total_conc_vol -> 0 | D49: cy | E49: NA | G49: NA | I49: =IF(C49=0,"NA",VLOOKUP(0,conc_basin_cost_cl,3)) -> NA | J49: =IF(OR(I49="contact vendor",I49="NA"),"--",C49*I49) -> -- | K49: =IF(I49="NA","N/A",VLOOKUP(0,conc_basin_cost_cl,IF(ss_cat="large",4,5))) -> N/A | M49: =$B$43&" - "&$B$48&" - "&B49 -> Vaults - Pressure Reducing Valve - Concrete | N49: 1 | O49: 1 | P49: 1 | Q49: 1 | R49: 1 | S49: 1 | T49: 1 | U49: 1 | V49: 1 | W49: =IF(ISERROR(K49*L49),0,IF(K49<1,0,L49)) -> 0 | X49: =IF(W49,J49/K49,0) -> 0
A50: 2.2.2 | B50: Excavation | C50: =prv_vault_exc_volume -> 0 | D50: cy | E50: NA | G50: NA | I50: =IF(C50=0,"NA",VLOOKUP(0,excavate_cost_cl,3)) -> NA | J50: =IF(OR(I50="contact vendor",I50="NA"),"--",C50*I50) -> -- | K50: =IF(I50="NA","N/A",VLOOKUP(0,conc_basin_cost_cl,IF(ss_cat="large",4,5))) -> N/A | M50: =$B$43&" - "&$B$48&" - "&B50 -> Vaults - Pressure Reducing Valve - Excavation | N50: 1 | O50: 1 | P50: 1 | Q50: 1 | R50: 1 | S50: 1 | T50: 1 | U50: 1 | V50: 1 | W50: 0 | X50: 0
A51: 2.2.3 | B51: Backfill and Compaction | C51: =prv_vault_backfill_volume -> 0 | D51: cy | E51: NA | G51: NA | I51: =IF(C51=0,"NA",VLOOKUP(0,backfill_cost_cl,3)) -> NA | J51: =IF(OR(I51="contact vendor",I51="NA"),"--",C51*I51) -> -- | K51: =IF(I51="NA","N/A",VLOOKUP(0,conc_basin_cost_cl,IF(ss_cat="large",4,5))) -> N/A | M51: =$B$43&" - "&$B$48&" - "&B51 -> Vaults - Pressure Reducing Valve - Backfill and Compaction | N51: 1 | O51: 1 | P51: 1 | Q51: 1 | R51: 1 | S51: 1 | T51: 1 | U51: 1 | V51: 1 | W51: 0 | X51: 0
A52: 3 | B52: Piping | W52: 0 | X52: 0
A53: 3.1 | B53: Interconnect | W53: 0 | X53: 0
A54: 3.1.1 | B54: Ductile Iron | C54: =interconnect_pipe_length -> 10000 | D54: lf | E54: =IF(C54=0,"NA",interconnect_pipe_diameter) -> 2 | F54: =IF(C54=0,"","in. diam") -> in. diam | G54: =IF(C54=0,"NA",IF(curve=1,interconnect_pipe_diameter,VLOOKUP(interconnect_pipe_diameter,di_pipe_cost_cl,2))) -> 2 | H54: =IF(C54=0,"","in. diam") -> in. diam | I54: =IF(C54=0,"NA",IF(curve=1,di_pipe_eq_interconnect,VLOOKUP(interconnect_pipe_diameter,di_pipe_cost_cl,3))) -> contact vendor | J54: =IF(OR(I54="contact vendor",I54="NA"),"--",C54*I54) -> -- | K54: =IF(I54="NA","N/A",VLOOKUP(interconnect_pipe_diameter,di_pipe_cost_cl,IF(ss_cat="large",4,5))) -> 35 | L54: 0 | M54: =$B$52&" - "&$B$53&" - "&B54 -> Piping - Interconnect - Ductile Iron | N54: 2 | O54: 2 | P54: 1 | Q54: 2 | R54: 2 | S54: 1 | T54: 2 | U54: 2 | V54: 1 | W54: 0 | X54: 0 | Y54: =IF(W54=1,K54,0) -> 0
A55: 3.1.1 | B55: PVC | C55: =interconnect_pipe_length -> 10000 | D55: lf | E55: =IF(C55=0,"NA",interconnect_pipe_diameter) -> 2 | F55: =IF(C55=0,"","in. diam") -> in. diam | G55: =IF(C55=0,"NA",IF(curve=1,interconnect_pipe_diameter,VLOOKUP(interconnect_pipe_diameter,pvc_pipe_cost_cl,2))) -> 2 | H55: =IF(C55=0,"","in. diam") -> in. diam | I55: =IF(C55=0,"NA",IF(curve=1,pvc_pipe_eq_interconnect,VLOOKUP(interconnect_pipe_diameter,pvc_pipe_cost_cl,3))) -> 3.303354553 | J55: =IF(OR(I55="contact vendor",I55="NA"),"--",C55*I55) -> 33033.54553 | K55: =IF(I55="NA","N/A",VLOOKUP(interconnect_pipe_diameter,pvc_pipe_cost_cl,IF(ss_cat="large",4,5))) -> 17 | L55: 1 | M55: =$B$52&" - "&$B$53&" - "&B55 -> Piping - Interconnect - PVC | N55: 1 | O55: 1 | P55: 2 | Q55: 1 | R55: 1 | S55: 2 | T55: 1 | U55: 1 | V55: 2 | W55: 1 | X55: 1943.149737 | Y55: =IF(W55=1,K55,0) -> 17
A56: 3.1.2 | B56: Excavation | C56: =interconnect_trench_vol -> 2541.152263 | D56: cy | E56: NA | G56: NA | I56: =IF(C56=0,"NA",VLOOKUP(0,excavate_cost_cl,3)) -> 31.07454576 | J56: =IF(OR(I56="contact vendor",I56="NA"),"--",C56*I56) -> 78965.15228 | K56: =IF(I56="NA","N/A",IF(L54=1,K54,IF(L55=1,K55,"N/A"))) -> 17 | L56: 1 | M56: =$B$52&" - "&$B$53&" - "&B56 -> Piping - Interconnect - Excavation | N56: 1 | O56: 1 | P56: 1 | Q56: 1 | R56: 1 | S56: 1 | T56: 1 | U56: 1 | V56: 1 | W56: 1 | X56: 4645.008958
A57: 3.1.3 | B57: Backfill and Compaction | C57: =interconnect_trench_vol -> 2541.152263 | D57: cy | E57: NA | G57: NA | I57: =IF(C57=0,"NA",VLOOKUP(0,backfill_cost_cl,3)) -> 14.40625995 | J57: =IF(OR(I57="contact vendor",I57="NA"),"--",C57*I57) -> 36608.50007 | K57: =IF(I57="NA","N/A",IF(L54=1,K54,IF(L55=1,K55,"N/A"))) -> 17 | L57: 1 | M57: =$B$52&" - "&$B$53&" - "&B57 -> Piping - Interconnect - Backfill and Compaction | N57: 1 | O57: 1 | P57: 1 | Q57: 1 | R57: 1 | S57: 1 | T57: 1 | U57: 1 | V57: 1 | W57: 1 | X57: 2153.441181
A58: 3.1.4 | B58: Asphalt Patch | C58: =asphalt_patch_area -> 802.4691358 | D58: sy | E58: =IF(C58=0,"NA",asphalt_thickness) -> 4 | F58: =IF(C58=0,"","in. thick") -> in. thick | G58: =IF(C58=0,"NA",VLOOKUP(asphalt_thickness,asphalt_patch_cost_cl,2)) -> 4 | H58: =IF(C58=0,"","in. diam") -> in. diam | I58: =IF(C58=0,"NA",VLOOKUP(asphalt_thickness,asphalt_patch_cost_cl,3)) -> 69.04840849 | J58: =IF(OR(I58="contact vendor",I58="NA"),"--",C58*I58) -> 55409.21669 | K58: =IF(I58="NA","N/A",IF(L54=1,K54,IF(L55=1,K55,"N/A"))) -> 17 | L58: 1 | M58: =$B$52&" - "&$B$53&" - "&B58 -> Piping - Interconnect - Asphalt Patch | N58: 1 | O58: 1 | P58: 1 | Q58: 1 | R58: 1 | S58: 1 | T58: 1 | U58: 1 | V58: 1 | W58: 1 | X58: 3259.365688
A59: 3.2 | B59: Well | W59: 0 | X59: 0
A60: 3.2.1 | B60: Ductile Iron | C60: =total_well_pipe_length -> 0 | D60: lf | E60: =IF(C60=0,"NA",well_pipe_diameter) -> NA | F60: =IF(C60=0,"","in. diam") ->  | G60: =IF(C60=0,"NA",IF(curve=1,well_pipe_diameter,VLOOKUP(well_pipe_diameter,di_pipe_cost_cl,2))) -> NA | H60: =IF(C60=0,"","in. diam") ->  | I60: =IF(C60=0,"NA",IF(curve=1,di_pipe_eq_well,VLOOKUP(well_pipe_diameter,di_pipe_cost_cl,3))) -> NA | J60: =IF(OR(I60="contact vendor",I60="NA"),"--",C60*I60) -> -- | K60: =IF(I60="NA","N/A",VLOOKUP(well_pipe_diameter,di_pipe_cost_cl,IF(ss_cat="large",4,5))) -> N/A | M60: =$B$52&" - "&$B$59&" - "&B60 -> Piping - Well - Ductile Iron | N60: 2 | O60: 2 | P60: 1 | Q60: 2 | R60: 2 | S60: 1 | T60: 2 | U60: 2 | V60: 1 | W60: 0 | X60: 0
A61: 3.2.1 | B61: PVC | C61: =total_well_pipe_length -> 0 | D61: lf | E61: =IF(C61=0,"NA",well_pipe_diameter) -> NA | F61: =IF(C61=0,"","in. diam") ->  | G61: =IF(C61=0,"NA",IF(curve=1,well_pipe_diameter,VLOOKUP(well_pipe_diameter,pvc_pipe_cost_cl,2))) -> NA | H61: =IF(C61=0,"","in. diam") ->  | I61: =IF(C61=0,"NA",IF(curve=1,pvc_pipe_eq_well,VLOOKUP(well_pipe_diameter,pvc_pipe_cost_cl,3))) -> NA | J61: =IF(OR(I61="contact vendor",I61="NA"),"--",C61*I61) -> -- | K61: =IF(I61="NA","N/A",VLOOKUP(well_pipe_diameter,pvc_pipe_cost_cl,IF(ss_cat="large",4,5))) -> N/A | M61: =$B$52&" - "&$B$59&" - "&B61 -> Piping - Well - PVC | N61: 1 | O61: 1 | P61: 2 | Q61: 1 | R61: 1 | S61: 2 | T61: 1 | U61: 1 | V61: 2 | W61: 0 | X61: 0
A62: 3.2.2 | B62: Excavation | C62: =well_trench_vol -> 0 | D62: cy | E62: NA | G62: NA | I62: =IF(C62=0,"NA",VLOOKUP(0,excavate_cost_cl,3)) -> NA | J62: =IF(OR(I62="contact vendor",I62="NA"),"--",C62*I62) -> -- | K62: =IF(I62="NA","N/A",IF(L60=1,K60,IF(L61=1,K61,"N/A"))) -> N/A | M62: =$B$52&" - "&$B$59&" - "&B62 -> Piping - Well - Excavation | N62: 1 | O62: 1 | P62: 1 | Q62: 1 | R62: 1 | S62: 1 | T62: 1 | U62: 1 | V62: 1 | W62: 0 | X62: 0
A63: 3.2.3 | B63: Backfill and Compaction | C63: =well_trench_vol -> 0 | D63: cy | E63: NA | G63: NA | I63: =IF(C63=0,"NA",VLOOKUP(0,backfill_cost_cl,3)) -> NA | J63: =IF(OR(I63="contact vendor",I63="NA"),"--",C63*I63) -> -- | K63: =IF(I63="NA","N/A",IF(L60=1,K60,IF(L61=1,K61,"N/A"))) -> N/A | M63: =$B$52&" - "&$B$59&" - "&B63 -> Piping - Well - Backfill and Compaction | N63: 1 | O63: 1 | P63: 1 | Q63: 1 | R63: 1 | S63: 1 | T63: 1 | U63: 1 | V63: 1 | W63: 0 | X63: 0
A64: 4 | B64: Valves | N64: 1 | O64: 1 | P64: 1 | Q64: 1 | R64: 1 | S64: 1 | T64: 1 | U64: 1 | V64: 1 | W64: 0 | X64: 0
A65: 4.1 | B65: Isolation and Street | W65: 0 | X65: 0
A66: 4.1.1 | B66: Ductile Iron | C66: =num_valves -> 11 | D66: =IF( C66=0,"", "units") -> units | E66: =IF(C66=0,"NA",valve_size) -> 2 | F66: =IF(C66=0,"","in. diam") -> in. diam | G66: =IF(C66=0,"NA",IF(curve=1,valve_size,VLOOKUP(valve_size,street_valve_cost_cl,2))) -> 2 | H66: =IF(C66=0,"","in. diam") -> in. diam | I66: =IF(C66=0,"NA",IF(curve=1,street_valve_eq,VLOOKUP(valve_size,street_valve_cost_cl,3))) -> 403.402992 | J66: =IF(OR(I66="contact vendor",I66="NA"),"--",C66*I66) -> 4437.432912 | K66: =IF(I66="NA","N/A",VLOOKUP(valve_size,street_valve_cost_cl,IF(ss_cat="large",4,5))) -> 20 | L66: 1 | M66: =$B$64&" - "&$B$65&" - "&B66 -> Valves - Isolation and Street - Ductile Iron | N66: 1 | O66: 1 | P66: 1 | Q66: 1 | R66: 1 | S66: 1 | T66: 1 | U66: 1 | V66: 1 | W66: 1 | X66: 221.8716456
A67: 4.2 | B67: Motor/Air Operated (on/off) | W67: 0 | X67: 0
A68: 4.2.1 | B68: Booster Pump - Polypropylene/PVC | C68: =total_booster_MOV -> 0 | D68: =IF( C68=0,"", "units") ->  | E68: =IF( C68=0,"NA",valve_size) -> NA | F68: =IF(C68=0,"","in. diam") ->  | G68: =IF(C68=0,"NA",IF(curve=1,E68,VLOOKUP(E68,pp_mov_cost_cl,2))) -> NA | H68: =IF(C68=0,"","in. diam") ->  | I68: =IF(C68=0,"NA",IF(curve=1,pp_mov_eq_booster_pump,VLOOKUP(G68,pp_mov_cost_cl,3))) -> NA | J68: =IF(OR(I68="contact vendor",I68="NA"),"--",C68*I68) -> -- | K68: =IF(I68="NA","N/A",VLOOKUP(G68,pp_mov_cost_cl,IF(ss_cat="large",4,5))) -> N/A | M68: =$B$64&" - "&$B$67&" - "&B68 -> Valves - Motor/Air Operated (on/off) - Booster Pump - Polypropylene/PVC | N68: 1 | O68: 2 | P68: 3 | Q68: 1 | R68: 2 | S68: 3 | T68: 1 | U68: 2 | V68: 3 | W68: 0 | X68: 0
A69: 4.2.1 | B69: Booster Pump - Stainless Steel | C69: =total_booster_MOV -> 0 | E69: NA | G69: =IF(C69=0,"NA",IF(curve=1,E69,VLOOKUP(E69,ss_mov_cost_cl,2))) -> NA | I69: =IF(C69=0,"NA",IF(curve=1,ss_mov_eq_booster_pump,VLOOKUP(G69,ss_mov_cost_cl,3))) -> NA | J69: -- | K69: =IF(I69="NA","N/A",VLOOKUP(G69,ss_mov_cost_cl,IF(ss_cat="large",4,5))) -> N/A | M69: Valves - Motor/Air Operated (on/off) - Booster Pump - Stainless Steel | N69: 3 | O69: 3 | P69: 1 | Q69: 3 | R69: 3 | S69: 1 | T69: 3 | U69: 3 | V69: 1 | W69: 0 | X69: 0
A70: 4.2.1 | B70: Booster Pump - Cast Iron | C70: =total_booster_MOV -> 0 | E70: NA | G70: =IF(C70=0,"NA",IF(curve=1,E70,VLOOKUP(E70,ci_mov_cost_cl,2))) -> NA | I70: =IF(C70=0,"NA",IF(curve=1,ci_mov_eq_booster_pump,VLOOKUP(G70,ci_mov_cost_cl,3))) -> NA | J70: -- | K70: =IF(I70="NA","N/A",VLOOKUP(G70,ci_mov_cost_cl,IF(ss_cat="large",4,5))) -> N/A | M70: Valves - Motor/Air Operated (on/off) - Booster Pump - Cast Iron | N70: 2 | O70: 1 | P70: 2 | Q70: 2 | R70: 1 | S70: 2 | T70: 2 | U70: 1 | V70: 2 | W70: 0 | X70: 0
A71: 4.2.2 | B71: Well Pump - Polypropylene/PVC | C71: =total_well_MOV -> 0 | E71: NA | G71: =IF(C71=0,"NA",IF(curve=1,E71,VLOOKUP(E71,pp_mov_cost_cl,2))) -> NA | I71: =IF(C71=0,"NA",IF(curve=1,pp_mov_eq_well_pump,VLOOKUP(G71,pp_mov_cost_cl,3))) -> NA | J71: -- | K71: =IF(I71="NA","N/A",VLOOKUP(G71,pp_mov_cost_cl,IF(ss_cat="large",4,5))) -> N/A | M71: Valves - Motor/Air Operated (on/off) - Well Pump - Polypropylene/PVC | N71: 1 | O71: 2 | P71: 3 | Q71: 1 | R71: 2 | S71: 3 | T71: 1 | U71: 2 | V71: 3 | W71: 0 | X71: 0
A72: 4.2.2 | B72: Well Pump - Stainless Steel | C72: =total_well_MOV -> 0 | E72: NA | G72: =IF(C72=0,"NA",IF(curve=1,E72,VLOOKUP(E72,ss_mov_cost_cl,2))) -> NA | I72: =IF(C72=0,"NA",IF(curve=1,ss_mov_eq_well_pump,VLOOKUP(G72,ss_mov_cost_cl,3))) -> NA | J72: -- | K72: =IF(I72="NA","N/A",VLOOKUP(G72,ss_mov_cost_cl,IF(ss_cat="large",4,5))) -> N/A | M72: Valves - Motor/Air Operated (on/off) - Well Pump - Stainless Steel | N72: 3 | O72: 3 | P72: 1 | Q72: 3 | R72: 3 | S72: 1 | T72: 3 | U72: 3 | V72: 1 | W72: 0 | X72: 0
A73: 4.2.2 | B73: Well Pump - Cast Iron | C73: =total_well_MOV -> 0 | E73: NA | G73: =IF(C73=0,"NA",IF(curve=1,E73,VLOOKUP(E73,ci_mov_cost_cl,2))) -> NA | I73: =IF(C73=0,"NA",IF(curve=1,ci_mov_eq_well_pump,VLOOKUP(G73,ci_mov_cost_cl,3))) -> NA | J73: -- | K73: =IF(I73="NA","N/A",VLOOKUP(G73,ci_mov_cost_cl,IF(ss_cat="large",4,5))) -> N/A | M73: Valves - Motor/Air Operated (on/off) - Well Pump - Cast Iron | N73: 2 | O73: 1 | P73: 2 | Q73: 2 | R73: 1 | S73: 2 | T73: 2 | U73: 1 | V73: 2 | W73: 0 | X73: 0
A74: 4.3 | B74: Manual | W74: 0 | X74: 0
A75: 4.3.1 | B75: Booster Pump - Polypropylene/PVC | C75: =total_booster_man -> 0 | D75: =IF( C75=0,"", "units") ->  | E75: =IF( C75=0,"NA",valve_size) -> NA | F75: =IF(C75=0,"","in. diam") ->  | G75: =IF(C75=0,"NA",IF(curve=1,E75,VLOOKUP(E75,pp_man_cost_cl,2))) -> NA | H75: =IF(C75=0,"","in. diam") ->  | I75: =IF(C75=0,"NA",IF(curve=1,pp_man_eq_booster_pump,VLOOKUP(G75,pp_man_cost_cl,3))) -> NA | J75: =IF(OR(I75="contact vendor",I75="NA"),"--",C75*I75) -> -- | K75: =IF(I75="NA","N/A",VLOOKUP(G75,pp_man_cost_cl,IF(ss_cat="large",4,5))) -> N/A | M75: =$B$64&" - "&$B$74&" - "&B75 -> Valves - Manual - Booster Pump - Polypropylene/PVC | N75: 1 | O75: 2 | P75: 3 | Q75: 1 | R75: 2 | S75: 3 | T75: 1 | U75: 2 | V75: 3 | W75: 0 | X75: 0
A76: 4.3.1 | B76: Booster Pump - Stainless Steel | C76: =total_booster_man -> 0 | E76: NA | G76: =IF(C76=0,"NA",IF(curve=1,E76,VLOOKUP(E76,ss_man_cost_cl,2))) -> NA | I76: =IF(C76=0,"NA",IF(curve=1,ss_man_eq_booster_pump,VLOOKUP(G76,ss_man_cost_cl,3))) -> NA | J76: -- | K76: =IF(I76="NA","N/A",VLOOKUP(G76,ss_man_cost_cl,IF(ss_cat="large",4,5))) -> N/A | M76: Valves - Manual - Booster Pump - Stainless Steel | N76: 3 | O76: 3 | P76: 1 | Q76: 3 | R76: 3 | S76: 1 | T76: 3 | U76: 3 | V76: 1 | W76: 0 | X76: 0
A77: 4.3.1 | B77: Booster Pump - Cast Iron | C77: =total_booster_man -> 0 | E77: NA | G77: =IF(C77=0,"NA",IF(curve=1,E77,VLOOKUP(E77,ci_bfv_cost_cl,2))) -> NA | I77: =IF(C77=0,"NA",IF(curve=1,ci_man_eq_booster_pump,VLOOKUP(G77,ci_bfv_cost_cl,3))) -> NA | J77: -- | K77: =IF(I77="NA","N/A",VLOOKUP(G77,ci_bfv_cost_cl,IF(ss_cat="large",4,5))) -> N/A | M77: Valves - Manual - Booster Pump - Cast Iron | N77: 2 | O77: 1 | P77: 2 | Q77: 2 | R77: 1 | S77: 2 | T77: 2 | U77: 1 | V77: 2 | W77: 0 | X77: 0
A78: 4.3.2 | B78: Well Pump - Polypropylene/PVC | C78: =total_well_man -> 0 | E78: NA | G78: =IF(C78=0,"NA",IF(curve=1,E78,VLOOKUP(E78,pp_man_cost_cl,2))) -> NA | I78: =IF(C78=0,"NA",IF(curve=1,pp_man_eq_well_pump,VLOOKUP(G78,pp_man_cost_cl,3))) -> NA | J78: -- | K78: =IF(I78="NA","N/A",VLOOKUP(G78,pp_man_cost_cl,IF(ss_cat="large",4,5))) -> N/A | M78: Valves - Manual - Well Pump - Polypropylene/PVC | N78: 1 | O78: 2 | P78: 3 | Q78: 1 | R78: 2 | S78: 3 | T78: 1 | U78: 2 | V78: 3 | W78: 0 | X78: 0
A79: 4.3.2 | B79: Well Pump - Stainless Steel | C79: =total_well_man -> 0 | E79: NA | G79: =IF(C79=0,"NA",IF(curve=1,E79,VLOOKUP(E79,ss_man_cost_cl,2))) -> NA | I79: =IF(C79=0,"NA",IF(curve=1,ss_man_eq_well_pump,VLOOKUP(G79,ss_man_cost_cl,3))) -> NA | J79: -- | K79: =IF(I79="NA","N/A",VLOOKUP(G79,ss_man_cost_cl,IF(ss_cat="large",4,5))) -> N/A | M79: Valves - Manual - Well Pump - Stainless Steel | N79: 3 | O79: 3 | P79: 1 | Q79: 3 | R79: 3 | S79: 1 | T79: 3 | U79: 3 | V79: 1 | W79: 0 | X79: 0
A80: 4.3.2 | B80: Well Pump - Cast Iron | C80: =total_well_man -> 0 | E80: NA | G80: =IF(C80=0,"NA",IF(curve=1,E80,VLOOKUP(E80,ci_bfv_cost_cl,2))) -> NA | I80: =IF(C80=0,"NA",IF(curve=1,ci_man_eq_well_pump,VLOOKUP(G80,ci_bfv_cost_cl,3))) -> NA | J80: -- | K80: =IF(I80="NA","N/A",VLOOKUP(G80,ci_bfv_cost_cl,IF(ss_cat="large",4,5))) -> N/A | M80: Valves - Manual - Well Pump - Cast Iron | N80: 2 | O80: 1 | P80: 2 | Q80: 2 | R80: 1 | S80: 2 | T80: 2 | U80: 1 | V80: 2 | W80: 0 | X80: 0
A81: 4.4 | B81: Control | W81: 0 | X81: 0
A82: 4.4.1 | B82: Pressure Reducing | C82: =num_PRVs -> 0 | D82: units | E82: =IF(C82=0,"NA",PRV_size) -> NA | F82: =IF(C82=0,"","in. diam") ->  | G82: =IF(C82=0,"NA",IF(curve=1,PRV_size,VLOOKUP(PRV_size,PRV_cost_cl,2))) -> NA | H82: =IF(C82=0,"","in. diam") ->  | I82: =IF(C82=0,"NA",IF(curve=1,prv_eq,VLOOKUP(PRV_size,PRV_cost_cl,3))) -> NA | J82: =IF(OR(I82="contact vendor",I82="NA"),"--",C82*I82) -> -- | K82: =IF(I82="NA","N/A",VLOOKUP(PRV_size,PRV_cost_cl,IF(ss_cat="large",4,5))) -> N/A | M82: =$B$64&" - "&$B$81&" - "&B82 -> Valves - Control - Pressure Reducing | N82: 1 | O82: 1 | P82: 1 | Q82: 1 | R82: 1 | S82: 1 | T82: 1 | U82: 1 | V82: 1 | W82: 0 | X82: 0
A83: 5 | B83: Pumps | W83: 0 | X83: 0
A84: 5.1 | B84: Interconnect Booster Pump | C84: =total_booster_pumps -> 0 | D84: units | E84: =IF(C84=0,"NA",booster_pump_rating) -> NA | F84: =IF(C84=0,"","gpm") ->  | G84: =IF(C84=0,"NA",IF(curve=1,booster_pump_rating,booster_pump_size_used)) -> NA | H84: =IF(C84=0,"","gpm") ->  | I84: =IF(C84=0,"NA",IF(booster_pump_rating=0,"-",IF(curve=1,int_booster_pump_eq,booster_pump_cost))) -> NA | J84: =IF(OR(I84="contact vendor",I84="NA"),"--",C84*I84) -> -- | K84: =IF(C84=0,"N/A",VLOOKUP(booster_pump_rating,pump_cost_cl,IF(ss_cat="large",4,5))) -> N/A | M84: =$B$83&" - "&B84 -> Pumps - Interconnect Booster Pump | N84: 1 | O84: 1 | P84: 1 | Q84: 1 | R84: 1 | S84: 1 | T84: 1 | U84: 1 | V84: 1 | W84: 0 | X84: 0
A85: 5.2 | B85: Well Pump | C85: =well_pumps -> 0 | D85: units | E85: =IF(C85=0,"NA",well_pump_hp) -> NA | F85: =IF(C85=0,"","hp") ->  | G85: =IF(C85=0,"NA",VLOOKUP(E85,well_pump_cost_cl,2)) -> NA | H85: =IF(C85=0,"","hp") ->  | I85: =IF(C85=0,"NA",VLOOKUP(G85,well_pump_cost_cl,3)) -> NA | J85: =IF(OR(I85="contact vendor",I85="NA"),"--",C85*I85) -> -- | K85: =IF(I85="NA","N/A",VLOOKUP(G85,well_pump_cost_cl,IF(ss_cat="large",4,5))) -> N/A | M85: =$B$83&" - "&B85 -> Pumps - Well Pump | N85: 1 | O85: 1 | P85: 1 | Q85: 1 | R85: 1 | S85: 1 | T85: 1 | U85: 1 | V85: 1 | W85: 0 | X85: 0
A86: 6 | B86: Instrumentation | W86: 0 | X86: 0
A87: 6.1 | B87: Flow Meters - Interconnect | W87: 0 | X87: 0
A88: 6.1.1 | B88: Orifice Plate | C88: =IF( interconnect_meter_size=0,0,1) -> 1 | D88: units | E88: =IF(C88=0,"NA",interconnect_meter_size) -> 2 | F88: =IF(C88=0,"","in. diam") -> in. diam | G88: =IF(curve=1,E88,VLOOKUP(E88,op_fm_cost_cl,2)) -> 2 | H88: =IF(C88=0,"","in. diam") -> in. diam | I88: =IF(C88=0,"NA", IF(curve=1,op_fm_eq_innterconnect,VLOOKUP(G88,op_fm_cost_cl,3))) -> 3282.386002 | J88: =IF(OR(I88="contact vendor",I88="NA"),"--",C88*I88) -> 3282.386002 | K88: =IF( I88="NA","NA",VLOOKUP(G88,op_fm_cost_cl,IF(ss_cat="large",4,5))) -> 14 | L88: 0 | M88: =$B$86&" - "&$B$87&" - "&B88 -> Instrumentation - Flow Meters - Interconnect - Orifice Plate | N88: 3 | O88: 4 | P88: 4 | Q88: 3 | R88: 4 | S88: 4 | T88: 3 | U88: 3 | V88: 4 | W88: 0 | X88: 0
A89: 6.1.1 | B89: Propeller | C89: =IF( interconnect_meter_size=0,0,1) -> 1 | D89: units | E89: =IF(C89=0,"NA",interconnect_meter_size) -> 2 | F89: =IF(C89=0,"","in. diam") -> in. diam | G89: =IF(curve=1,E89,VLOOKUP(E89,prop_fm_cost_cl,2)) -> 2 | H89: =IF(C89=0,"","in. diam") -> in. diam | I89: =IF(C89=0,"NA", IF(curve=1,prop_fm_eq_innterconnect,VLOOKUP(G89,prop_fm_cost_cl,3))) -> 2625.337525 | J89: =IF(OR(I89="contact vendor",I89="NA"),"--",C89*I89) -> 2625.337525 | K89: =IF(I89="NA","NA",VLOOKUP(G89,prop_fm_cost_cl,IF(ss_cat="large",4,5))) -> 14 | L89: 1 | M89: =$B$86&" - "&$B$87&" - "&B89 -> Instrumentation - Flow Meters - Interconnect - Propeller | N89: 1 | O89: 2 | P89: 3 | Q89: 1 | R89: 2 | S89: 3 | T89: 4 | U89: 4 | V89: 2 | W89: 1 | X89: 187.5241089
A90: 6.1.1 | B90: Venturi | C90: =IF( interconnect_meter_size=0,0,1) -> 1 | D90: units | E90: =IF(C90=0,"NA",interconnect_meter_size) -> 2 | F90: =IF(C90=0,"","in. diam") -> in. diam | G90: =IF(curve=1,E90,VLOOKUP(E90,ven_fm_cost_cl,2)) -> 2 | H90: =IF(C90=0,"","in. diam") -> in. diam | I90: =IF(C90=0,"NA", IF(curve=1,ven_fm_eq_innterconnect,VLOOKUP(G90,ven_fm_cost_cl,3))) -> 5578.72901 | J90: =IF(OR(I90="contact vendor",I90="NA"),"--",C90*I90) -> 5578.72901 | K90: =IF(I90="NA","NA",VLOOKUP(G90,ven_fm_cost_cl,IF(ss_cat="large",4,5))) -> 14 | L90: 0 | M90: =$B$86&" - "&$B$87&" - "&B90 -> Instrumentation - Flow Meters - Interconnect - Venturi | N90: 2 | O90: 1 | P90: 2 | Q90: 2 | R90: 1 | S90: 2 | T90: 1 | U90: 2 | V90: 3 | W90: 0 | X90: 0
A91: 6.1.1 | B91: Magnetic | C91: =IF( interconnect_meter_size=0,0,1) -> 1 | D91: units | E91: =IF(C91=0,"NA",interconnect_meter_size) -> 2 | F91: =IF(C91=0,"","in. diam") -> in. diam | G91: =IF(curve=1,E91,VLOOKUP(E91,mag_fm_cost_cl,2)) -> 2 | H91: =IF(C91=0,"","in. diam") -> in. diam | I91: =IF(C91=0,"NA", IF(curve=1,mag_fm_eq_innterconnect,VLOOKUP(G91,mag_fm_cost_cl,3))) -> 4230.640785 | J91: =IF(OR(I91="contact vendor",I91="NA"),"--",C91*I91) -> 4230.640785 | K91: =IF(I91="NA","NA",VLOOKUP(G91,mag_fm_cost_cl,IF(ss_cat="large",4,5))) -> 14 | L91: 0 | M91: =$B$86&" - "&$B$87&" - "&B91 -> Instrumentation - Flow Meters - Interconnect - Magnetic | N91: 4 | O91: 3 | P91: 1 | Q91: 4 | R91: 3 | S91: 1 | T91: 2 | U91: 1 | V91: 1 | W91: 0 | X91: 0
A92: 6.2 | B92: Flow Meters - Well
A93: 6.2.1 | B93: Orifice Plate | C93: =IF( well_meter_size=0,0,1) -> 0 | D93: units | E93: =IF(C93=0,"NA",well_meter_size) -> NA | F93: =IF(C93=0,"","in. diam") ->  | G93: =IF(curve=1,E93,VLOOKUP(E93,op_fm_cost_cl,2)) -> NA | H93: =IF(C93=0,"","in. diam") ->  | I93: =IF(C93=0,"NA", IF(curve=1,op_fm_eq_well,VLOOKUP(G93,op_fm_cost_cl,3))) -> NA | J93: =IF(OR(I93="contact vendor",I93="NA"),"--",C93*I93) -> -- | K93: =IF( I93="NA","NA",VLOOKUP(G93,op_fm_cost_cl,IF(ss_cat="large",4,5))) -> NA | M93: =$B$86&" - "&$B$92&" - "&B93 -> Instrumentation - Flow Meters - Well - Orifice Plate | N93: 3 | O93: 4 | P93: 4 | Q93: 3 | R93: 4 | S93: 4 | T93: 3 | U93: 3 | V93: 4 | W93: =IF(ISERROR(K93*L93),0,IF(K93<1,0,L93)) -> 0 | X93: =IF(W93,J93/K93,0) -> 0
A94: 6.2.1 | B94: Propeller | C94: =IF( well_meter_size=0,0,1) -> 0 | D94: units | E94: =IF(C94=0,"NA",well_meter_size) -> NA | F94: =IF(C94=0,"","in. diam") ->  | G94: =IF(curve=1,E94,VLOOKUP(E94,prop_fm_cost_cl,2)) -> NA | H94: =IF(C94=0,"","in. diam") ->  | I94: =IF(C94=0,"NA", IF(curve=1,prop_fm_eq_well,VLOOKUP(G94,prop_fm_cost_cl,3))) -> NA | J94: =IF(OR(I94="contact vendor",I94="NA"),"--",C94*I94) -> -- | K94: =IF(I94="NA","NA",VLOOKUP(G94,prop_fm_cost_cl,IF(ss_cat="large",4,5))) -> NA | M94: =$B$86&" - "&$B$92&" - "&B94 -> Instrumentation - Flow Meters - Well - Propeller | N94: 1 | O94: 2 | P94: 3 | Q94: 1 | R94: 2 | S94: 3 | T94: 4 | U94: 4 | V94: 2 | W94: 0 | X94: 0
A95: 6.2.1 | B95: Venturi | C95: =IF( well_meter_size=0,0,1) -> 0 | D95: units | E95: =IF(C95=0,"NA",well_meter_size) -> NA | F95: =IF(C95=0,"","in. diam") ->  | G95: =IF(curve=1,E95,VLOOKUP(E95,ven_fm_cost_cl,2)) -> NA | H95: =IF(C95=0,"","in. diam") ->  | I95: =IF(C95=0,"NA", IF(curve=1,ven_fm_eq_well,VLOOKUP(G95,ven_fm_cost_cl,3))) -> NA | J95: =IF(OR(I95="contact vendor",I95="NA"),"--",C95*I95) -> -- | K95: =IF(I95="NA","NA",VLOOKUP(G95,ven_fm_cost_cl,IF(ss_cat="large",4,5))) -> NA | M95: =$B$86&" - "&$B$92&" - "&B95 -> Instrumentation - Flow Meters - Well - Venturi | N95: 2 | O95: 1 | P95: 2 | Q95: 2 | R95: 1 | S95: 2 | T95: 1 | U95: 2 | V95: 3 | W95: 0 | X95: 0
A96: 6.2.1 | B96: Magnetic | C96: =IF( well_meter_size=0,0,1) -> 0 | D96: units | E96: =IF(C96=0,"NA",well_meter_size) -> NA | F96: =IF(C96=0,"","in. diam") ->  | G96: =IF(curve=1,E96,VLOOKUP(E96,mag_fm_cost_cl,2)) -> NA | H96: =IF(C96=0,"","in. diam") ->  | I96: =IF(C96=0,"NA", IF(curve=1,mag_fm_eq_well,VLOOKUP(G96,mag_fm_cost_cl,3))) -> NA | J96: =IF(OR(I96="contact vendor",I96="NA"),"--",C96*I96) -> -- | K96: =IF(I96="NA","NA",VLOOKUP(G96,mag_fm_cost_cl,IF(ss_cat="large",4,5))) -> NA | M96: =$B$86&" - "&$B$92&" - "&B96 -> Instrumentation - Flow Meters - Well - Magnetic | N96: 4 | O96: 3 | P96: 1 | Q96: 4 | R96: 3 | S96: 1 | T96: 2 | U96: 1 | V96: 1 | W96: 0 | X96: 0
A97: 7 | B97: System Controls | W97: 0 | X97: 0
A98: 7.1 | B98: Remote Telemetry Units (RTUs) | C98: =total_RTU -> 1 | D98: units | E98: NA | G98: NA | I98: =IF(C98=0,"NA",VLOOKUP(0,RTU_cost_cl,3)) -> 1030.74 | J98: =IF(OR(I98="contact vendor",I98="NA"),"--",C98*I98) -> 1030.74 | K98: =IF(I98="NA","N/A",VLOOKUP(0,RTU_cost_cl,IF(ss_cat="large",4,5))) -> 8 | L98: 1 | M98: =$B$97&" - "&B98 -> System Controls - Remote Telemetry Units (RTUs) | N98: 1 | O98: 1 | P98: 1 | Q98: 1 | R98: 1 | S98: 1 | T98: 1 | U98: 1 | V98: 1 | W98: 1 | X98: 128.8425
A99: 7.2 | B99: Well Pump - Soft Start Control | C99: =tot_soft_start -> 0 | D99: units | E99: NA | G99: NA | I99: =IF(C99=0,"NA",VLOOKUP(0,soft_start_cost_cl,3)) -> NA | J99: =IF(OR(I99="contact vendor",I99="NA"),"--",C99*I99) -> -- | K99: =IF(I99="NA","N/A",VLOOKUP(0,soft_start_cost_cl,IF(ss_cat="large",4,5))) -> N/A | M99: =$B$97&" - "&B99 -> System Controls - Well Pump - Soft Start Control | N99: 1 | O99: 1 | P99: 1 | Q99: 1 | R99: 1 | S99: 1 | T99: 1 | U99: 1 | V99: 1 | W99: =IF(ISERROR(K99*L99),0,IF(K99<1,0,L99)) -> 0 | X99: =IF(W99,J99/K99,0) -> 0
A100: 8 | B100: Building Structures | W100: 0 | X100: 0
A101: 8.1 | B101: Building 1 | W101: 0 | X101: 0
A102: 8.1.1 | B102: Small Low Cost Shed | C102: =IF(AND(build1_fp>0,build1_fp<500),1,0) -> 0 | D102: units | E102: =IF(C102=0,"NA",build1_fp) -> NA | F102: =IF(C102=0,"","sf") ->  | G102: =IF(C102=0,"NA",build1_fp) -> NA | H102: =IF(C102=0,"","sf") ->  | I102: =IF(C102=0,"NA",VLOOKUP(build1_fp,bldg_shed_cost_cl,3)) -> NA | J102: =IF(OR(I102="contact vendor",I102="NA"),"--",G102*I102) -> -- | K102: =IF($C102=0,"N/A",VLOOKUP(build1_fp,bldg_shed_cost_cl,IF(ss_cat="large",4,5))) -> N/A | M102: =$B$100&" - "&$B$101&" - "&B102 -> Building Structures - Building 1 - Small Low Cost Shed | N102: =IF(include_buildings=1,1,0) -> 0 | O102: 0 | P102: 0 | Q102: 0 | R102: 0 | S102: 0 | T102: 0 | U102: 0 | V102: 0 | W102: 0 | X102: 0 | Y102: =IF(W102,K102,0) -> 0
A103: 8.1.1 | B103: Low Quality | C103: =IF(build1_fp>=500,1,0) -> 0 | D103: units | E103: =build1_fp -> 0 | F103: sf | G103: =build1_fp -> 0 | H103: sf | I103: =IF(C103=0,"NA",IF(curve=1,bldg_lo_eq_1,VLOOKUP(build1_fp, bldg_lo_cost_cl,3))) -> NA | J103: =IF(OR(I103="NA",I103="contact vendor"),"--",G103*I103) -> -- | K103: =IF($C103=0,"N/A",VLOOKUP(build1_fp,bldg_lo_cost_cl,IF(ss_cat="large",4,5))) -> N/A | M103: =$B$100&" - "&$B$101&" - "&B103 -> Building Structures - Building 1 - Low Quality | N103: 0 | O103: 0 | P103: 0 | Q103: 0 | R103: 0 | S103: 0 | T103: 0 | U103: 0 | V103: 0 | W103: 0 | X103: 0 | Y103: =IF(W103,K103,0) -> 0
W104: direct_for_UL | X104: total_direct_depreciation | Y104: build_UL
A105: Total of direct line items above: | W105: =SUMPRODUCT(W30:W103,J30:J103) -> 212109.925 | X105: =SUM(X30:X103) -> 12539.20382 | Y105: =MAX(Y37:Y38,Y54:Y55,Y33:Y35,Y30:Y31) -> 17
B106: Direct cost category | C106: Total | D106: Guidance
B107: Process costs | C107: =SUMPRODUCT(J29:J98,L29:L98) -> 212109.925 | D107: Excludes components in italics (which are alternate costs for comparison). Includes installation, transportation, and O&P
B108: Building costs | C108: =SUMPRODUCT(J102:J103,L102:L103) -> 0 | D108: See indirect assumptions sheet to exclude buildings
B109: Total direct capital cost | C109: =process_cost+building_cost -> 212109.925 | D109: Total of process costs
A111: Add-on Cost Details (See indirect assumptions sheet to exclude individual add-on items)
B112: Add-on Line Item | C112: Total | D112: Guidance
B113: Permits | C113: =permit_cost -> 0 | D113: For building permits
B114: Pilot Study | C114: 0 | D114: No pilot study needed for this technology
B115: Land Cost | C115: =include_land*land_required*land_cost -> 0 | D115: ="For "&TEXT(land_required,"#0.000")&" acres" -> For 0.000 acres
B116: Total add-on costs | C116: =SUM(C113:C115) -> 0
A118: Indirect Capital Cost Details (See indirect assumptions sheet to exclude individual indirect items)
B119: Indirect Line Item | C119: Total | D119: Percent | E119: Guidance
B120: Mobilization and Demobilization | C120: =(direct_cost+C122+C123+C124+C125+C126+C127+C128+C131)*D120 -> 11666.04588 | D120: =CHOOSE(ss_cat2,mob_pct_small,mob_pct_medium,mob_pct_large) -> 0.05
B121: Architectural Fees for Treatment Building | C121: =IF(ss_cat2=1,include_arch_small,include_arch)*D121*building_cost -> 0 | D121: =VLOOKUP(building_cost,architectural_table_cl,3) -> 0.09 | E121: Excluded by default for small systems
B122: Installation, Transportation, and O&P | C122: =direct_cost*D122 -> 0 | D122: =inst_pct -> 0
B123: Site Work | C123: =include_sitework*sitework_cost -> 0 | E123: Calculated based on system requirements.
B124: Yard Piping | C124: =0 -> 0 | E124: Not included in this technology
B125: Geotechnical | C125: =IF(component_level="",include_geo_low,IF(component_level=1,include_geo_medium,include_geo_high)) *geotech_cost -> 0 | E125: Calculated based on system requirements.
B126: Standby Power | C126: =IF(ss_cat2=1,include_standby_small,include_standby)*std_power_cost -> 0 | E126: Calculated based on system requirements. Excluded by default for small systems
B127: Electrical (including yard wiring) | C127: =IF(OR(C84>0,C85>0),process_cost*D127,0) -> 0 | D127: =elect_pct -> 0.1 | E127: Percentage is applied only to process cost. Building direct costs include electrical components.
B128: Instrumentation and Control | C128: =direct_cost*D128 -> 0 | D128: =i_c_pct -> 0
B129: Contingency | C129: =IF(component_level="",include_conting_low,IF(component_level=1,include_conting_medium,include_conting_high))*(direct_cost+addon_cost+SUM(C120:C128,C130:C135))*D129 -> 0 | D129: =IF(component_level="",include_conting_low,IF(component_level=1,include_conting_medium,include_conting_high))*VLOOKUP(direct_cost,contingency_table_cl,3)*complexity -> 0 | E129: Included for high cost systems only.
B130: Process Engineering | C130: =direct_cost*D130 -> 42421.985 | D130: =CHOOSE(ss_cat2,eng_pct_small,eng_pct_medium,eng_pct_large) -> 0.2
B131: Miscellaneous Allowance | C131: =direct_cost*D131 -> 21210.9925 | D131: =misc_pct -> 0.1 | E131: =IF(design=1, "Includes interconnection pipe fittings","") -> Includes interconnection pipe fittings
B132: Legal, Fiscal, and Administrative | C132: =direct_cost*D132 -> 4242.1985 | D132: =legal_pct -> 0.02
B133: Sales Tax | C133: =direct_cost*D133 -> 0 | D133: =tax_pct -> 0
B134: Financing during Construction | C134: =direct_cost*D134 -> 0 | D134: =IF(ss_cat2=1,finance_pct_small,finance_pct) -> 0
B135: Construction Management and GC Overhead | C135: =cm_cost -> 23992.71587
B136: Total indirect capital cost | C136: =indirect_cost_mult*direct_cost+indirect_cost_add -> 103533.9377 | E136: Total of indirect line items
A138: TOTAL CAPITAL COST DETAILS
B139: Assumption | C139: Value | D139: Guidance
B140: City Index | C140: 1 | D140: User adjustable. Can be used to adjust estimated costs to be more reflective of a specific geographical location
B142: Total Direct Capital Cost (from above) | C142: =direct_cost -> 212109.925
B143: Total Add-on Cost (from above) | C143: =addon_cost -> 0
B144: Total Indirect Cost (from above) | C144: =C136 -> 103533.9377
B145: Grand total capital cost (incorporating city index) | C145: =(direct_cost*(1+SUM(cul_indir_mult_table))+SUM(cul_indir_add_table))*city_index -> 315643.8628
A147: Annual Operating and Maintenance Cost Details (items in italics, without a 1 in the "Use?" column, represent alternate costs and are excluded from total)
B148: Item | C148: Quantity | E148: Unit Cost | G148: Total Cost | H148: Use? | I148: Guidance
B149: Labor
B150: Manager | C150: =Manager_LOE -> 4.858333333 | D150: hrs/yr | E150: =VLOOKUP(design_flow,labor_table_cl,5) -> 45.23962688 | F150: /hr | G150: =E150*C150 -> 219.7891873 | H150: =IF(C150=0,0,1) -> 1
B151: Administrative | C151: =Clerical_LOE -> 4.858333333 | D151: hrs/yr | E151: =VLOOKUP(design_flow,labor_table_cl,4) -> 31.91489117 | F151: /hr | G151: =E151*C151 -> 155.0531796 | H151: =IF(C151=0,0,1) -> 1
B152: Operator | C152: =Operator_LOE -> 48.58333333 | D152: hrs/yr | E152: =VLOOKUP(design_flow,labor_table_cl,6) -> 30.4776465 | F152: /hr | G152: =E152*C152 -> 1480.705659 | H152: =IF(C152=0,0,1) -> 1 | I152: Includes labor for regular operations, maintenance, regeneration, etc.
B153: Materials
B154: Building maintenance (materials and labor) | C154: =total_fp -> 0 | D154: sf | E154: =IF(C154=0,0,G154/C154) -> 0 | F154: /sf/yr | G154: =bldg_maint_cost -> 0 | H154: =IF(G154=0,0,1) -> 0
B155: Purchased Water | C155: =IF(design=1, average_flow,0)* day_per_year *1000 -> 2555 | D155: K gal | E155: =water_cost_I -> 2 | F155: K gal | G155: =C155 * E155 -> 5110 | H155: =IF(C155>0,1,0) -> 1
B156: Booster pump | C156: calculated as a percentage of capital | G156: =pump_materials -> 0 | H156: =IF(C156>0,1,0) -> 1
B157: Well pump | C157: calculated as a percentage of capital | G157: =well_pump_materials -> 0 | H157: =IF(C157>0,1,0) -> 1
B158: Energy
B159: Energy for booster pumps | C159: =booster_pump_energy -> 0 | D159: Mwh/yr | E159: =energy_cost_cl -> 0.1212183206 | F159: /kwh | G159: =E159*C159*1000 -> 0 | H159: =IF(C159=0,0,1) -> 0
B160: Energy for well pumps | C160: =well_pump_energy -> 0 | D160: Mwh/yr | E160: =energy_cost_cl -> 0.1212183206 | F160: /kwh | G160: =E160*C160*1000 -> 0 | H160: =IF(C160=0,0,1) -> 0
B161: Miscellaneous Allowance | C161: =misc_pct -> 0.1 | G161: =SUMPRODUCT(G150:G160,H150:H160)*C161 -> 696.5548026 | H161: 1
B162: Total Annual O&M Cost | G162: =SUMPRODUCT(G150:G161,H150:H161) -> 7662.102828
A164: ANNUALIZED COSTS
B165: Assumption | C165: Value | D165: Guidance
B166: Discount rate | C166: 0.07 | D166: User adjustable
B167: Calculate households based on: | C167: ground water | D167: User adjustable
B168: Household size (people per household) | C168: 2.6 | D168: User adjustable
B170: Calculation | C170: Value | D170: Units
B171: Useful Life (Reciprocal Weighted Average) | C171: =ROUND((direct_for_UL+IF(build_UL=0,0,addon_cost+indirect_cost))/(total_direct_depreciation+IF(build_UL=0,0,(addon_cost+indirect_cost)/build_UL)),1) -> 16.9 | D171: years
B172: Number of households served | C172: =IF(source_select="ground water",(average_flow*1000/0.08558)^(1/1.0584),(average_flow*1000/0.14004)^(1/0.99703))/hh_size -> 24.6724764 | D172: households
B173: Annualized Capital Cost | C173: =-PMT(Discount_rate,useful_life,system_cost) -> 32431.87177 | D173: /year
B174: Annual O&M Cost | C174: =om_cost -> 7662.102828 | D174: /year
B175: Total Annualized Cost | C175: =C173+C174 -> 40093.9746 | D175: /year
B176: Annualized cost per 1,000 gallons average flow | C176: =Annualized_Cost/(average_flow*365*1000) -> 15.69235796 | D176: /kgal
B177: Annualized cost per household | C177: =Annualized_Cost/households -> 1625.048655 | D177: /household/year
A179: Internal use
B180: Mobilization and Demobilization | C180: =C120 -> 11666.04588
B181: Architectural Fees for Treatment Building | C181: =C121 -> 0
B182: Installation, Transportation, and O&P | C182: =D122 -> 0
B183: Site Work | C183: =C123 -> 0
B184: Yard Piping | C184: =C124 -> 0
B185: Geotechnical | C185: =C125 -> 0
B186: Standby Power | C186: =C126 -> 0
B187: Electrical (including yard wiring) | C187: =C127 -> 0
B188: Instrumentation and Control | C188: =D128 -> 0
B189: Contingency | C189: =C129 -> 0
B190: Process Engineering | C190: =C130 -> 42421.985
B191: Miscellaneous Allowance | C191: =D131 -> 0.1
B192: Legal, Fiscal, and Administrative | C192: =D132 -> 0.02
B193: Sales Tax | C193: =D133 -> 0
B194: Financing during Construction | C194: =D134 -> 0
B195: Construction Management and GC Overhead | C195: =C135 -> 23992.71587
B196: Indirect cost multiplier | C196: =SUM(cul_indir_mult_table) -> 0.12
B197: Indirect costs added | C197: =SUM(cul_indir_add_table)-addon_cost -> 78080.74675
B198: Subtotal indirect and add-on cost | C198: =C136+addon_cost -> 103533.9377
B200: Validity Checks | C200: =INPUT!$C$28 -> TRUE | D200: =INPUT!$C$35 -> TRUE | E200: =INPUT!$C$42 -> TRUE | F200: =INPUT!$C$43 -> TRUE | G200: =INPUT!$C$52 -> TRUE
B201: Missing Cost?: | C201: =IF(COUNTIF(use_column,"x")>0,TRUE,FALSE) -> FALSE
B202: Buildup Error? | C202: =IF(COUNTIF(use_column,"ec")+COUNTIF(use_column,"ep")>0,TRUE,FALSE) -> FALSE

Sheet Critical Design Assumptions
A1: Default Critical Design Assumptions
A2: Users may change any of the cells in the Value column; cells in gold are most important and may vary based on contaminant treated and site-specific conditions
A4: Assumption | B4: Range Name | C4: Value | D4: Units | E4: Guidance
A5: Cost estimating method | B5: curve | C5: 1 | D5: <-- enter 1 to use cost equations, leave blank to use lookup tables for component costs | E5: Keeping this assumption with a value of 1 is strongly recommended; the cost equations method is more appropriate for national cost estimating and will be more accurate for nearly all user-specified designs
A7: Minimum Pipe size | B7: min_pipe_size | C7: 2 | D7: in
A8: Minimum average flow as percentage of design | B8: min_avg_flow | C8: 0.1 | E8: The minimum ratio of average flow to design flow. If the ratio falls below this value, it will trigger a warning on the INPUT sheet. If this value is zero, no minimum is enforced.
A10: Minimum number of valves (isolation PRV, street) | B10: min_valves | C10: 2 | D10: each
A11: Spacing for valves | B11: valve_spacing | C11: 1000 | D11: ft
A12: Valves per pump (booster and well) | B12: valve_per_pump | C12: 2 | D12: each
A13: Valves per PRV | B13: valve_per_PRV | C13: 2 | D13: each
A15: Safety factor for pumps | B15: pump_safety_factor | C15: 0.25
A16: Number of redundant booster pumps | B16: NRD_booster_pumps | C16: 0
A17: Access space for pumps and PRVs | B17: space_pumps | C17: 4 | D17: feet | E17: Provide a minimum of 3 ft (1 m) of clear space around each item of equipment (American Water Works Association and American Society of Civil Engineers. Water Treatment Plant Design. Third Edition. New York: McGraw Hill, 1998. Pp. 695).
A18: Number of redundant PRVs | B18: NRD_PRVs | C18: 0
A19: Minimum number of PRVs | B19: min_num_PRVs | C19: 1 | E19: If pressure reduction is required
A20: Include well pump soft start? | B20: soft_start | C20: 1 | E20: 1 for yes, 0 for no
A22: Well Design
A23: Thickness of gravel pack | B23: gravel_thickness | C23: 3 | D23: inches
A24: Thickness of grout seal | B24: grout_thickness | C24: 4 | D24: inches
A25: Depth of grout seal | B25: seal_depth | C25: 30 | D25: feet | E25: typically 30-50 ft depending on local regulations
A26: Screen length to casing length ratio | B26: screen_ration | C26: 0.5 | E26: accounts for small sections of blank casing below and above well screen
A27: water pressure at top of well (for distribution) | B27: supply_head | C27: 69 | D27: feet | E27: 2.31 ft of water per 1 psi
A28: Footprint per well | B28: well_footprint | C28: 200 | D28: sqft
A30: Interconnection Trenching
A31: Frost depth | B31: frost | C31: 38 | D31: inches
A32: Minimum trench depth to top of pipe | B32: min_trench_depth | C32: 36 | D32: inches
A33: Minimum trench width on each side of pipe | B33: min_trench_width | C33: 12 | D33: inches
A34: Asphalt thickness | B34: asphalt_thickness | C34: 4 | D34: inches
A35: Include asphalt patch | B35: asphalt_patch_include | C35: 1 | E35: 1 for yes, 0 for no
A37: Flow meters for interconnect line | B37: fm_interconnect | C37: 1 | D37: units
A38: Flow meters for each well | B38: fm_well | C38: 1 | D38: units
A40: Non fire Buffer for buildings | B40: non_fire_buffer | C40: 100 | D40: feet | E40: 100 feet to account for sanitary control area around wellhead
A41: Fire Buffer for Buildings | B41: fire_buffer | C41: 100 | D41: feet | E41: 100 feet to account for sanitary control area around wellhead
A43: Vault
A44: Vault concrete thickness | B44: vault_concrete_thickness | C44: 6 | D44: inches
A45: Interior hight of vault | B45: vault_interior_height | C45: 8 | D45: ft
A46: Minimum vault cover | B46: vault_min_cover | C46: 1 | D46: ft
A48: I/O Port Table
A49: Full automation includes all inputs and outputs, semi-automated uses inputs only, manual control uses neither
A50: To change the degree of automation, the user may replace the numbers in each of the blue columns.
A51: I/O Ports needed per…. | B51: Lookup name | C51: Discrete Inputs | D51: Discrete Outputs | E51: Analog Inputs | F51: Analog Outputs
A52: Magnetic flow meter | B52: flow_mag | C52: 0 | D52: 0 | E52: 1 | F52: 0
A53: Orifice plate flow meter | B53: flow_op | C53: 0 | D53: 0 | E53: 2 | F53: 1 | G53: Additional analog input because flow meters include pressure gauges
A54: Propeller flow meter | B54: flow_prop | C54: 0 | D54: 0 | E54: 1 | F54: 0
A55: Venturi flow meter | B55: flow_ven | C55: 0 | D55: 0 | E55: 2 | F55: 1 | G55: Additional analog input because flow meters include pressure gauges
A56: Drive Controllers (to operate pump motors, mixers, valves, etc) | B56: switch | C56: 3 | D56: 1 | E56: 0 | F56: 0
A57: Motor/air operated valve | B57: valve | C57: 0 | D57: 0 | E57: 1 | F57: 1

Sheet O&M Assumptions
A1: Default O&M Assumptions
A2: Users may change any of the cells in the Value column
A4: Assumption | B4: Range Name | C4: Value | D4: Units | E4: Guidance
A5: Labor
A6: Mangerial LOE as a percent of average technical labor | B6: Manager_percent | C6: 0.1 | D6: fraction
A7: Administrative LOE as a percent of average technical labor | B7: Clerical_percent | C7: 0.1 | D7: fraction
A9: Operating LOE assumptions
A10: Minutes per valve per week | B10: uloe_valve | C10: 5 | D10: min/week | E10: For manual and semiautomated systems
A11: Minutes per pump per day | B11: uloe_pump | C11: 5 | D11: min/day | E11: For manual and semiautomated systems
A12: Minutes per 100 sf per day | B12: uloe_fp | C12: 1 | D12: min/100 sf/day
A14: Maintenance LOE assumptions
A15: For valves | B15: uloe_valve_maint | C15: 5 | D15: min/year | E15: Applied to main process valves only
A16: For pumps | B16: uloe_pump_maint | C16: 30.25 | D16: hours/year | E16: Based on vendor recommended maintenance activities; applied to large, frequently operated pumps only
A18: Pumping
A19: Pump efficiency for booster pumps | B19: booster_pump_efficiency | C19: 0.75
A20: Cost for parts & maintenance for booster pumps | B20: booster_pump_maintenance | C20: 0.01 | D20: of installed cost | E20: For calculating cost of actual maintenance materials; not to be confused with depreciation. Initial proposed estimate of 5% seems high (Richard E. Hubel, Peter Keenan, American Water Works Service Company, Inc)
A21: Cost for parts & maintenance for well pumps | B21: well_pump_maintenance | C21: 0.01 | D21: of installed cost

Sheet Indirect Assumptions
A1: Default Assumptions for Indirect and Add-On Costs
A2: Users may change any of the cells in the Value column
A4: Assumption | B4: Range Name | C4: Value | D4: Units | E4: Guidance
A5: Mobilization and Demobilization
A6: Mobilization percentage for small systems | B6: mob_pct_small | C6: 0.05 | D6: of direct capital cost | E6: Typically 2-5% of the estimated construction cost. Enter 0% to exclude.
A7: Mobilization percentage for medium systems | B7: mob_pct_medium | C7: 0.04 | D7: of direct capital cost
A8: Mobilization percentage for large systems | B8: mob_pct_large | C8: 0.02 | D8: of direct capital cost
A10: Architectural Fees for Treatment Building
A11: Include architectural fee? | B11: include_arch | C11: 1 | D11: <--- enter 1 for yes, 0 for no | E11: Must be added to building cost. Change for special considerations. Includes structural, mechanical, and electrical engineering for building only.
A12: Include architectural fee for small systems? | B12: include_arch_small | C12: 0 | D12: <--- enter 1 for yes, 0 for no
A14: Installation, Transportatation, and O&P
A15: Installation, Transportatation, and O&P percentage | B15: inst_pct | C15: 0 | D15: of direct capital cost | E15: Included in line item unit costs. Add a percentage for special considerations such as a remote site or high cost location.
A17: Sitework
A18: Include sitework costs? | B18: include_sitework | C18: 1 | D18: <--- enter 1 for yes, 0 for no
A20: Electrical (including yard wiring)
A21: Electrical percentage | B21: elect_pct | C21: 0.1 | D21: of direct cost
A23: Geotechnical
A24: Include geotechnical costs for low cost systems? | B24: include_geo_low | C24: 1 | D24: <--- enter 1 for yes, 0 for no
A25: Include geotechnical costs for medium cost systems? | B25: include_geo_medium | C25: 1 | D25: <--- enter 1 for yes, 0 for no
A26: Include geotechnical costs for high cost systems? | B26: include_geo_high | C26: 1 | D26: <--- enter 1 for yes, 0 for no
A28: Instrumentation and Control
A29: Instrumentation and control percentage | B29: i_c_pct | C29: 0 | D29: of direct cost | E29: Included as a direct cost line item.
A31: Contingency
A32: Include contingency costs for low cost systems? | B32: include_conting_low | C32: 0 | D32: <--- enter 1 for yes, 0 for no
A33: Include contingency costs for medium cost systems? | B33: include_conting_medium | C33: 0 | D33: <--- enter 1 for yes, 0 for no
A34: Include contingency costs for high cost systems? | B34: include_conting_high | C34: 1 | D34: <--- enter 1 for yes, 0 for no
A35: Technology complexity factor | B35: complexity | C35: 0.5 | E35: Technology-specific factor. See Appendices for details. Low complexity = 0.5; Average complexity = 1.0; High complexity = 1.5; Very high complexity = 2.0.
A37: Process Engineering
A38: Engineering percentage for small systems | B38: eng_pct_small | C38: 0.2 | D38: of direct capital cost | E38: Enter 0% to exclude.
A39: Engineering percentage for medium systems | B39: eng_pct_medium | C39: 0.12 | D39: of direct capital cost
A40: Engineering percentage for large systems | B40: eng_pct_large | C40: 0.08 | D40: of direct capital cost
A42: Standby Power
A43: Include standby power costs? | B43: include_standby | C43: 1 | D43: <--- enter 1 for yes, 0 for no
A44: Include standby power costs for small systems? | B44: include_standby_small | C44: 0 | D44: <--- enter 1 for yes, 0 for no
A45: Design safety factor for standby power | B45: std_safety_factor | C45: 0 | E45: Default 0%. Apply a percentage to increase standby power requirements.
A46: Minimum standby power generator size | B46: min_standby | C46: 10 | D46: kW | E46: Minimum size for full standby generators
A48: Miscellaneous Allowance
A49: Miscellaneous allowance percentage | B49: misc_pct | C49: 0.1 | D49: of direct capital cost | E49: Enter 0% to exclude.
A51: Legal, Fiscal, and Administrative
A52: Legal percentage | B52: legal_pct | C52: 0.02 | D52: of direct capital cost | E52: Enter 0% to exclude. Highly site-specific. Can range from 2-5% of equipment, installation, construction, electrical, and standby power. To estimate, add 5% to total estimated construction cost.
A54: Sales Tax
A55: Sales tax percentage | B55: tax_pct | C55: 0 | D55: of direct capital cost | E55: May be exempt if constructed with public funds. May be as high as 7.25% of equipment and construction, with national average 4.75%.
A57: Financing during Construction
A58: Financing percentage | B58: finance_pct | C58: 0.05 | D58: of direct capital cost | E58: Enter 0% to exclude. Typically assumed to be one year's interest on capital cost.
A59: Financing percentage for small systems | B59: finance_pct_small | C59: 0 | D59: of direct capital cost | E59: Small system construction assumed to take less than one year
A61: Construction Management and General Contractor Overhead
A62: Builder's risk insurance percentage | B62: br_ins_pct | C62: 0.0034 | E62: Enter 0% to exclude. 0.34% is national average rate. RSMeans Building Construction Cost Data 2009, reference section R01100-070
A63: Include performance bond cost? | B63: include_bond | C63: 1 | D63: <--- enter 1 for yes, 0 for no
A64: Include construction management cost? | B64: include_cm | C64: 1 | D64: <--- enter 1 for yes, 0 for no

Sheet Well Design
A1: Well Design Module
A3: Calculation | B3: Range Name | C3: Value | D3: Units | E3: Guidance
A4: From Inputs
A5: Design Type | B5: design | C5: 1 | D5: 1 for interconnection, 2 for new well construction
A6: Design Flow | B6: design_flow | C6: =IF(df_units="gpm",design_flow_I*24*60/1000000,design_flow_I) -> 0.03 | D6: MGD
A7: Average Flow | B7: average_flow | C7: =IF(af_units="gpm",average_flow_I*24*60/1000000,IF(af_units="fraction of design flow",average_flow_I*design_flow,average_flow_I)) -> 0.007 | D7: MGD
A8: Design Flow Rate | B8: design_flow_rate | C8: =design_flow*1000000/(24*60) -> 20.83333333 | D8: gpm | E8: Design flow expressed in gpm
A9: Average Flow Rate | B9: average_flow_rate | C9: =average_flow*1000000/(24*60) -> 4.861111111 | D9: gpm | E9: Average flow expressed in gpm
A11: Number of wells | B11: wells | C11: =IF(design=1,0,IF(wells_I="",0,ROUNDUP(design_flow_rate/wells_I,0))) -> 0
A12: Well Depth | B12: well_depth | C12: =well_depth_I -> 0 | D12: feet
A13: Maxiumum well pump horsepower | B13: well_pump_hp_max | C13: =MAX(Lookups!B7:B9) -> 250 | D13: hp
A15: Well Design
A16: Casing Diameter | B16: casing_diam | C16: =IF(design=1,0,pump_diam+3) -> 0 | D16: inches | E16: Casing diameter 3 inches larger than largest pump componenent
A17: Casing Length | B17: casing_len | C17: =well_depth -> 0 | D17: feet
A18: Gravel Pack Length | B18: gravel_len | C18: =IF(design=1,0,casing_len-seal_depth) -> 0 | D18: feet | E18: Casing length minus grout seal length
A19: Grout Seal Cross Sectional Area | B19: grout_area | C19: =IF(design=1,0,(PI()*(casing_diam/2+grout_thickness)^2)-(PI()*(casing_diam/2)^2)) -> 0 | D19: square inches
A20: Grout Seal Volume per Well | B20: grout_vol_well | C20: =grout_area/144*seal_depth -> 0 | D20: cubic feet
A21: Total Grout Seal Volume | B21: grout_vol | C21: =grout_vol_well*wells -> 0 | D21: cubic feet
A22: Screen Diamater | B22: screen_diam | C22: =casing_diam -> 0 | D22: inches
A23: Screen Length | B23: screen_len | C23: =casing_len*screen_ration -> 0 | D23: feet
A24: Borehole Diameter | B24: borehole_diam | C24: =IF(design=1,0,2*pump_diam+gravel_thickness) -> 0 | D24: inches | E24: 2*pump diameter diameter plus gravel pack thickness
A25: Plug diameter | B25: plug_diam | C25: =screen_diam -> 0 | D25: inches
A27: Well drilling unit cost, 8" borehole diameter | C27: =VLOOKUP(well_depth,drill_8_cost_cl,3) -> 102.9889108 | D27: per linear foot
A28: Well drilling unit cost, 10" borehole diameter | C28: =VLOOKUP(well_depth,drill_10_cost_cl,3) -> 140.581874 | D28: per linear foot
A29: Well drilling unit cost, 12" borehole diameter | C29: =VLOOKUP(well_depth,drill_12_cost_cl,3) -> 163.4760024 | D29: per linear foot
A30: Well drilling unit cost, 15" borehole diameter | C30: =VLOOKUP(well_depth,drill_15_cost_cl,3) -> 222.3268086 | D30: per linear foot
A31: Well drilling unit cost | B31: well_drill_cost | C31: =IF(design=1,"na",IF(borehole_diam<=8,C27,IF(borehole_diam<=10,C28,IF(borehole_diam<=12,C29,C30)))) -> na | D31: per linear foot

Sheet Pumps Pipe Structure
A1: Pumps, Piping, and Structure Calculations
A3: Calculation | B3: Range Name | C3: Value | D3: Units | E3: Guidance
A4: Interconnection Booster Pump Design
A5: Pressure at Supply Source (from inputs) | B5: buyer_pressure | C5: =IF(buyer_pressure_I="correct pressure",0,IF(buyer_pressure_I="pressure greater than required",1,2)) -> 0 | E5: 0 for correct pressure, 1 for excess pressure, 2 for insufficient pressure
A6: Elevation Difference from Supply Source | B6: elevation_head | C6: =elevation_diff_I -> 0 | D6: head in feet | E6: From Inputs, Booster pump pressure must account for this difference
A7: Hazen-Williams friction loss | B7: HW_friction_loss | C7: =IF(design=2,"",0.2083*(100/IF(OUTPUT!L55=1,130,140))^1.852*design_flow_rate^1.852/interconnect_pipe_diameter^4.8655) -> 1.21715522 | D7: head loss in feet per 100 ft pipe
A8: Total pressure needed to overcome friction losses | B8: friction_head | C8: =IF(design=2,"",interconnect_pipe_length/100*HW_friction_loss) -> 121.715522 | D8: head loss in feet
A9: Total head needed for booster pump | B9: booster_additional_head | C9: =IF(design=2,"",elevation_head+friction_head) -> 121.715522 | D9: head in feet
A10: Booster pump pressure rating | B10: booster_psi | C10: =IF(design=2,0,0.434*booster_additional_head) -> 52.82453654 | D10: psi | E10: 0.434 converts head in feet to psi
A12: Maximum pump size, 25 psi | C12: =VLOOKUP(10^6,pump_cost_cl,1)-1 -> 10000 | D12: gpm
A13: Maximum pump size, 75 psi | C13: =VLOOKUP(10^6,dis75_pump_cost_cl,1)-1 -> 10000 | D13: gpm
A14: Maximum pump size, 150 psi | C14: =VLOOKUP(10^6,ro150_pump_cost_cl,1)-0.1 -> 2000 | D14: gpm
A15: Maximum pump size, 200 psi | C15: =VLOOKUP(10^6,ro200_pump_cost_cl,1)-0.1 -> 2000 | D15: gpm
A16: Maximum pump size, 250 psi | C16: =VLOOKUP(10^6,ro250_pump_cost_cl,1)-0.1 -> 2000 | D16: gpm
A17: Maximum pump size, 300 psi | C17: =VLOOKUP(10^6,ro300_pump_cost_cl,1)-0.1 -> 300 | D17: gpm
A18: Maximum pump size, 350 psi | C18: =VLOOKUP(10^6,ro350_pump_cost_cl,1)-0.1 -> 350 | D18: gpm
A19: Maximum pump size, 500 psi | C19: =VLOOKUP(10^6,ro500_pump_cost_cl,1)-0.1 -> 185 | D19: gpm
A20: Maximum pump size | B20: max_pump_size | C20: =IF(booster_psi<=25,C12,IF(booster_psi<=75,C13,IF(booster_psi<=150,C14,IF(booster_psi<=200,C15,IF(booster_psi<=250,C16,IF(booster_psi<=300,C17,IF(booster_psi<=350,C18,C19))))))) -> 10000 | D20: gpm | E20: The largest pump size for which costs are available.
A21: Booster pump rating | B21: booster_pump_rating | C21: =IF( OR( design<> 1,buyer_pressure<>2),0,MAX(design_flow_rate*(1+pump_safety_factor),max_pump_size)) -> 0 | D21: gpm
A22: Number of booster pumps | B22: booster_pumps | C22: =IF( OR( design<> 1,buyer_pressure<>2), 0, IF(booster_pump_rating=0,0,ROUNDUP(MIN(design_flow_rate/max_pump_size,(design_flow_rate)*(1+pump_safety_factor)/booster_pump_rating ),0))) -> 0 | E22: Pumps from seller to buyer
A23: Total number of booster pumps | B23: total_booster_pumps | C23: =IF( OR( design<> 1,buyer_pressure<>2), 0,(booster_pumps +NRD_booster_pumps)) -> 0 | D23: units
A25: Pump length and width, 25 and 75 psi | C25: =VLOOKUP(booster_pump_rating,pump_dim_table_cl,4) -> 2.5 | D25: feet
A26: Pump length and width, high pressure | C26: =SQRT(VLOOKUP(booster_pump_rating*60*24/10^6,inf_dim_table_cl,3)) -> 6 | D26: feet
A27: Pump length and width | B27: booster_pump_L&W | C27: =IF(booster_psi<=75,C25,C26) -> 2.5 | D27: feet
A29: Booster pump cost, 25 psi | C29: =VLOOKUP(booster_pump_rating,pump_cost_cl,3) -> 5677.251161
A30: Booster pump cost, 75 psi | C30: =VLOOKUP(booster_pump_rating,dis75_pump_cost_cl,3) -> 3644.280875
A31: Booster pump cost, 150 psi | C31: =VLOOKUP(booster_pump_rating,ro150_pump_cost_cl,3) -> 3708.137061
A32: Booster pump cost, 200 psi | C32: =VLOOKUP(booster_pump_rating,ro200_pump_cost_cl,3) -> 4029.59299
A33: Booster pump cost, 250 psi | C33: =VLOOKUP(booster_pump_rating,ro250_pump_cost_cl,3) -> 4362.575227
A34: Booster pump cost, 300 psi | C34: =VLOOKUP(booster_pump_rating,ro300_pump_cost_cl,3) -> 4694.276763
A35: Booster pump cost, 350 psi | C35: =VLOOKUP(booster_pump_rating,ro350_pump_cost_cl,3) -> 2993.505953
A36: Booster pump cost, 500 psi | C36: =VLOOKUP(booster_pump_rating,ro500_pump_cost_cl,3) -> 5173.258904
A37: Booster pump cost | B37: booster_pump_cost | C37: =IF(booster_psi<=25,C29,IF(booster_psi<=75,C30,IF(booster_psi<=150,C31,IF(booster_psi<=200,C32,IF(booster_psi<=250,C33,IF(booster_psi<=300,C34,IF(booster_psi<=350,C35,C36))))))) -> 3644.280875 | E37: This value used with the lookup table cost estimating method (i.e., when the critical design assumption curve <> 1). See the cost equations page when curve = 1
A39: Booster pump size used in estimate, 25 psi | C39: =VLOOKUP(booster_pump_rating,pump_cost_cl,2) -> 10
A40: Booster pump size used in estimate, 75 psi | C40: =VLOOKUP(booster_pump_rating,dis75_pump_cost_cl,2) -> 10
A41: Booster pump size used in estimate, 150 psi | C41: =VLOOKUP(booster_pump_rating,ro150_pump_cost_cl,2) -> 6
A42: Booster pump size used in estimate, 200 psi | C42: =VLOOKUP(booster_pump_rating,ro200_pump_cost_cl,2) -> 9
A43: Booster pump size used in estimate, 250 psi | C43: =VLOOKUP(booster_pump_rating,ro250_pump_cost_cl,2) -> 5
A44: Booster pump size used in estimate, 300 psi | C44: =VLOOKUP(booster_pump_rating,ro300_pump_cost_cl,2) -> 6
A45: Booster pump size used in estimate, 350 psi | C45: =VLOOKUP(booster_pump_rating,ro350_pump_cost_cl,2) -> 4
A46: Booster pump size used in estimate, 500 psi | C46: =VLOOKUP(booster_pump_rating,ro500_pump_cost_cl,2) -> 15
A47: Booster pump size used in estimate | B47: booster_pump_size_used | C47: =IF(booster_psi<=25,C39,IF(booster_psi<=75,C40,IF(booster_psi<=150,C41,IF(booster_psi<=200,C42,IF(booster_psi<=250,C43,IF(booster_psi<=300,C44,IF(booster_psi<=350,C45,C46))))))) -> 10 | E47: This value used with the lookup table cost estimating method (i.e., when the critical design assumption curve <> 1). The cost equations method uses exact size
A49: Well Pump Design
A50: Number of well pumps | B50: well_pumps | C50: =IF(design=1,0,wells) -> 0
A51: Well pump rating | B51: well_pump_rating | C51: =IF(design=1,0,design_flow_rate/well_pumps) -> 0 | D51: gpm
A52: Well pump pressure requirements | B52: well_pump_head | C52: =IF(design=1,0,well_depth+supply_head) -> 0 | D52: feet
A53: Well pump horsepower | B53: well_pump_hp | C53: =IF(design<>2,"NA",well_pump_head*well_pump_rating*(1+pump_safety_factor)/3960) -> NA | D53: hp
A54: Well pump diameter | B54: pump_diam | C54: =VLOOKUP(well_pump_hp,pump_hp_table,3) ->  | D54: inches
A56: Interconnection piping
A57: Interconnect pipe length | B57: interconnect_pipe_length | C57: =IF(design=1,pipe_length_I,0) -> 10000 | D57: ft
A58: Interconnect pipe diameter | B58: interconnect_pipe_diameter | C58: =IF( OR( design_flow_rate=0, design<>1 ),0, MAX( min_pipe_size, VLOOKUP((design_flow_rate),pipe_size_table_cl,2))) -> 2 | D58: in
A60: InterconnectionTrench Calculations
A61: Interconnect pipe trench depth to top of pipe | B61: interconnect_trn_depth | C61: =IF(design=2,0,MAX(frost,min_trench_depth)) -> 38 | D61: inches
A62: Interconnect pipe trench cross-section area | B62: interconnect_trench_area | C62: =IF(interconnect_pipe_diameter=0,0,(interconnect_pipe_diameter/12+2*min_trench_width/12)*interconnect_trn_depth/12) -> 6.861111111 | D62: square ft
A63: Interconnect pipe trench volume total | B63: interconnect_trench_vol | C63: =interconnect_trench_area*interconnect_pipe_length/27 -> 2541.152263 | D63: cy
A64: Asphalt patch area | B64: asphalt_patch_area | C64: =IF( asphalt_patch_include=1,( interconnect_pipe_length * (interconnect_pipe_diameter/12 + 2*min_trench_width/12))/sqft_per_sqyd,0) -> 802.4691358 | D64: square yards
A66: Well piping
A67: Single well pipe length | B67: well_pipe_length | C67: =IF( design=2,well_distance_I,0) -> 0 | D67: ft | E67: Pipe to connect new well to existing distribution system
A68: Well pipe diameter | B68: well pipe diameter | C68: =IF( OR( design_flow_rate=0,design=1 ),0, MAX( min_pipe_size, VLOOKUP((design_flow_rate/wells),pipe_size_table_cl,2))) -> 0 | D68: in
A69: Total well piping length | B69: total_well_pipe_length | C69: =well_pipe_length*wells -> 0 | D69: ft
A71: Well to Distribution Trench Calculations
A72: Well pipe trench depth to top of pipe | B72: well_trn_depth | C72: =MAX(frost,min_trench_depth) -> 38 | D72: inches
A73: Well pipe trench cross-section area | B73: well_trench_area | C73: =IF(well_pipe_diameter=0,0,(well_pipe_diameter/12+2*min_trench_width/12)*well_trn_depth/12) -> 0 | D73: square ft
A74: Well pipe trench volume total | B74: well_trench_vol | C74: =well_trench_area*total_well_pipe_length/27 -> 0 | D74: cy
A76: Pump Vault Design
A77: Interior length | B77: pump_vault_int_length | C77: =IF( OR( design<> 1,buyer_pressure<>2), 0, 2 * space_pumps + booster_pump_L_W) -> 0 | D77: ft | E77: .
A78: Interior width | B78: pump_vault_int_width | C78: =IF( OR( design<> 1,buyer_pressure<>2), 0, 2 * space_pumps + booster_pump_L_W + ( (total_booster_pumps-1) * space_pumps ) ) -> 0 | D78: ft
A79: Pump vault length concrete volume | B79: pump_vault_length_conc_vol | C79: =IF( OR( design<> 1,buyer_pressure<>2), 0,( (pump_vault_int_length + 2 * vault_concrete_thickness / in_per_ft)* (vault_interior_height + 2 * vault_concrete_thickness / in_per_ft )) * vault_concrete_thickness / in_per_ft /cuft_per_cuyd ) -> 0 | D79: cy
A80: Pump vault floor concrete volume | B80: pump_vault_floor conc_vol | C80: =IF( OR( design<> 1,buyer_pressure<>2), 0, (pump_vault_int_width * pump_vault_int_length* vault_concrete_thickness / in_per_ft )/cuft_per_cuyd ) -> 0 | D80: cy
A81: Pump vault width concrete volume | B81: pump_vault_width_conc_vol | C81: =IF( OR( design<> 1,buyer_pressure<>2), 0, pump_vault_int_width * (vault_interior_height + 2 * vault_concrete_thickness / in_per_ft ) * vault_concrete_thickness / in_per_ft / cuft_per_cuyd ) -> 0 | D81: cy
A82: Pump vault total concrete volume | B82: pump_vault_total_conc_vol | C82: =IF( OR( design<> 1,buyer_pressure<>2), 0, SUM(C79:C81) ) -> 0 | D82: cy
A83: Pump vault excavation depth | B83: pump_vault_exc_depth | C83: =IF( OR( design<> 1,buyer_pressure<>2), 0, vault_concrete_thickness * 2 /in_per_ft + vault_interior_height + vault_min_cover ) -> 0 | D83: ft
A84: Pump vault excavation volume | B84: pump_vault_exc_volume | C84: =IF( OR( design<> 1,buyer_pressure<>2), 0,( ( (pump_vault_int_width + vault_concrete_thickness/ in_per_ft * 2 + pump_vault_exc_depth) * (pump_vault_int_length + pump_vault_exc_depth + vault_concrete_thickness/ in_per_ft ) * (pump_vault_exc_depth ) )/cuft_per_cuyd ) ) -> 0 | D84: cy
A85: Pump vault backfill volume | B85: pump_vault_backfill_volume | C85: =IF( OR( design<> 1,buyer_pressure<>2), 0, (pump_vault_exc_volume - ( ( (pump_vault_int_width + 2 * vault_concrete_thickness/ in_per_ft ) * (pump_vault_int_length + 2 * vault_concrete_thickness/ in_per_ft) *(pump_vault_exc_depth +vault_concrete_thickness/ in_per_ft) ) / cuft_per_cuyd ))) -> 0 | D85: cy
A87: Vault for PRVs
A88: Interior length | B88: prv_vault_int_length | C88: =IF( OR( design<> 1,buyer_pressure<>1), 0, 2 * space_pumps +PRV_length / in_per_ft) -> 0 | D88: ft
A89: Interior width | B89: prv_vault_int_width | C89: =IF( OR( design<> 1,buyer_pressure<>1), 0, 2 * space_pumps + PRV_width / in_per_ft + ( (num_PRVs-1) * space_pumps ) ) -> 0 | D89: ft
A90: PRV vault length concrete volume | B90: prv_vault_length_conc_vol | C90: =IF( OR( design<> 1,buyer_pressure<>1), 0,( (prv_vault_int_length + 2 * vault_concrete_thickness / in_per_ft)* (vault_interior_height + 2 * vault_concrete_thickness / in_per_ft )) * vault_concrete_thickness / in_per_ft /cuft_per_cuyd ) -> 0 | D90: cy
A91: PRV vault floor concrete volume | B91: prv_vault_floor conc_vol | C91: =IF( OR( design<> 1,buyer_pressure<>1), 0, (prv_vault_int_width * prv_vault_int_length* vault_concrete_thickness / in_per_ft )/cuft_per_cuyd ) -> 0 | D91: cy
A92: PRV vault width concrete volume | B92: prv_vault_width_conc_vol | C92: =IF( OR( design<> 1,buyer_pressure<>1), 0, prv_vault_int_width * (vault_interior_height + 2 * vault_concrete_thickness / in_per_ft ) * vault_concrete_thickness / in_per_ft / cuft_per_cuyd ) -> 0 | D92: cy
A93: PRV vault total concrete volume | B93: prv_vault_total_conc_vol | C93: =IF( OR( design<> 1,buyer_pressure<>1), 0, SUM(C90:C92) ) -> 0 | D93: cy
A94: PRV vault excavation depth | B94: prv_vault_exc_depth | C94: =IF( OR( design<> 1,buyer_pressure<>1), 0, vault_concrete_thickness * 2 /in_per_ft + vault_interior_height + vault_min_cover ) -> 0 | D94: ft
A95: PRV vault excavation volume | B95: prv_vault_exc_volume | C95: =IF( OR( design<> 1,buyer_pressure<>1), 0,( ( (prv_vault_int_width + vault_concrete_thickness/ in_per_ft * 2 + prv_vault_exc_depth) * (prv_vault_int_length + prv_vault_exc_depth + vault_concrete_thickness/ in_per_ft ) * (prv_vault_exc_depth ) )/cuft_per_cuyd ) ) -> 0 | D95: cy
A96: PRV vault backfill volume | B96: prv_vault_backfill_volume | C96: =IF( OR( design<> 1,buyer_pressure<>1), 0, (prv_vault_exc_volume - ( ( (prv_vault_int_width + 2 * vault_concrete_thickness/ in_per_ft ) * (prv_vault_int_length + 2 * vault_concrete_thickness/ in_per_ft) *(prv_vault_exc_depth +vault_concrete_thickness/ in_per_ft) ) / cuft_per_cuyd ))) -> 0 | D96: cy
A98: Footprint
A99: Well footprint | B99: well_fp | C99: =IF(design=1,0,wells*well_footprint) -> 0 | D99: square feet
A100: Exact building footprint required | B100: fp_required | C100: =IF(design<>2,0,well_fp) -> 0 | D100: square feet
A101: Footprint of building 1 | B101: build1_fp | C101: =IF(design<>2,0,well_fp) -> 0 | D101: square feet
A102: Total footprint | B102: total_fp | C102: =build1_fp -> 0 | D102: square feet
A104: Facility dimension assumed square | B104: facil_length | C104: =ROUNDUP(total_fp^0.5,-1) -> 0 | D104: feet
A105: Land acquisition required | B105: land_required | C105: =IF(design<>2,0, ((build1_fp)^0.5+(2*non_fire_buffer))*((build1_fp)^0.5 + (non_fire_buffer+fire_buffer)) /43560) -> 0 | D105: acres
A106: Land acquisition cost | B106: land_cost | C106: =VLOOKUP(design_flow,land_cost_cl,3) -> 22071.00665 | D106: /acre

Sheet Instrumentation and Control
A1: Instrumentation and Control Calculations
A3: Calculation | B3: Range Name | C3: Value | D3: Units | E3: Guidance
A4: From Inputs
A5: Component level | B5: component_level | C5: =IF(component_level_I="high cost",2,IF(component_level_I="mid cost",1,"")) ->  | D5: blank = low cost, 1 = mid cost, 2 = high cost
A6: Manual system controls | B6: manual | C6: =IF(manual_I="manual",1,IF(manual_I="semi-automated",2,IF(manual_I="fully automated",3,IF(component_level="",1,IF(component_level=2,3,CHOOSE(ss_cat2,1,3,3)))))) -> 1 | D6: 1 = fully manual system, 2 = semi-automated system, 3 = fully automated system. | E6: Based on system size and component level (see cell comment), unless user overrides on input sheet
A8: Valves and Instrumentation
A9: Valve size | B9: valve_size | C9: =IF( design_flow_rate=0, 0, IF( design=2, well_pipe_diameter,interconnect_pipe_diameter)) -> 2 | D9: in
A10: Number of valves (isolation, street) | B10: num_valves | C10: =IF(design= 2, 0, min_valves+ num_PRVs* valve_per_PRV + ROUND(interconnect_pipe_length/valve_spacing,0)-1) -> 11 | D10: units
A12: Number of MOVs for isolating booster pumps | B12: total_booster_MOV | C12: =IF( manual =3, total_booster_pumps * valve_per_pump, 0) -> 0 | D12: units
A13: Number of MOVs for well pump | B13: total_well_MOV | C13: =IF( manual =3, well_pumps * valve_per_pump, 0) -> 0 | D13: units
A15: Number of manual valves for isolating booster pumps | B15: total_booster_man | C15: =IF( manual <> 3, total_booster_pumps * valve_per_pump, 0) -> 0 | D15: units
A16: Number of manual valves for well pump | B16: total_well_man | C16: =IF( manual <> 3, well_pumps * valve_per_pump, 0) -> 0 | D16: units
A18: Pressure Reducing Valve size | B18: PRV_size | C18: =IF( OR( design_flow_rate=0, design<>1, buyer_pressure<>1 ),0,VLOOKUP((interconnect_pipe_diameter),prv_table,2)) -> 0 | D18: in
A19: Number of Pressure Reducing Valves | B19: num_PRVs | C19: =IF( OR( design_flow_rate=0, design<>1, buyer_pressure<>1 ),0,min_num_PRVs + NRD_PRVs) -> 0 | D19: units
A20: Length of PRV | B20: PRV_length | C20: =IF( OR( design_flow_rate=0, design<>1, buyer_pressure<>1 ),0, VLOOKUP((interconnect_pipe_diameter),prv_table,3)) -> 0 | D20: in
A21: Width of PRV | B21: PRV_width | C21: =IF( OR( design_flow_rate=0, design<>1, buyer_pressure<>1 ),0,VLOOKUP((interconnect_pipe_diameter),prv_table,4) ) -> 0 | D21: in
A23: Total flow meters for interconnect line | B23: tot_fm_interconnect | C23: =IF( design=1,fm_interconnect,0) -> 1 | D23: units
A24: Flow meters for each well | B24: tot_fm_well | C24: =IF( design=2,fm_well*wells,0) -> 0 | D24: units
A25: Size of flow meters interconnect | B25: interconnect_meter_size | C25: =IF( design=1, interconnect_pipe_diameter,0) -> 2 | D25: in
A26: Size of flow meters well | B26: well_meter_size | C26: =IF( design=2,well_pipe_diameter,0) -> 0 | D26: in
A27: Number of remote telemetry units (RTUs) | B27: total_RTU | C27: =tot_fm_interconnect+tot_fm_well -> 1 | D27: units
A28: Number of well pump soft start controls | B28: tot_soft_start | C28: =soft_start*wells -> 0 | D28: units

Sheet O&M
A1: Operation and Maintenance Calculations
A3: Calculation | B3: Range Name | C3: Value | D3: Units | E3: Guidance
A4: Labor and Materials
A5: Maintenance Materials
A6: Materials for booster pumps | B6: pump_materials | C6: =IF( ISNUMBER(OUTPUT!J84), booster_pump_maintenance * OUTPUT!J84,0) -> 0 | D6: /yr
A7: Materials for well pumps | B7: well_pump_materials | C7: =IF( ISNUMBER(OUTPUT!J85), well_pump_maintenance * OUTPUT!J85,) -> 0
A8: Materials for PRVs
A10: General Labor
A11: Number of booster pumps for operation | B11: tot_pumps | C11: =booster_pumps -> 0 | D11: units | E11: Pumps requiring daily observation/adjustment
A12: Total number of booster pumps for maintenance | B12: tot_pumps_maint | C12: =booster_pumps -> 0 | D12: units | E12: Large, frequently operated pumps require preventative maintenance
A13: Number of well pumps for operation | B13: tot_well_pumps | C13: =well_pumps -> 0 | D13: units | E13: Pumps requiring daily observation/adjustment
A14: Total number of well pumps for maintenance | B14: tot_well_pumps_maint | C14: =well_pumps -> 0 | D14: units | E14: Large, frequently operated pumps require preventative maintenance
A15: Number of valves | B15: tot_valves | C15: =num_valves + total_booster_MOV + total_well_MOV+ total_booster_man -> 11 | D15: units | E15: Main process valves require frequent operation and preventative maintenance
A16: Number of PRVs | B16: tot_PRVs | C16: =num_PRVs -> 0 | D16: units
A18: Verify/adjust booster pump operating parameters | C18: =IF(OR(manual=1,manual=2),tot_pumps*uloe_pump*365/60,0) -> 0 | D18: hr/yr
A19: Preventative maintenance of booster pumps | C19: =tot_pumps_maint*uloe_pump_maint -> 0 | D19: hr/yr
A20: Verify/adjust valve positions | C20: =IF(OR(manual=1,manual=2),tot_valves*uloe_valve*52/60,0) -> 47.66666667 | D20: hr/yr
A21: Preventative maintenance and inspection of valves | C21: =tot_valves*uloe_valve_maint/60 -> 0.9166666667 | D21: hr/yr
A22: Visual inspection of facility | C22: =total_fp/100*uloe_fp*365/60 -> 0 | D22: hr/yr
A23: Preventative maintenance and inspection of PRVs | C23: =tot_PRVs*uloe_valve_maint/60 -> 0 | D23: hr/yr
A24: Verify/adjust well pump operating parameters | C24: =IF(OR(manual=1,manual=2),tot_well_pumps*uloe_pump*365/60,0) -> 0 | D24: hr/yr
A25: Preventative maintenance of well pumps | C25: =tot_well_pumps_maint*uloe_pump_maint -> 0 | D25: hr/yr
A27: General Operator Labor | B27: General_oper_labor | C27: =SUM(C18:C25) -> 48.58333333 | D27: hr/yr
A29: Annual Operator LOE | B29: Operator_LOE | C29: =General_oper_labor -> 48.58333333 | D29: hr/yr
A30: Annual Manager LOE | B30: Manager_LOE | C30: =Operator_LOE*Manager_percent -> 4.858333333 | D30: hr/yr
A31: Annual Administrative LOE | B31: Clerical_LOE | C31: =Operator_LOE*Clerical_percent -> 4.858333333 | D31: hr/yr
A34: Building Maintenance
A35: Cost for all buildings | C35: =IF(include_buildings=0,0,building_matl_rate_cl*total_fp) -> 0 | D35: /yr
A36: Annual maintenance for all buildings | B36: bldg_maint_cost | C36: =C35 -> 0 | D36: /yr
A38: Energy
A39: Booster pumps
A40: Pump operating horsepower | C40: =IF(booster_pumps=0,0,average_flow_rate*booster_psi/booster_pumps/booster_pump_efficiency/14.7*33.9*8.34/550/60) -> 0 | D40: hp
A41: Energy per pump | C41: =C40*0.7457/1000*24*day_per_year -> 0 | D41: MWh/yr
A42: Energy for all active booster pumps | B42: booster_pump_energy | C42: =C41*booster_pumps -> 0 | D42: MWh/yr
A44: Well pumps
A45: Pump operating horsepower | C45: =IF(design<>2,0,well_pump_head*average_flow_rate/well_pumps*(1+pump_safety_factor)/3960) -> 0 | D45: hp
A46: Energy per pump | C46: =C45*0.7457/1000*24*day_per_year -> 0 | D46: MWh/yr
A47: Energy for all active well pumps | B47: well_pump_energy | C47: =C46*tot_well_pumps -> 0 | D47: MWh/yr
A49: System Size | B49: ss_cat2 | C49: =IF(design_flow<1,1,IF(design_flow<10,2,3)) -> 1 | D49: 1 indicates small system, 2 indicates medium, 3 indicates large

Sheet Indirect
A1: Indirect and Add-on Cost Calculations
A3: Calculation | B3: Range Name | C3: Value | D3: Units | E3: Guidance
A4: Buildings & Land
A5: Include buildings in total capital cost? | B5: include_buildings | C5: =IF(OR(design=1,include_buildings_I="no"),0,1) -> 0 | D5: 1 = yes, 0 = no
A6: Include land costs? | B6: include_land | C6: =IF(OR(design=1,include_land_I="no"),0,1) -> 0 | D6: 1 = yes, 0 = no
A8: Standby Power
A9: Booster pumps | C9: =booster_pump_energy*design_flow/average_flow/day_per_year/24*1000 -> 0 | D9: kW
A10: Well pumps | C10: =well_pump_energy*design_flow/average_flow/day_per_year/24*1000 -> 0 | D10: kW
A11: Total base standby power requirement | B11: std_base | C11: =IF((C9+C10)=0,0,ROUNDUP(2*MAX(min_standby,(C9+C10)*(1+std_safety_factor)),0)/2) -> 0 | D11: kW
A12: Total standby power cost | B12: std_power_cost | C12: =VLOOKUP(std_base,std_gen_cost_cl,3)*std_base -> 0
A14: Geotechnical & Sitework
A15: Total sitework cost | B15: sitework_cost | C15: =total_fp*sitework_sf_cl -> 0
A17: Construction Management and General Contractor Job Overhead
A18: Builder's risk insurance percentage | C18: =br_ins_pct*direct_cost -> 721.173745
A19: Performance bond cost | C19: =include_bond*(VLOOKUP(direct_cost,performance_bond_table_cl,3)+VLOOKUP(direct_cost,performance_bond_table_cl,4)*(direct_cost-VLOOKUP(direct_cost,performance_bond_table_cl,5))) -> 4181.648875 | E19: Bracket determined from direct capital cost
A20: Construction management percentage | C20: =VLOOKUP(direct_cost,construction_mgt_table_cl,3) -> 0.09 | E20: Looked up from direct capital cost
A21: Construction management fee | C21: =include_cm*C20*direct_cost -> 19089.89325
A22: Total construction management/job overhead cost | B22: cm_cost | C22: =SUM(C18:C19,C21) -> 23992.71587
A24: Borings, initial field stake out & determination of elevations | C24: =wells*VLOOKUP(0,stake_out_cost_cl,3) -> 0
A25: Borings, drawings showing boring details | C25: =wells*VLOOKUP(0,bore_draw_cost_cl,3) -> 0
A26: Borings, report and recommendations from P.E. | C26: =wells*VLOOKUP(0,bore_report_cost_cl,3) -> 0
A27: Borings, mobilization and demobilization, minimum | C27: =wells*VLOOKUP(0,bore_mob_cost_cl,3) -> 0
A28: Borings, drill rig and crew with truck mounted auger | C28: =wells*VLOOKUP(0,bore_rig_cost_cl,3) -> 0
A29: Borings, cased borings in earth, w/samples, 2.5" dia | C29: =wells*well_depth*VLOOKUP(0,bore_cost_cl,3) -> 0
A30: Total geotechnical cost | B30: geotech_cost | C30: =SUM(C24:C29) -> 0
A33: Permits
A34: Building #1 value | C34: =IF(OUTPUT!C103>0,SUMPRODUCT(OUTPUT!J103:J103,OUTPUT!L103:L103),0) -> 0 | E34: Determined using Use? Column of output sheet
A35: Building permit cost | C35: =BPCost_UBC97(C34) -> 0 | E35: Uses custom function to apply formulae developed in SAIC Permit Report 2004
A37: Total permit cost | B37: permit_cost | C37: =C35 -> 0

Sheet Standard Inputs
A1: Standard Designs
A2: Default inputs represent typical options used to generate national average compliance costs.
A6: Design Indices | C6: System Size | G6: Interconnection | L6: Well Inputs | N6: Optional
A7: Design Type | B7: Design # | C7: Design flow | D7: Design Flow Units | E7: Average Flow | F7: Average flow units | G7: Distance to Water Supply | H7: Pressure at Supply Source | I7: Elevation Difference from Supply Source | J7: Cost of Purchased Water | K7: Flow per Well | L7: Well Depth | M7: Distance to Distribution System | N7: Component level | O7: System Automation | P7: Include Buildings? | Q7: Include Land? | S7: Internal Use
C8: design_flow_I | D8: df_units | E8: average_flow_I | F8: af_units | G8: pipe_length_I | H8: buyer_pressure_I | I8: elevation_diff_I | J8: water_cost_I | K8: wells_I | L8: well_depth_I | M8: well_distance_I | N8: component_level_I | O8: manual_I | P8: include_buildings_I | Q8: include_land_I
A9: 1 | B9: 1 | C9: 0.03 | D9: MGD | E9: 0.007 | F9: MGD | G9: 10000 | H9: correct pressure | I9: 0 | J9: 2 | S9: =AND(C9:Q9=inp_used,A9=inp_used_usersel) -> TRUE | T9: =AND(C9:F9=inp_used_minimal,A9=inp_used_usersel) -> TRUE
A10: 1 | B10: 2 | C10: 0.124 | D10: MGD | E10: 0.035 | F10: MGD | G10: 10000 | H10: correct pressure | I10: 0 | J10: 2 | S10: =AND(C10:Q10=inp_used,A10=inp_used_usersel) -> FALSE | T10: =AND(C10:F10=inp_used_minimal,A10=inp_used_usersel) -> FALSE
A11: 1 | B11: 3 | C11: 0.305 | D11: MGD | E11: 0.094 | F11: MGD | G11: 10000 | H11: correct pressure | I11: 0 | J11: 2 | S11: =AND(C11:Q11=inp_used,A11=inp_used_usersel) -> FALSE | T11: =AND(C11:F11=inp_used_minimal,A11=inp_used_usersel) -> FALSE
A12: 1 | B12: 4 | C12: 0.74 | D12: MGD | E12: 0.251 | F12: MGD | G12: 10000 | H12: correct pressure | I12: 0 | J12: 2 | S12: =AND(C12:Q12=inp_used,A12=inp_used_usersel) -> FALSE | T12: =AND(C12:F12=inp_used_minimal,A12=inp_used_usersel) -> FALSE
A13: 1 | B13: 5 | C13: 2.152 | D13: MGD | E13: 0.819 | F13: MGD | G13: 10000 | H13: correct pressure | I13: 0 | J13: 2 | S13: =AND(C13:Q13=inp_used,A13=inp_used_usersel) -> FALSE | T13: =AND(C13:F13=inp_used_minimal,A13=inp_used_usersel) -> FALSE
A14: 2 | B14: 1 | C14: 0.03 | D14: MGD | E14: 0.007 | F14: MGD | K14: 500 | L14: 250 | M14: 500 | S14: =AND(C14:Q14=inp_used,A14=inp_used_usersel) -> FALSE | T14: =AND(C14:F14=inp_used_minimal,A14=inp_used_usersel) -> FALSE
A15: 2 | B15: 2 | C15: 0.124 | D15: MGD | E15: 0.035 | F15: MGD | K15: 500 | L15: 250 | M15: 500 | S15: =AND(C15:Q15=inp_used,A15=inp_used_usersel) -> FALSE | T15: =AND(C15:F15=inp_used_minimal,A15=inp_used_usersel) -> FALSE
A16: 2 | B16: 3 | C16: 0.305 | D16: MGD | E16: 0.094 | F16: MGD | K16: 500 | L16: 250 | M16: 500 | S16: =AND(C16:Q16=inp_used,A16=inp_used_usersel) -> FALSE | T16: =AND(C16:F16=inp_used_minimal,A16=inp_used_usersel) -> FALSE
A17: 2 | B17: 4 | C17: 0.74 | D17: MGD | E17: 0.251 | F17: MGD | K17: 500 | L17: 250 | M17: 500 | S17: =AND(C17:Q17=inp_used,A17=inp_used_usersel) -> FALSE | T17: =AND(C17:F17=inp_used_minimal,A17=inp_used_usersel) -> FALSE
A18: 2 | B18: 5 | C18: 2.152 | D18: MGD | E18: 0.819 | F18: MGD | K18: 500 | L18: 250 | M18: 500 | S18: =AND(C18:Q18=inp_used,A18=inp_used_usersel) -> FALSE | T18: =AND(C18:F18=inp_used_minimal,A18=inp_used_usersel) -> FALSE
A20: =IF(LEN(design)=0,"",design) -> 1 | C20: =IF(LEN(design_flow_I)=0,"",design_flow_I) -> 0.03 | D20: =IF(LEN(df_units)=0,"",df_units) -> MGD | E20: =IF(LEN(average_flow_I)=0,"",average_flow_I) -> 0.007 | F20: =IF(LEN(af_units)=0,"",af_units) -> MGD | G20: =IF(LEN(pipe_length_I)=0,"",pipe_length_I) -> 10000 | H20: =IF(LEN(buyer_pressure_I)=0,"",buyer_pressure_I) -> correct pressure | I20: =IF(LEN(elevation_diff_I)=0,"",elevation_diff_I) -> 0 | J20: =IF(LEN(water_cost_I)=0,"",water_cost_I) -> 2 | K20: =IF(LEN(wells_I)=0,"",wells_I) ->  | L20: =IF(LEN(well_depth_I)=0,"",well_depth_I) ->  | M20: =IF(LEN(well_distance_I)=0,"",well_distance_I) ->  | N20: =IF(LEN(component_level_I)=0,"",component_level_I) ->  | O20: =IF(LEN(manual_I)=0,"",manual_I) ->  | P20: =IF(LEN(include_buildings_I)=0,"",include_buildings_I) ->  | Q20: =IF(LEN(include_land_I)=0,"",include_land_I) ->  | R20: <--current inputs
C21: 0.03 | D21: MGD | E21: 0.007 | F21: MGD | G21: 10000 | H21: correct pressure | I21: 0 | J21: 2 | R21: <--inputs used at last "Generate Results" | S21: =AND(C21:Q21=inp_used) -> TRUE

Sheet Cost Equations
A1: Cost Equations
A2: This sheet is used internally to calculate component costs using the cost equations method; see model documentation for more details on the development of cost equations
A4: Component | B4: Equation Name | C4: Result | D4: Variable | E4: Equation Lookup Name | F4: 2 | G4: 3 | H4: 4 | I4: 5 | J4: 6 | K4: 7 | L4: 8 | M4: 9 | N4: 10 | O4: 11 | P4: 16 | Q4: 17
A5: Well Items
A6: Well Casing
A7: PVC | B7: casing_pvc_eq | C7: =IF(D7=0,0,IF(OR(D7>P7,D7<Q7),"contact vendor",F7*D7^G7+H7*LN(D7)+I7+J7*EXP(K7*D7)+L7*D7^3+M7*D7^2+N7*D7+O7)) -> 0 | D7: =casing_diam -> 0 | E7: casing_pvc_eq | F7: =VLOOKUP($E7,eq_table_cl,F$4,FALSE) -> 0 | G7: 0 | H7: 0 | I7: 0 | J7: 0 | K7: 0 | L7: 0.057858936 | M7: -1.087160427 | N7: 9.616275693 | O7: 5.824085294 | P7: 12.00001 | Q7: 0
A8: Stainless Steel | B8: casing_ss_eq | C8: 0 | D8: =casing_diam -> 0 | E8: casing_ss_eq | F8: 11.79535523 | G8: 1.760932625 | H8: 0 | I8: 0 | J8: 0 | K8: 0 | L8: 0 | M8: 0 | N8: 0 | O8: 0 | P8: 12.00001 | Q8: 0
A9: Well screen
A10: PVC Schedule 40 | B10: screen_pvc40_eq | C10: =IF(D10=0,0,IF(OR(D10>P10,D10<Q10),"contact vendor",F10*D10^G10+H10*LN(D10)+I10+J10*EXP(K10*D10)+L10*D10^3+M10*D10^2+N10*D10+O10)) -> 0 | D10: =screen_diam -> 0 | E10: screen_pvc40_eq | F10: =VLOOKUP($E10,eq_table_cl,F$4,FALSE) -> 0 | G10: 0 | H10: 0 | I10: 0 | J10: 0 | K10: 0 | L10: -0.032894459 | M10: 0.389520869 | N10: 7.237294197 | O10: 13.24131425 | P10: 12.00001 | Q10: 0
A11: PVC Schedule 80 | B11: screen_pvc80_eq | C11: 0 | D11: =screen_diam -> 0 | E11: screen_pvc80_eq | F11: 0 | G11: 0 | H11: 0 | I11: 0 | J11: 0 | K11: 0 | L11: 0 | M11: -0.074109712 | N11: 10.57737701 | O11: 1.732415733 | P11: 12.00001 | Q11: 0
A12: Stainless Steel | B12: screen_ss_eq | C12: 0 | D12: =screen_diam -> 0 | E12: screen_ss_eq | F12: 10.81023836 | G12: 1.766857246 | H12: 0 | I12: 0 | J12: 0 | K12: 0 | L12: 0 | M12: 0 | N12: 0 | O12: 0 | P12: 12.00001 | Q12: 0
A13: Plugs
A14: PVC | B14: plug_pvc_eq | C14: =IF(D14=0,0,IF(OR(D14>P14,D14<Q14),"contact vendor",F14*D14^G14+H14*LN(D14)+I14+J14*EXP(K14*D14)+L14*D14^3+M14*D14^2+N14*D14+O14)) -> 0 | D14: =plug_diam -> 0 | E14: plug_pvc_eq | F14: =VLOOKUP($E14,eq_table_cl,F$4,FALSE) -> 0 | G14: 0 | H14: 0 | I14: 0 | J14: 0 | K14: 0 | L14: -0.214827222 | M14: 4.077784088 | N14: 5.275470428 | O14: 12.03031138 | P14: 12.00001 | Q14: 0
A15: Stainless Steel | B15: plug_ss_eq | C15: =IF(D15=0,0,IF(OR(D15>P15,D15<Q15),"contact vendor",F15*D15^G15+H15*LN(D15)+I15+J15*EXP(K15*D15)+L15*D15^3+M15*D15^2+N15*D15+O15)) -> 0 | D15: =plug_diam -> 0 | E15: plug_ss_eq | F15: 0 | G15: 0 | H15: 0 | I15: 0 | J15: 0 | K15: 0 | L15: 0.355959131 | M15: 2.251821836 | N15: 3.770550437 | O15: 102.6583457 | P15: 10.00001 | Q15: 0
A16: Well Drilling | B16: no equation
A17: Gravel Pack | B17: gravel_pack_eq | C17: =IF(D17=0,0,IF(OR(D17>P17,D17<Q17),"contact vendor",F17*D17^G17+H17*LN(D17)+I17+J17*EXP(K17*D17)+L17*D17^3+M17*D17^2+N17*D17+O17)) -> 0 | D17: =casing_diam -> 0 | E17: gravel_pack_eq | F17: =VLOOKUP($E17,eq_table_cl,F$4,FALSE) -> 0 | G17: 0 | H17: 0 | I17: 0 | J17: 0 | K17: 0 | L17: -0.002230154 | M17: 0.118275129 | N17: 7.456278579 | O17: -19.72478855 | P17: 36.001 | Q17: 0
A18: Well Development | B18: no equation
A19: Grout Seal | B19: no equation
A20: Vaults | B20: no equations
A21: Piping
A22: Interconnect
A23: Ductile Iron | B23: di_pipe_eq_interconnect | C23: =IF(D23=0,0,IF(OR(D23>P23,D23<Q23),"contact vendor",F23*D23^G23+H23*LN(D23)+I23+J23*EXP(K23*D23)+L23*D23^3+M23*D23^2+N23*D23+O23)) -> contact vendor | D23: =interconnect_pipe_diameter -> 2 | E23: di_pipe_eq | F23: =VLOOKUP($E23,eq_table_cl,F$4,FALSE) -> 0 | G23: 0 | H23: 0 | I23: 0 | J23: 0 | K23: 0 | L23: 0 | M23: 0.100985408 | N23: 4.496624276 | O23: 12.03002003 | P23: 48.1 | Q23: 4
A24: PVC | B24: pvc_pipe_eq_interconnect | C24: 3.303354553 | D24: =interconnect_pipe_diameter -> 2 | E24: pvc_pipe_eq | F24: 0 | G24: 0 | H24: 0 | I24: 0 | J24: 0 | K24: 0 | L24: 0 | M24: 0.110356803 | N24: 0.235228044 | O24: 2.391471253 | P24: 48.1 | Q24: 0
A25: Excavation | B25: no equation
A26: Backfill and Compaction | B26: no equation
A27: Asphalt Patch
A28: Well
A29: Ductile Iron | B29: di_pipe_eq_well | C29: =IF(D29=0,0,IF(OR(D29>P29,D29<Q29),"contact vendor",F29*D29^G29+H29*LN(D29)+I29+J29*EXP(K29*D29)+L29*D29^3+M29*D29^2+N29*D29+O29)) -> 0 | D29: =well_pipe_diameter -> 0 | E29: di_pipe_eq | F29: =VLOOKUP($E29,eq_table_cl,F$4,FALSE) -> 0 | G29: 0 | H29: 0 | I29: 0 | J29: 0 | K29: 0 | L29: 0 | M29: 0.100985408 | N29: 4.496624276 | O29: 12.03002003 | P29: 48.1 | Q29: 4
A30: PVC | B30: pvc_pipe_eq_well | C30: 0 | D30: =well_pipe_diameter -> 0 | E30: pvc_pipe_eq | F30: 0 | G30: 0 | H30: 0 | I30: 0 | J30: 0 | K30: 0 | L30: 0 | M30: 0.110356803 | N30: 0.235228044 | O30: 2.391471253 | P30: 48.1 | Q30: 0
A31: Excavation | B31: no equation
A32: Backfill and Compaction | B32: no equation
A33: Valves
A34: Isolation and Street
A35: Ductile Iron | B35: street_valve_eq | C35: =IF(D35=0,0,IF(OR(D35>P35,D35<Q35),"contact vendor",F35*D35^G35+H35*LN(D35)+I35+J35*EXP(K35*D35)+L35*D35^3+M35*D35^2+N35*D35+O35)) -> 403.402992 | D35: =valve_size -> 2 | E35: street_valve_eq | F35: =VLOOKUP($E35,eq_table_cl,F$4,FALSE) -> 0 | G35: 0 | H35: 0 | I35: 0 | J35: 0 | K35: 0 | L35: 1.299292903 | M35: 1.672712957 | N35: 183.0738012 | O35: 20.1701945 | P35: 12.1 | Q35: 0
A36: Motor/Air Operated (on/off)
A37: Booster Pump - Polypropylene/PVC | B37: pp_mov_eq_booster_pump | C37: 292.2083137 | D37: =valve_size -> 2 | E37: =IF(D37>12,"pp_man_eq_large","pp_man_eq_small") -> pp_man_eq_small | F37: =VLOOKUP($E37,eq_table_cl,F$4,FALSE) -> 0 | G37: 0 | H37: 0 | I37: 0 | J37: 0 | K37: 0 | L37: 2.768986861 | M37: -29.72379221 | N37: 180.9390651 | O37: 27.07345746 | P37: 12 | Q37: 0
A38: Booster Pump - Stainless Steel | B38: ss_mov_eq_booster_pump | C38: 1294.376771 | D38: 2 | E38: ss_mov_eq | F38: 0 | G38: 0 | H38: 0 | I38: 0 | J38: 0 | K38: 0 | L38: 0 | M38: 76.90872578 | N38: 393.0866607 | O38: 200.5685467 | P38: 48.1 | Q38: 0
A39: Booster Pump - Cast Iron | B39: ci_mov_eq_booster_pump | C39: 1285.174924 | D39: 2 | E39: ci_mov_eq | F39: 0 | G39: 0 | H39: 0 | I39: 0 | J39: 0 | K39: 0 | L39: -0.065106489 | M39: 28.84562393 | N39: 71.31970489 | O39: 1027.67387 | P39: 48.1 | Q39: 1
A40: Well Pump - Polypropylene/PVC | B40: pp_mov_eq_well_pump | C40: 292.2083137 | D40: 2 | E40: =IF(D40>12,"pp_man_eq_large","pp_man_eq_small") -> pp_man_eq_small | F40: 0 | G40: 0 | H40: 0 | I40: 0 | J40: 0 | K40: 0 | L40: 2.768986861 | M40: -29.72379221 | N40: 180.9390651 | O40: 27.07345746 | P40: 12 | Q40: 0
A41: Well Pump - Stainless Steel | B41: ss_mov_eq_well_pump | C41: 1294.376771 | D41: 2 | E41: ss_mov_eq | F41: 0 | G41: 0 | H41: 0 | I41: 0 | J41: 0 | K41: 0 | L41: 0 | M41: 76.90872578 | N41: 393.0866607 | O41: 200.5685467 | P41: 48.1 | Q41: 0
A42: Well Pump - Cast Iron | B42: ci_mov_eq_well_pump | C42: 1285.174924 | D42: 2 | E42: ci_mov_eq | F42: 0 | G42: 0 | H42: 0 | I42: 0 | J42: 0 | K42: 0 | L42: -0.065106489 | M42: 28.84562393 | N42: 71.31970489 | O42: 1027.67387 | P42: 48.1 | Q42: 1
A43: Manual
A44: Booster Pump - Polypropylene/PVC | B44: pp_man_eq_booster_pump | C44: =IF(D44=0,0,IF(OR(D44>P44,D44<Q44),"contact vendor",F44*D44^G44+H44*LN(D44)+I44+J44*EXP(K44*D44)+L44*D44^3+M44*D44^2+N44*D44+O44)) -> 292.2083137 | D44: =valve_size -> 2 | E44: =IF(D44>12,"pp_man_eq_large","pp_man_eq_small") -> pp_man_eq_small | F44: =VLOOKUP($E44,eq_table_cl,F$4,FALSE) -> 0 | G44: 0 | H44: 0 | I44: 0 | J44: 0 | K44: 0 | L44: 2.768986861 | M44: -29.72379221 | N44: 180.9390651 | O44: 27.07345746 | P44: 12 | Q44: 0
A45: Booster Pump - Stainless Steel | B45: ss_man_eq_booster_pump | C45: 717.486669 | D45: 2 | E45: ss_man_eq | F45: 223.2484244 | G45: 1.684302033 | H45: 0 | I45: 0 | J45: 0 | K45: 0 | L45: 0 | M45: 0 | N45: 0 | O45: 0 | P45: 12.1 | Q45: 1
A46: Booster Pump - Cast Iron | B46: ci_man_eq_booster_pump | C46: 326.0018586 | D46: 2 | E46: =IF(D46>12,"ci_bfv_eq_large","ci_bfv_eq_small") -> ci_bfv_eq_small | F46: 0 | G46: 0 | H46: 0 | I46: 0 | J46: 0 | K46: 0 | L46: -0.460517901 | M46: 13.15572457 | N46: 123.1869408 | O46: 30.68922206 | P46: 12 | Q46: 1
A47: Well Pump - Polypropylene/PVC | B47: pp_man_eq_well_pump | C47: 292.2083137 | D47: 2 | E47: =IF(D47>12,"pp_man_eq_large","pp_man_eq_small") -> pp_man_eq_small | F47: 0 | G47: 0 | H47: 0 | I47: 0 | J47: 0 | K47: 0 | L47: 2.768986861 | M47: -29.72379221 | N47: 180.9390651 | O47: 27.07345746 | P47: 12 | Q47: 0
A48: Well Pump - Stainless Steel | B48: ss_man_eq_well_pump | C48: 717.486669 | D48: 2 | E48: ss_man_eq | F48: 223.2484244 | G48: 1.684302033 | H48: 0 | I48: 0 | J48: 0 | K48: 0 | L48: 0 | M48: 0 | N48: 0 | O48: 0 | P48: 12.1 | Q48: 1
A49: Well Pump - Cast Iron | B49: ci_man_eq_well_pump | C49: 326.0018586 | D49: 2 | E49: =IF(D49>12,"ci_bfv_eq_large","ci_bfv_eq_small") -> ci_bfv_eq_small | F49: 0 | G49: 0 | H49: 0 | I49: 0 | J49: 0 | K49: 0 | L49: -0.460517901 | M49: 13.15572457 | N49: 123.1869408 | O49: 30.68922206 | P49: 12 | Q49: 1
A50: Control
A51: Pressure Reducing | B51: prv_eq | C51: =IF(D51=0,0,IF(OR(D51>P51,D51<Q51),"contact vendor",F51*D51^G51+H51*LN(D51)+I51+J51*EXP(K51*D51)+L51*D51^3+M51*D51^2+N51*D51+O51)) -> 0 | D51: =PRV_size -> 0 | E51: prv_eq | F51: =VLOOKUP($E51,eq_table_cl,F$4,FALSE) -> 0 | G51: 0 | H51: 0 | I51: 0 | J51: 0 | K51: 0 | L51: 0 | M51: 73.12676162 | N51: 1049.964902 | O51: 1283.828902 | P51: 12.1 | Q51: 0
A52: Pumps
A53: Booster pump cost, 25 psi | C53: =IF(D53=0,0,IF(OR(D53>P53,D53<Q53),"contact vendor",F53*D53^G53+H53*LN(D53)+I53+J53*EXP(K53*D53)+L53*D53^3+M53*D53^2+N53*D53+O53)) -> 0 | D53: =booster_pump_rating -> 0 | E53: pump_eq | F53: =VLOOKUP($E53,eq_table_cl,F$4,FALSE) -> 0 | G53: 0 | H53: 0 | I53: 0 | J53: 0 | K53: 0 | L53: 0 | M53: -0.000477083 | N53: 12.33390815 | O53: 6801.770701 | P53: 10001 | Q53: 0
A54: Booster pump cost, 75 psi | C54: 0 | D54: 0 | E54: dis75_pump_eq | F54: 0 | G54: 0 | H54: 0 | I54: 0 | J54: 0 | K54: 0 | L54: 0 | M54: -0.000806238 | N54: 19.07956308 | O54: 5044.130287 | P54: 10001 | Q54: 0
A55: Booster pump cost, 150 psi | C55: 0 | D55: 0 | E55: ro150_pump_eq | F55: 1208.695995 | G55: 0.442791056 | H55: 0 | I55: 0 | J55: 0 | K55: 0 | L55: 0 | M55: 0 | N55: 0 | O55: 0 | P55: 2000.1 | Q55: 0
A56: Booster pump cost, 200 psi | C56: 0 | D56: 0 | E56: ro200_pump_eq | F56: 0 | G56: 0 | H56: 0 | I56: 0 | J56: 0 | K56: 0 | L56: 2.989e-05 | M56: -0.069500853 | N56: 67.10452688 | O56: 3035.263754 | P56: 2000.1 | Q56: 0
A57: Booster pump cost, 250 psi | C57: 0 | D57: 0 | E57: ro250_pump_eq | F57: 0 | G57: 0 | H57: 0 | I57: 0 | J57: 0 | K57: 0 | L57: 3.633e-05 | M57: -0.078809054 | N57: 85.979285 | O57: 2620.733594 | P57: 2000.1 | Q57: 0
A58: Booster pump cost, 300 psi | C58: 0 | D58: 0 | E58: ro300_pump_eq | F58: 0 | G58: 0 | H58: 0 | I58: 0 | J58: 0 | K58: 0 | L58: 0 | M58: -0.224415935 | N58: 160.59597 | O58: 2167.300141 | P58: 300.1 | Q58: 0
A59: Booster pump cost, 350 psi | C59: 0 | D59: 0 | E59: ro350_pump_eq | F59: 0 | G59: 0 | H59: 0 | I59: 0 | J59: 0 | K59: 0 | L59: 0.000450507 | M59: -0.541929082 | N59: 227.0341152 | O59: 1908.630603 | P59: 350.1 | Q59: 0
A60: Booster pump cost, 500 psi | C60: 0 | D60: 0 | E60: ro500_pump_eq | F60: 1221.082668 | G60: 0.623845477 | H60: 0 | I60: 0 | J60: 0 | K60: 0 | L60: 0 | M60: 0 | N60: 0 | O60: 0 | P60: 185.1 | Q60: 0
A61: Interconnect Booster Pump | B61: int_booster_pump_eq | C61: =IF(booster_psi<=25,C53,IF(booster_psi<=75,C54,IF(booster_psi<=150,C55,IF(booster_psi<=200,C56,IF(booster_psi<=250,C57,IF(booster_psi<=300,C58,IF(booster_psi<=350,C59,C60))))))) -> 0
A62: Well Pump | B62: no equation
A63: Instrumentation
A64: Flow meters Interconnect
A65: Orifice Plate | B65: op_fm_eq_innterconnect | C65: =IF(D65=0,0,IF(OR(D65>P65,D65<Q65),"contact vendor",F65*D65^G65+H65*LN(D65)+I65+J65*EXP(K65*D65)+L65*D65^3+M65*D65^2+N65*D65+O65)) -> 3282.386002 | D65: =OUTPUT!G88 -> 2 | E65: op_fm_eq | F65: =VLOOKUP($E65,eq_table_cl,F$4,FALSE) -> 0 | G65: 0 | H65: 0 | I65: 0 | J65: 0 | K65: 0 | L65: 0.100507337 | M65: -4.518045594 | N65: 372.0936281 | O65: 2555.466869 | P65: 60.1 | Q65: 0
A66: Propeller | B66: prop_fm_eq_innterconnect | C66: =IF(D66=0,0,IF(OR(D66>P66,D66<Q66),"contact vendor",F66*D66^G66+H66*LN(D66)+I66+J66*EXP(K66*D66)+L66*D66^3+M66*D66^2+N66*D66+O66)) -> 2625.337525 | D66: =OUTPUT!G89 -> 2 | E66: prop_fm_eq | F66: 0 | G66: 0 | H66: 0 | I66: 0 | J66: 0 | K66: 0 | L66: 8.915703422 | M66: -172.2898641 | N66: 1293.697275 | O66: 655.7768048 | P66: 14.1 | Q66: 0
A67: Venturi | B67: ven_fm_eq_innterconnect | C67: =IF(D67=0,0,IF(OR(D67>P67,D67<Q67),"contact vendor",F67*D67^G67+H67*LN(D67)+I67+J67*EXP(K67*D67)+L67*D67^3+M67*D67^2+N67*D67+O67)) -> 5578.72901 | D67: =OUTPUT!G90 -> 2 | E67: ven_fm_eq | F67: 0 | G67: 0 | H67: 0 | I67: 0 | J67: 0 | K67: 0 | L67: 8.413593852 | M67: -263.1980028 | N67: 3397.398189 | O67: -230.584108 | P67: 24.1 | Q67: 0
A68: Magnetic | B68: mag_fm_eq_innterconnect | C68: =IF(D68=0,0,IF(OR(D68>P68,D68<Q68),"contact vendor",F68*D68^G68+H68*LN(D68)+I68+J68*EXP(K68*D68)+L68*D68^3+M68*D68^2+N68*D68+O68)) -> 4230.640785 | D68: =OUTPUT!G91 -> 2 | E68: mag_fm_eq | F68: 0 | G68: 0 | H68: 0 | I68: 0 | J68: 0 | K68: 0 | L68: 0 | M68: 57.57543221 | N68: 189.8539523 | O68: 3620.631151 | P68: 20.1 | Q68: 0
A69: Flow meters well
A70: Orifice Plate | B70: op_fm_eq_well | C70: =IF(D70=0,0,IF(OR(D70>P70,D70<Q70),"contact vendor",F70*D70^G70+H70*LN(D70)+I70+J70*EXP(K70*D70)+L70*D70^3+M70*D70^2+N70*D70+O70)) -> contact vendor | D70: =OUTPUT!G93 -> NA | E70: op_fm_eq | F70: =VLOOKUP($E70,eq_table_cl,F$4,FALSE) -> 0 | G70: 0 | H70: 0 | I70: 0 | J70: 0 | K70: 0 | L70: 0.100507337 | M70: -4.518045594 | N70: 372.0936281 | O70: 2555.466869 | P70: 60.1 | Q70: 0
A71: Propeller | B71: prop_fm_eq_well | C71: =IF(D71=0,0,IF(OR(D71>P71,D71<Q71),"contact vendor",F71*D71^G71+H71*LN(D71)+I71+J71*EXP(K71*D71)+L71*D71^3+M71*D71^2+N71*D71+O71)) -> contact vendor | D71: =OUTPUT!G94 -> NA | E71: prop_fm_eq | F71: 0 | G71: 0 | H71: 0 | I71: 0 | J71: 0 | K71: 0 | L71: 8.915703422 | M71: -172.2898641 | N71: 1293.697275 | O71: 655.7768048 | P71: 14.1 | Q71: 0
A72: Venturi | B72: ven_fm_eq_well | C72: =IF(D72=0,0,IF(OR(D72>P72,D72<Q72),"contact vendor",F72*D72^G72+H72*LN(D72)+I72+J72*EXP(K72*D72)+L72*D72^3+M72*D72^2+N72*D72+O72)) -> contact vendor | D72: =OUTPUT!G95 -> NA | E72: ven_fm_eq | F72: 0 | G72: 0 | H72: 0 | I72: 0 | J72: 0 | K72: 0 | L72: 8.413593852 | M72: -263.1980028 | N72: 3397.398189 | O72: -230.584108 | P72: 24.1 | Q72: 0
A73: Magnetic | B73: mag_fm_eq_well | C73: =IF(D73=0,0,IF(OR(D73>P73,D73<Q73),"contact vendor",F73*D73^G73+H73*LN(D73)+I73+J73*EXP(K73*D73)+L73*D73^3+M73*D73^2+N73*D73+O73)) -> contact vendor | D73: =OUTPUT!G96 -> NA | E73: mag_fm_eq | F73: 0 | G73: 0 | H73: 0 | I73: 0 | J73: 0 | K73: 0 | L73: 0 | M73: 57.57543221 | N73: 189.8539523 | O73: 3620.631151 | P73: 20.1 | Q73: 0
A74: System Controls
A75: RTU Units
A76: Well Pump - Soft Start Control
A77: Building Structures
A78: Building 1
A79: Small Low Cost Shed | B79: no equation
A80: Low Quality | B80: bldg_lo_eq_1 | C80: =IF(LEN($E80)=0,"",IF(OR(D80>P80,D80<Q80),"contact vendor",F80*D80^G80+H80*LN(D80)+I80+J80*EXP(K80*D80)+L80*D80^3+M80*D80^2+N80*D80+O80)) ->  | D80: =build1_fp -> 0 | E80: bldg_lo_eq | F80: =VLOOKUP($E80,eq_table_cl,F$4,FALSE) -> 155.4241849 | G80: -0.096925794 | H80: 0 | I80: 0 | J80: 0 | K80: 0 | L80: 0 | M80: 0 | N80: 0 | O80: 0 | P80: 200000.1 | Q80: 0

Sheet Cost Coefficients
A1: Coefficients for Component Cost Equations
A2: This sheet is used internally to calculate component costs using the cost equations method; see model documentation for more details on the development of cost equations
B4: Power: C1*x^C2 | D4: Logarithmic: C3*Ln(x) + C4 | F4: Exponential: C5*e^(C6*x) | H4: Polynomial: C7*x^3 + C8*x^2 + C9*x + C10 | L4: NOTES
A5: Equation Lookup Name | B5: C1 | C5: C2 | D5: C3 | E5: C4 | F5: C5 | G5: C6 | H5: C7 | I5: C8 | J5: C9 | K5: C10 | L5: Pct deviation of fit equation | M5: Modified by | N5: Last modified | O5: Rsq of fit equation | P5: max size used to gen curve | Q5: min size for which curve fits are valid
A6: bldg_lo_eq | B6: 155.4241849 | C6: -0.096925794 | D6: 0 | E6: 0 | F6: 0 | G6: 0 | H6: 0 | I6: 0 | J6: 0 | K6: 0 | L6: 0.02551820762 | N6: 8/14/2018 1:31:19 PM | O6: 0.9671472933 | P6: 200000.1 | Q6: 0
A7: casing_pvc_eq | B7: 0 | C7: 0 | D7: 0 | E7: 0 | F7: 0 | G7: 0 | H7: 0.057858936 | I7: -1.087160427 | J7: 9.616275693 | K7: 5.824085294 | L7: 0.05086967938 | N7: 3/1/2019 12:52:09 PM | O7: 0.9827875894 | P7: 12.00001 | Q7: 0
A8: casing_ss_eq | B8: 11.79535523 | C8: 1.760932625 | D8: 0 | E8: 0 | F8: 0 | G8: 0 | H8: 0 | I8: 0 | J8: 0 | K8: 0 | L8: 0.4153921287 | N8: 3/1/2019 12:52:44 PM | O8: 0.7888742543 | P8: 12.00001 | Q8: 0
A9: ci_bfv_eq_large | B9: 51.74194467 | C9: 1.588757743 | D9: 0 | E9: 0 | F9: 0 | G9: 0 | H9: 0 | I9: 0 | J9: 0 | K9: 0 | L9: 0.06064603713 | N9: 8/14/2018 11:18:25 AM | O9: 0.9890776861 | P9: 48.1 | Q9: 14
A10: ci_bfv_eq_small | B10: 0 | C10: 0 | D10: 0 | E10: 0 | F10: 0 | G10: 0 | H10: -0.460517901 | I10: 13.15572457 | J10: 123.1869408 | K10: 30.68922206 | L10: 0.04423109255 | N10: 8/14/2018 11:17:48 AM | O10: 0.990159728 | P10: 12 | Q10: 1
A11: ci_mov_eq | B11: 0 | C11: 0 | D11: 0 | E11: 0 | F11: 0 | G11: 0 | H11: -0.065106489 | I11: 28.84562393 | J11: 71.31970489 | K11: 1027.67387 | L11: 0.09881896545 | N11: 8/14/2018 11:05:13 AM | O11: 0.9702253139 | P11: 48.1 | Q11: 1
A12: di_pipe_eq | B12: 0 | C12: 0 | D12: 0 | E12: 0 | F12: 0 | G12: 0 | H12: 0 | I12: 0.100985408 | J12: 4.496624276 | K12: 12.03002003 | L12: 0.05180937746 | N12: 8/14/2018 10:45:41 AM | O12: 0.9914470709 | P12: 48.1 | Q12: 4
A13: dis75_pump_eq | B13: 0 | C13: 0 | D13: 0 | E13: 0 | F13: 0 | G13: 0 | H13: 0 | I13: -0.000806238 | J13: 19.07956308 | K13: 5044.130287 | L13: 0.2237930836 | N13: 8/14/2018 11:51:46 AM | O13: 0.9488323125 | P13: 10001 | Q13: 0
A14: gravel_pack_eq | B14: 0 | C14: 0 | D14: 0 | E14: 0 | F14: 0 | G14: 0 | H14: -0.002230154 | I14: 0.118275129 | J14: 7.456278579 | K14: -19.72478855 | L14: 0.02824250044 | N14: 3/1/2019 3:14:36 PM | O14: 0.9967337179 | P14: 36.001 | Q14: 0
A15: mag_fm_eq | B15: 0 | C15: 0 | D15: 0 | E15: 0 | F15: 0 | G15: 0 | H15: 0 | I15: 57.57543221 | J15: 189.8539523 | K15: 3620.631151 | L15: 0.09858895642 | N15: 8/14/2018 12:34:51 PM | O15: 0.9892184553 | P15: 20.1 | Q15: 0
A16: op_fm_eq | B16: 0 | C16: 0 | D16: 0 | E16: 0 | F16: 0 | G16: 0 | H16: 0.100507337 | I16: -4.518045594 | J16: 372.0936281 | K16: 2555.466869 | L16: 0.04800929978 | N16: 8/14/2018 12:31:50 PM | O16: 0.9993095983 | P16: 60.1 | Q16: 0
A17: plug_pvc_eq | B17: 0 | C17: 0 | D17: 0 | E17: 0 | F17: 0 | G17: 0 | H17: -0.214827222 | I17: 4.077784088 | J17: 5.275470428 | K17: 12.03031138 | L17: 0.07840752645 | N17: 3/1/2019 2:23:15 PM | O17: 0.9739620969 | P17: 12.00001 | Q17: 0
A18: plug_ss_eq | B18: 0 | C18: 0 | D18: 0 | E18: 0 | F18: 0 | G18: 0 | H18: 0.355959131 | I18: 2.251821836 | J18: 3.770550437 | K18: 102.6583457 | L18: 0.02470882926 | N18: 3/1/2019 2:23:36 PM | O18: 0.9979333663 | P18: 10.00001 | Q18: 0
A19: pp_man_eq_large | B19: 0 | C19: 0 | D19: 0 | E19: 0 | F19: 0 | G19: 0 | H19: 22.60852561 | I19: -1299.766716 | J19: 26028.14692 | K19: -164294.6971 | L19: 0.01271041492 | N19: 8/14/2018 11:12:08 AM | O19: 0.9988482316 | P19: 24.1 | Q19: 14
A20: pp_man_eq_small | B20: 0 | C20: 0 | D20: 0 | E20: 0 | F20: 0 | G20: 0 | H20: 2.768986861 | I20: -29.72379221 | J20: 180.9390651 | K20: 27.07345746 | L20: 0.1358101624 | N20: 8/14/2018 11:11:09 AM | O20: 0.9720346273 | P20: 12 | Q20: 0
A21: prop_fm_eq | B21: 0 | C21: 0 | D21: 0 | E21: 0 | F21: 0 | G21: 0 | H21: 8.915703422 | I21: -172.2898641 | J21: 1293.697275 | K21: 655.7768048 | L21: 0.1054386398 | N21: 8/14/2018 12:34:34 PM | O21: 0.9198146099 | P21: 14.1 | Q21: 0
A22: PRV_eq | B22: 0 | C22: 0 | D22: 0 | E22: 0 | F22: 0 | G22: 0 | H22: 0 | I22: 73.12676162 | J22: 1049.964902 | K22: 1283.828902 | L22: 0.09013552112 | N22: 3/4/2019 1:00:18 PM | O22: 0.9666144543 | P22: 12.1 | Q22: 0
A23: pump_eq | B23: 0 | C23: 0 | D23: 0 | E23: 0 | F23: 0 | G23: 0 | H23: 0 | I23: -0.000477083 | J23: 12.33390815 | K23: 6801.770701 | L23: 0.133687134 | N23: 8/14/2018 11:44:39 AM | O23: 0.9319688397 | P23: 10001 | Q23: 0
A24: pvc_pipe_eq | B24: 0 | C24: 0 | D24: 0 | E24: 0 | F24: 0 | G24: 0 | H24: 0 | I24: 0.110356803 | J24: 0.235228044 | K24: 2.391471253 | L24: 0.3231353307 | N24: 8/14/2018 10:49:52 AM | O24: 0.9951485252 | P24: 48.1 | Q24: 0
A25: ro150_pump_eq | B25: 1208.695995 | C25: 0.442791056 | D25: 0 | E25: 0 | F25: 0 | G25: 0 | H25: 0 | I25: 0 | J25: 0 | K25: 0 | L25: 0.2947059079 | N25: 8/14/2018 11:53:26 AM | O25: 0.9275842731 | P25: 2000.1 | Q25: 0
A26: ro200_pump_eq | B26: 0 | C26: 0 | D26: 0 | E26: 0 | F26: 0 | G26: 0 | H26: 2.989e-05 | I26: -0.069500853 | J26: 67.10452688 | K26: 3035.263754 | L26: 0.2291265669 | N26: 8/14/2018 11:54:14 AM | O26: 0.9816222138 | P26: 2000.1 | Q26: 0
A27: ro250_pump_eq | B27: 0 | C27: 0 | D27: 0 | E27: 0 | F27: 0 | G27: 0 | H27: 3.633e-05 | I27: -0.078809054 | J27: 85.979285 | K27: 2620.733594 | L27: 0.2080983344 | N27: 8/14/2018 11:55:01 AM | O27: 0.9957488338 | P27: 2000.1 | Q27: 0
A28: ro300_pump_eq | B28: 0 | C28: 0 | D28: 0 | E28: 0 | F28: 0 | G28: 0 | H28: 0 | I28: -0.224415935 | J28: 160.59597 | K28: 2167.300141 | L28: 0.2831580734 | N28: 8/14/2018 12:06:20 PM | O28: 0.4884326385 | P28: 300.1 | Q28: 0
A29: ro350_pump_eq | B29: 0 | C29: 0 | D29: 0 | E29: 0 | F29: 0 | G29: 0 | H29: 0.000450507 | I29: -0.541929082 | J29: 227.0341152 | K29: 1908.630603 | L29: 0.1854568327 | N29: 8/14/2018 12:08:54 PM | O29: 0.8756443129 | P29: 350.1 | Q29: 0
A30: ro500_pump_eq | B30: 1221.082668 | C30: 0.623845477 | D30: 0 | E30: 0 | F30: 0 | G30: 0 | H30: 0 | I30: 0 | J30: 0 | K30: 0 | L30: 0.2007834666 | N30: 8/14/2018 12:09:21 PM | O30: 0.8932379907 | P30: 185.1 | Q30: 0
A31: screen_pvc40_eq | B31: 0 | C31: 0 | D31: 0 | E31: 0 | F31: 0 | G31: 0 | H31: -0.032894459 | I31: 0.389520869 | J31: 7.237294197 | K31: 13.24131425 | L31: 0.02900896028 | N31: 3/1/2019 1:10:54 PM | O31: 0.9946810964 | P31: 12.00001 | Q31: 0
A32: screen_pvc80_eq | B32: 0 | C32: 0 | D32: 0 | E32: 0 | F32: 0 | G32: 0 | H32: 0 | I32: -0.074109712 | J32: 10.57737701 | K32: 1.732415733 | L32: 0.06581640653 | N32: 3/1/2019 1:11:09 PM | O32: 0.9778131811 | P32: 12.00001 | Q32: 0
A33: screen_ss_eq | B33: 10.81023836 | C33: 1.766857246 | D33: 0 | E33: 0 | F33: 0 | G33: 0 | H33: 0 | I33: 0 | J33: 0 | K33: 0 | L33: 0.3842497273 | N33: 3/1/2019 1:11:35 PM | O33: 0.7029819685 | P33: 12.00001 | Q33: 0
A34: ss_man_eq | B34: 223.2484244 | C34: 1.684302033 | D34: 0 | E34: 0 | F34: 0 | G34: 0 | H34: 0 | I34: 0 | J34: 0 | K34: 0 | L34: 0.4318394443 | N34: 8/14/2018 11:09:08 AM | O34: 0.9069449209 | P34: 12.1 | Q34: 1
A35: ss_mov_eq | B35: 0 | C35: 0 | D35: 0 | E35: 0 | F35: 0 | G35: 0 | H35: 0 | I35: 76.90872578 | J35: 393.0866607 | K35: 200.5685467 | L35: 0.1578845736 | N35: 8/14/2018 11:03:35 AM | O35: 0.9960484293 | P35: 48.1 | Q35: 0
A36: street_valve_eq | B36: 0 | C36: 0 | D36: 0 | E36: 0 | F36: 0 | G36: 0 | H36: 1.299292903 | I36: 1.672712957 | J36: 183.0738012 | K36: 20.1701945 | L36: 0.02416686699 | N36: 3/1/2019 5:03:00 PM | O36: 0.9989628656 | P36: 12.1 | Q36: 0
A37: ven_fm_eq | B37: 0 | C37: 0 | D37: 0 | E37: 0 | F37: 0 | G37: 0 | H37: 8.413593852 | I37: -263.1980028 | J37: 3397.398189 | K37: -230.584108 | L37: 0.02769325563 | N37: 8/14/2018 12:32:03 PM | O37: 0.9996784556 | P37: 24.1 | Q37: 0

Sheet Cost Data
A1: Cost Data
A2: This sheet is used internally and contains component cost data extracted from the central cost database
A3: To maintain vendor confidentiality, the central cost database itself is not provided here
A5: BCI | B5: Asphalt Patch
A6: 3 | B6: Size needed (in thick) | C6: Size selected (in thick) | D6: Avg. Unit Cost (per sy) | E6: Useful Life (large) | F6: Useful Life (small)
A7: asphalt_patch_cost_cl | B7: 0 | C7: 2 | D7: 48.61007958 | E7: 40 | F7: 37
B8: 2.1 | C8: 4 | D8: 69.04840849 | E8: 40 | F8: 37
B9: 4.1 | C9: 6 | D9: 93.35344828 | E9: 40 | F9: 37
B10: 6.1 | C10: contact vendor | D10: contact vendor | E10: 40 | F10: 37
A13: BCI | B13: Backfill and Compaction
A14: 3 | D14: Avg. Unit Cost (per cy) | E14: Useful Life (large) | F14: Useful Life (small)
A15: backfill_cost_cl | B15: 0 | C15: 0 | D15: 14.40625995 | E15: N/A | F15: N/A
A18: bore_rig_cost | B18: 0 | C18: 0 | D18: 3008.42935 | E18: N/A | F18: N/A
B19: Borings, cased borings in earth, w/samples, 2.5" dia | D19: Avg. Unit Cost (per lf) | E19: Useful Life (large) | F19: Useful Life (small)
A20: bore_cost_cl | B20: 0 | C20: 0 | D20: 80.97454698 | E20: N/A | F20: N/A
A23: stake_out_cost | B23: 0 | C23: 0 | D23: 1433.924269 | E23: N/A | F23: N/A
B24: Borings, drawings showing boring details | D24: Avg. Unit Cost (per job) | E24: Useful Life (large) | F24: Useful Life (small)
A25: bore_draw_cost_cl | B25: 0 | C25: 0 | D25: 477.9747565 | E25: N/A | F25: N/A
A28: bore_report_cost | B28: 0 | C28: 0 | D28: 1090.907091 | E28: N/A | F28: N/A
B29: Borings, mobilization and demobilization, minimum | D29: Avg. Unit Cost | E29: Useful Life (large) | F29: Useful Life (small)
A30: bore_mob_cost_cl | B30: 0 | C30: 0 | D30: 753.5131455 | E30: N/A | F30: N/A
A33: bore_draw_cost | B33: 0 | C33: 0 | D33: 477.9747565 | E33: N/A | F33: N/A
B34: Borings, report and recommendations from P.E. | D34: Avg. Unit Cost (per job) | E34: Useful Life (large) | F34: Useful Life (small)
A35: bore_report_cost_cl | B35: 0 | C35: 0 | D35: 1090.907091 | E35: N/A | F35: N/A
A38: bore_mob_cost | B38: 0 | C38: 0 | D38: 753.5131455 | E38: N/A | F38: N/A
B39: Borings, drill rig and crew with truck mounted auger | D39: Avg. Unit Cost (per day) | E39: Useful Life (large) | F39: Useful Life (small)
A40: bore_rig_cost_cl | B40: 0 | C40: 0 | D40: 3008.42935 | E40: N/A | F40: N/A
A43: BCI | B43: PVC Well Casing
A44: 3 | B44: Size needed (in. diam.) | C44: Size selected (in. diam.) | D44: Avg. Unit Cost (per lf) | E44: Useful Life (large) | F44: Useful Life (small)
A45: casing_pvc_cost_cl | B45: 0 | C45: 2 | D45: 20.91117241 | E45: 30 | F45: 27
B46: 2.00001 | C46: 4 | D46: 32.91984304 | E46: 30 | F46: 27
B47: 4.00001 | C47: 6 | D47: 33.86278716 | E47: 30 | F47: 27
B48: 6.00001 | C48: 8 | D48: 44.76211177 | E48: 30 | F48: 27
B49: 8.00001 | C49: 10 | D49: 52.04219501 | E49: 30 | F49: 27
B50: 10.00001 | C50: 12 | D50: 63.70419501 | E50: 30 | F50: 27
B51: 12.00001 | C51: contact vendor | D51: contact vendor | E51: 30 | F51: 27
A54: BCI | B54: Stainless Steel Well Casing
A55: 3 | B55: Size needed (in. diam.) | C55: Size selected (in. diam.) | D55: Avg. Unit Cost (per lf) | E55: Useful Life (large) | F55: Useful Life (small)
A56: casing_ss_cost_cl | B56: 0 | C56: 2 | D56: 46.21812842 | E56: 30 | F56: 27
B57: 2.00001 | C57: 4 | D57: 72.82856599 | E57: 30 | F57: 27
B58: 4.00001 | C58: 6 | D58: 427.6944899 | E58: 30 | F58: 27
B59: 6.00001 | C59: 8 | D59: 616.2555791 | E59: 30 | F59: 27
B60: 8.00001 | C60: 10 | D60: 683.4126136 | E60: 30 | F60: 27
B61: 10.00001 | C61: 12 | D61: 723.9453436 | E61: 30 | F61: 27
B62: 12.00001 | C62: contact vendor | D62: contact vendor | E62: 30 | F62: 27
A65: bls1149 | B65: Cast Iron Manual Valves
A66: 35 | B66: Size needed (in. diam) | C66: Size selected (in. diam) | D66: Avg. Unit Cost | E66: Useful Life (large) | F66: Useful Life (small)
A67: ci_bfv_cost_cl | B67: 0 | C67: 1 | D67: 166.0085503 | E67: 25 | F67: 20
B68: 1.1 | C68: 2 | D68: 331.1708921 | E68: 25 | F68: 20
B69: 2.1 | C69: 2.5 | D69: 403.1728906 | E69: 25 | F69: 20
B70: 2.6 | C70: 3 | D70: 529.462466 | E70: 25 | F70: 20
B71: 3.1 | C71: 4 | D71: 679.6580787 | E71: 25 | F71: 20
B72: 4.1 | C72: 6 | D72: 1174.347556 | E72: 25 | F72: 20
B73: 6.1 | C73: 8 | D73: 1529.521875 | E73: 25 | F73: 20
B74: 8.1 | C74: 10 | D74: 2326.933465 | E74: 25 | F74: 20
B75: 10.1 | C75: 12 | D75: 2528.933225 | E75: 25 | F75: 20
B76: 12.1 | C76: 14 | D76: 3499.277184 | E76: 25 | F76: 20
B77: 14.1 | C77: 16 | D77: 4214.550675 | E77: 25 | F77: 20
B78: 16.1 | C78: 18 | D78: 4966.641002 | E78: 25 | F78: 20
B79: 18.1 | C79: 20 | D79: 6632.296091 | E79: 25 | F79: 20
B80: 20.1 | C80: 24 | D80: 7747.898885 | E80: 25 | F80: 20
B81: 24.1 | C81: 30 | D81: 10387.9332 | E81: 25 | F81: 20
B82: 30.1 | C82: 48 | D82: 25748.03741 | E82: 25 | F82: 20
B83: 48.1 | C83: contact vendor | D83: contact vendor | E83: 25 | F83: 20
A86: bls1149 | B86: Cast Iron Motor/Air Operated Valves (on/off)
A87: 35 | B87: Size needed (in. diam) | C87: Size selected (in. diam) | D87: Avg. Unit Cost | E87: Useful Life (large) | F87: Useful Life (small)
A88: ci_mov_cost_cl | B88: 0 | C88: 1 | D88: 1162.478469 | E88: 25 | F88: 20
B89: 1.1 | C89: 2 | D89: 1179.080997 | E89: 25 | F89: 20
B90: 2.1 | C90: 3 | D90: 1551.114819 | E90: 25 | F90: 20
B91: 3.1 | C91: 4 | D91: 1854.791711 | E91: 25 | F91: 20
B92: 4.1 | C92: 6 | D92: 2661.333284 | E92: 25 | F92: 20
B93: 6.1 | C93: 8 | D93: 3196.916465 | E93: 25 | F93: 20
B94: 8.1 | C94: 10 | D94: 4782.90501 | E94: 25 | F94: 20
B95: 10.1 | C95: 12 | D95: 6086.126897 | E95: 25 | F95: 20
B96: 12.1 | C96: 14 | D96: 7747.102147 | E96: 25 | F96: 20
B97: 14.1 | C97: 16 | D97: 8323.595634 | E97: 25 | F97: 20
B98: 16.1 | C98: 18 | D98: 9631.303631 | E98: 25 | F98: 20
B99: 18.1 | C99: 20 | D99: 14809.68865 | E99: 25 | F99: 20
B100: 20.1 | C100: 24 | D100: 18982.9417 | E100: 25 | F100: 20
B101: 24.1 | C101: 30 | D101: 36780.29339 | E101: 25 | F101: 20
B102: 30.1 | C102: 48 | D102: 59789.43985 | E102: 25 | F102: 20
B103: 48.1 | C103: contact vendor | D103: contact vendor | E103: 25 | F103: 20
A106: BCI | B106: Concrete for Basins
A107: 3 | D107: Avg. Unit Cost (per cy) | E107: Useful Life (large) | F107: Useful Life (small)
A108: conc_basin_cost_cl | B108: 0 | C108: 0 | D108: 601.2651172 | E108: 40 | F108: 37
A112: Current Year | B112: current_year_cl | C112: 2017
A115: BCI | B115: Well Development
A116: 3 | D116: Avg. Unit Cost (per well) | E116: Useful Life (large) | F116: Useful Life (small)
A117: develop_well_cost_cl | B117: 0 | C117: 0 | D117: 974.1785781 | E117: 30 | F117: 27
A120: bls10150211 | B120: Ductile Iron Piping
A121: 19 | B121: Size needed (in. diam) | C121: Size selected (in. diam) | D121: Avg. Unit Cost ($/lf) | E121: Useful Life (large) | F121: Useful Life (small)
A122: di_pipe_cost_cl | B122: 0 | C122: 4 | D122: 33.76451296 | E122: 40 | F122: 35
B123: 4.1 | C123: 6 | D123: 40.12594293 | E123: 40 | F123: 35
B124: 6.1 | C124: 8 | D124: 51.87012135 | E124: 40 | F124: 35
B125: 8.1 | C125: 10 | D125: 67.03968514 | E125: 40 | F125: 35
B126: 10.1 | C126: 12 | D126: 77.80518203 | E126: 40 | F126: 35
B127: 12.1 | C127: 14 | D127: 97.86815349 | E127: 40 | F127: 35
B128: 14.1 | C128: 16 | D128: 114.5057396 | E128: 40 | F128: 35
B129: 16.1 | C129: 18 | D129: 129.1859626 | E129: 40 | F129: 35
B130: 18.1 | C130: 20 | D130: 151.6956379 | E130: 40 | F130: 35
B131: 20.1 | C131: 24 | D131: 187.9068547 | E131: 40 | F131: 35
B132: 24.1 | C132: 30 | D132: 226.1375944 | E132: 40 | F132: 35
B133: 30.1 | C133: 36 | D133: 279.4639961 | E133: 40 | F133: 35
B134: 36.1 | C134: 48 | D134: 484.5239233 | E134: 40 | F134: 35
B135: 48.1 | C135: contact vendor | D135: contact vendor | E135: 40 | F135: 35
A138: bls1141 | B138: 75 PSI Pumps for Pumping to Distribution
A139: 30 | B139: Size needed in (gpm) | C139: Size Selected (gpm) | D139: Avg. Unit Cost | E139: Useful Life(large) | F139: Useful Life (small)
A140: dis75_pump_cost_cl | B140: 0 | C140: 10 | D140: 3644.280875 | E140: 20 | F140: 17
B141: 11 | C141: 30 | D141: 5944.42627 | E141: 20 | F141: 17
B142: 31 | C142: 50 | D142: 6009.889658 | E142: 20 | F142: 17
B143: 51 | C143: 75 | D143: 6793.019898 | E143: 20 | F143: 17
B144: 76 | C144: 100 | D144: 7130.751466 | E144: 20 | F144: 17
B145: 101 | C145: 125 | D145: 12559.74923 | E145: 20 | F145: 17
B146: 126 | C146: 200 | D146: 13154.87094 | E146: 20 | F146: 17
B147: 201 | C147: 250 | D147: 13642.87074 | E147: 20 | F147: 17
B148: 251 | C148: 300 | D148: 13642.87074 | E148: 20 | F148: 17
B149: 301 | C149: 500 | D149: 17182.07007 | E149: 20 | F149: 17
B150: 501 | C150: 750 | D150: 19878.7153 | E150: 20 | F150: 17
B151: 751 | C151: 1000 | D151: 36208.85492 | E151: 20 | F151: 17
B152: 1001 | C152: 1500 | D152: 29796.41853 | E152: 20 | F152: 17
B153: 1501 | C153: 2000 | D153: 34231.56305 | E153: 20 | F153: 17
B154: 2001 | C154: 3000 | D154: 43741.60791 | E154: 20 | F154: 17
B155: 3001 | C155: 3500 | D155: 54984.94475 | E155: 20 | F155: 17
B156: 3501 | C156: 4000 | D156: 56820.89521 | E156: 20 | F156: 17
B157: 4001 | C157: 6000 | D157: 106614.7284 | E157: 20 | F157: 17
B158: 6001 | C158: 10000 | D158: 131655.962 | E158: 20 | F158: 17
B159: 10001 | C159: Contact Vendor | D159: contact vendor | E159: 20 | F159: 17
A162: BCI | B162: Well Drilling, 10" borehole diameter
A163: 3 | B163: Depth needed (feet) | C163: Depth selected (feet) | D163: Avg. Unit Cost (per lf) | E163: Useful Life (large) | F163: Useful Life (small)
A164: drill_10_cost_cl | B164: 0 | C164: Up to 100 | D164: 140.581874 | E164: 30 | F164: 27
B165: 100 | C165: 100 to 500 | D165: 129.1417432 | E165: 30 | F165: 27
B166: 500.1 | C166: Deeper | D166: 137.32317 | E166: 30 | F166: 27
A169: BCI | B169: Well Drilling, 12" borehole diameter
A170: 3 | B170: Depth needed (feet) | C170: Depth selected (feet) | D170: Avg. Unit Cost (per lf) | E170: Useful Life (large) | F170: Useful Life (small)
A171: drill_12_cost_cl | B171: 0 | C171: Up to 100 | D171: 163.4760024 | E171: 30 | F171: 27
B172: 100 | C172: 100 to 500 | D172: 127.5054578 | E172: 30 | F172: 27
B173: 500.1 | C173: Deeper | D173: 137.32317 | E173: 30 | F173: 27
A176: BCI | B176: Well Drilling, 15" borehole diameter
A177: 3 | B177: Depth needed (feet) | C177: Depth selected (feet) | D177: Avg. Unit Cost (per lf) | E177: Useful Life (large) | F177: Useful Life (small)
A178: drill_15_cost_cl | B178: 0 | C178: Up to 100 | D178: 222.3268086 | E178: 30 | F178: 27
B179: 100 | C179: 100 to 500 | D179: 215.7816671 | E179: 30 | F179: 27
B180: 500.1 | C180: Deeper | D180: 225.5855125 | E180: 30 | F180: 27
A183: BCI | B183: Well Drilling, 8" borehole diameter
A184: 3 | B184: Depth needed (feet) | C184: Depth selected (feet) | D184: Avg. Unit Cost (per lf) | E184: Useful Life (large) | F184: Useful Life (small)
A185: drill_8_cost_cl | B185: 0 | C185: Up to 100 | D185: 102.9889108 | E185: 30 | F185: 27
B186: 100 | C186: 100 to 500 | D186: 89.91249465 | E186: 30 | F186: 27
B187: 500.1 | C187: Deeper | D187: 96.44376932 | E187: 30 | F187: 27
A190: BCI | B190: Excavation
A191: 3 | D191: Avg. Unit Cost (per cy) | E191: Useful Life (large) | F191: Useful Life (small)
A192: excavate_cost_cl | B192: 0 | C192: 0 | D192: 31.07454576 | E192: N/A | F192: N/A
A195: BCI | B195: Gravel Pack
A196: 3 | B196: Size needed (in. diam.) | C196: Size selected (in. diam.) | D196: Avg. Unit Cost (per lf) | E196: Useful Life (large) | F196: Useful Life (small)
A197: gravel_pack_cost_cl | B197: 0 | C197: 6 | D197: 29.17123631 | E197: 30 | F197: 27
B198: 6.001 | C198: 8 | D198: 44.73644515 | E198: 30 | F198: 27
B199: 8.001 | C199: 10 | D199: 65.81117505 | E199: 30 | F199: 27
B200: 10.001 | C200: 12 | D200: 83.12990533 | E200: 30 | F200: 27
B201: 12.001 | C201: 14 | D201: 99.31209393 | E201: 30 | F201: 27
B202: 14.001 | C202: 16 | D202: 122.4758957 | E202: 30 | F202: 27
B203: 16.001 | C203: 18 | D203: 140.0652311 | E203: 30 | F203: 27
B204: 18.001 | C204: 20 | D204: 169.6694357 | E204: 30 | F204: 27
B205: 20.001 | C205: 24 | D205: 194.8357156 | E205: 30 | F205: 27
B206: 24.001 | C206: 26 | D206: 204.5775014 | E206: 30 | F206: 27
B207: 26.001 | C207: 30 | D207: 250.0391684 | E207: 30 | F207: 27
B208: 30.001 | C208: 36 | D208: 301.9953592 | E208: 30 | F208: 27
B209: 36.001 | C209: contact vendor | D209: contact vendor | E209: 30 | F209: 27
A212: BCI | B212: Grouting
A213: 3 | D213: Avg. Unit Cost (per cf) | E213: Useful Life (large) | F213: Useful Life (small)
A214: grout_cost_cl | B214: 0 | C214: 0 | D214: 64.90550398 | E214: 40 | F214: 37
A217: bls118 | B217: Magnetic Flow Meters
A218: 43 | B218: Size needed (in. diam) | C218: Size selected (in. diam) | D218: Avg. Unit Cost | E218: Useful Life (large) | F218: Useful Life (small)
A219: mag_fm_cost_cl | B219: 0 | C219: 0.75 | D219: 5266.53103 | E219: 15 | F219: 14
B220: 0.76 | C220: 1 | D220: 3737.070105 | E220: 15 | F220: 14
B221: 1.1 | C221: 1.5 | D221: 3831.033762 | E221: 15 | F221: 14
B222: 1.6 | C222: 2 | D222: 4209.238094 | E222: 15 | F222: 14
B223: 2.1 | C223: 2.5 | D223: 4105.571071 | E223: 15 | F223: 14
B224: 2.6 | C224: 3 | D224: 4481.339027 | E224: 15 | F224: 14
B225: 3.1 | C225: 4 | D225: 4713.802396 | E225: 15 | F225: 14
B226: 4.1 | C226: 6 | D226: 7747.462 | E226: 15 | F226: 14
B227: 6.1 | C227: 8 | D227: 9978.726102 | E227: 15 | F227: 14
B228: 8.1 | C228: 10 | D228: 12076.75633 | E228: 15 | F228: 14
B229: 10.1 | C229: 12 | D229: 14357.80847 | E229: 15 | F229: 14
B230: 12.1 | C230: 14 | D230: 17614.4164 | E230: 15 | F230: 14
B231: 14.1 | C231: 16 | D231: 21512.38461 | E231: 15 | F231: 14
B232: 16.1 | C232: 18 | D232: 25120.37313 | E232: 15 | F232: 14
B233: 18.1 | C233: 20 | D233: 28272.26294 | E233: 15 | F233: 14
B234: 20.1 | C234: contact vendor | D234: contact vendor | E234: 15 | F234: 14
A237: bls118 | B237: Orifice Plate Flow Meters
A238: 43 | B238: Size needed (in. diam) | C238: Size selected (in. diam) | D238: Avg. Unit Cost | E238: Useful Life (large) | F238: Useful Life (small)
A239: op_fm_cost_cl | B239: 0 | C239: 2 | D239: 3340.975651 | E239: 15 | F239: 14
B240: 2.1 | C240: 3 | D240: 3449.030358 | E240: 15 | F240: 14
B241: 3.1 | C241: 6 | D241: 5093.507426 | E241: 15 | F241: 14
B242: 6.1 | C242: 12 | D242: 6219.264746 | E242: 15 | F242: 14
B243: 12.1 | C243: 24 | D243: 10437.00548 | E243: 15 | F243: 14
B244: 48.1 | C244: 60 | D244: 30284.54491 | E244: 15 | F244: 14
B245: 60.1 | C245: contact vendor | D245: contact vendor | E245: 15 | F245: 14
A248: BCI | B248: PVC Well Plug
A249: 3 | B249: Size needed (in. diam.) | C249: Size selected (in. diam.) | D249: Avg. Unit Cost (per well) | E249: Useful Life (large) | F249: Useful Life (small)
A250: plug_pvc_cost_cl | B250: 0 | C250: 2 | D250: 37.52362901 | E250: 30 | F250: 27
B251: 2.00001 | C251: 4 | D251: 79.31824019 | E251: 30 | F251: 27
B252: 4.00001 | C252: 6 | D252: 169.7576742 | E252: 30 | F252: 27
... 371 more rows

Sheet Engineering Data
A1: Engineering Data
A2: This sheet is used internally and contains engineering reference and indirect cost data extracted from the central cost database
A4: Architectural Fee
A5: Building cost lookup | B5: Corresponds to the range | C5: Architectural fee
A6: 0 | B6: <$250,000 | C6: 0.09
A7: 250000 | B7: $250,000 to $500,000 | C7: 0.08
A8: 500000 | B8: $500,000 to $1,000,000 | C8: 0.07
A9: 1000000 | B9: $1,000,000 to $5,000,000 | C9: 0.062
A10: 5000000 | B10: $5,000,000 to $10,000,000 | C10: 0.053
A11: 10000000 | B11: $10,000,000 to $50,000,000 | C11: 0.049
A12: 50000000 | B12: >$50,000,000 | C12: 0.045
A15: Construction Management Fee
A16: Building cost lookup | B16: Corresponds to the range | C16: Construction management fee
A17: 0 | B17: <$100,000 | C17: 0.1
A18: 100000 | B18: $100,000 to $250,000 | C18: 0.09
A19: 250000 | B19: $250,000 to $1,000,000 | C19: 0.06
A20: 1000000 | B20: $1,000,000 to $5,000,000 | C20: 0.05
A21: 5000000 | B21: $5,000,000 to $10,000,000 | C21: 0.04
A22: 10000000 | B22: >$10,000,000 | C22: 0.032
A25: Contingency Factors
A26: Project direct cost | B26: Corresponds to the range | C26: Default contingency (prior to application of technology complexity factor)
A27: 0 | B27: <$500,000 | C27: 0.067
A28: 500000 | B28: $500,000 to $3,000,000 | C28: 0.058
A29: 3000000 | B29: $3,000,000 to $15,000,000 | C29: 0.049
A30: 15000000 | B30: $15,000,000 to $50,000,000 | C30: 0.041
A31: 50000000 | B31: $50,000,000 to $100,000,000 | C31: 0.032
A32: 100000000 | B32: >$100,000,000 | C32: 0.058
A35: Feed Water Pump Dimensions (for high pressure pumps for reverse osmosis and nanofiltration)
A36: Pump Rating Needed (mgd) | B36: Pump Rating Selected (mgd) | C36: Area w/ piping (sf) | D36: Foundation Depth (ft)
A37: 0 | B37: 0.05 | C37: 36 | D37: 1
A38: 0.06 | B38: 0.1 | C38: 45 | D38: 1.166666667
A39: 0.11 | B39: 0.2 | C39: 54 | D39: 1.166666667
A40: 0.21 | B40: 0.5 | C40: 65 | D40: 1.166666667
A41: 0.51 | B41: 1 | C41: 76 | D41: 1.333333333
A42: 1.01 | B42: 2 | C42: 88 | D42: 1.333333333
A43: 2.01 | B43: 3 | C43: 95 | D43: 1.333333333
A44: 3.01 | B44: 5 | C44: 101 | D44: 1.5
A45: 5.01 | B45: 10 | C45: 144 | D45: 2
A48: Performance Bond
A49: Direct cost lookup | B49: Corresponds to the range | C49: Base cost | D49: Plus fraction | E49: Of amount over
A50: 0 | B50: <$100,000 | C50: 0 | D50: 0.025 | E50: 0
A51: 100000 | B51: $100,000 to $500,000 | C51: 2500 | D51: 0.015 | E51: 100000
A52: 500000 | B52: $500,000 to $2,500,000 | C52: 8500 | D52: 0.01 | E52: 500000
A53: 2500000 | B53: $2,500,000 to $5,000,000 | C53: 28500 | D53: 0.0075 | E53: 2500000
A54: 5000000 | B54: $5,000,000 to $7,500,000 | C54: 47250 | D54: 0.007 | E54: 5000000
A55: 7500000 | B55: >$7,500,000 | C55: 64750 | D55: 0.006 | E55: 7500000
A58: Pipe Size Selection
A59: Pipe Flow to Pipe Diameter
A60: Flow (GPM) | B60: Diameter (inch)
A61: 0 | B61: 0.5
A62: 2.1 | B62: 0.75
A63: 4.1 | B63: 1
A64: 7.1 | B64: 1.5
A65: 21.1 | B65: 2
A66: 41.1 | B66: 2.5
A67: 66.1 | B67: 3
A68: 116.1 | B68: 4
A69: 238.1 | B69: 6
A70: 697.1 | B70: 8
A71: 1435.1 | B71: 10
A72: 2608.1 | B72: 12
A73: 4132.1 | B73: 14
A74: 5299.1 | B74: 16
A75: 7528.1 | B75: 18
A76: 10265.1 | B76: 20
A77: 13643.1 | B77: 24
A78: 22174.1 | B78: 30
A79: 50561.1 | B79: 36
A80: 81777.1 | B80: 42
A81: 122025.1 | B81: 48
A84: Pump Dimensions (for centrifugal pumps)
A85: Pump Rating Needed (gpm) | B85: Pump Rating Selected (gpm) | C85: Length (ft) | D85: Width (ft)
A86: 0 | B86: 350 | C86: 2.5 | D86: 2.5
A87: 351 | B87: 1740 | C87: 3.75 | D87: 3.75
A88: 1741 | B88: 7000 | C88: 5 | D88: 5
A89: 7001 | B89: 35000 | C89: 7.083333333 | D89: 7.083333333

Sheet Lookups
A1: Lookup Tables and Input Validation
A2: This sheet is used internally to perform certain reference calculations and support input sheet data validation
A4: Well Pump Size Lookup
A5: pump_hp_table
A6: Horsepower Needed | B6: Horsepower Selected | C6: Pump Diameter (inches)
A7: 0 | B7: 7.5 | C7: 4
A8: 7.6 | B8: 50 | C8: 6
A9: 51 | B9: 250 | C9: 8
A12: Pressure Reducing Valve Sizes
A13: prv_table
A14: Diameter Needed (inches) | B14: Diameter Selected (inches) | C14: Length (inches) | D14: Width (inches)
A15: 0 | B15: 2 | C15: 9.38 | D15: 18
A16: 2.1 | B16: 2.5 | C16: 11 | D16: 20
A17: 2.6 | B17: 3 | C17: 12 | D17: 22
A18: 3.1 | B18: 4 | C18: 15 | D18: 24
A19: 4.1 | B19: 6 | C19: 20 | D19: 40
A20: 6.1 | B20: 8 | C20: 25.5 | D20: 77
A21: 8.1 | B21: 10 | C21: 29.75 | D21: 48
A22: 10.1 | B22: 12 | C22: 34 | D22: 52
A23: 12.1 | B23: 14 | C23: 39 | D23: 58
A24: 14.1 | B24: 16 | C24: 41.4 | D24: 60
A26: Input Validation
A27: design_type
A28: Interconnection
A29: New Well Construction
A31: comp_level_valid
A32: low cost
A33: mid cost
A34: high cost
A36: system_automation_valid
A37: manual
A38: semi-automated
A39: fully automated
A41: yes_no_valid
A42: =IF(design=2,"yes","") -> 
A43: =IF(design=2,"no","") -> 
A46: Constants
A47: Minutes in a day | B47: min_per_day | C47: 1440 | D47: min/day
A48: Gallons per cubic foot | B48: gal_per_cuft | C48: 7.48 | D48: gal/ft^3
A49: Gallons per million gallons | B49: gal_per_mil_gal | C49: 1000000 | D49: gal/mil gal
A50: Seconds per minites | B50: sec_per_min | C50: 60 | D50: sec/min
A51: Cubic feet per cubic yard | B51: cuft_per_cuyd | C51: 27 | D51: ft^3/Yd^3
A52: Pounds per gal | B52: lbs_per_gal | C52: 8.34 | D52: lbs/gal
A53: Pounds of water per cubic foot | B53: lbs_per_cuft | C53: 62.4 | D53: lbs/ft^3
A54: Days per year | B54: day_per_year | C54: 365 | D54: days/year
A55: Inches per foot | B55: in_per_ft | C55: 12 | D55: in/ft
A56: Square feet per square yard | B56: sqft_per_sqyd | C56: 27 | D56: ft^2/yd^2
